Transaction Date,Local Authority Department,Beneficiary,Purpose of Expenditure,Amount (excluding VAT),Non Recoverable VAT,Merchant Category
 21-10-2022,Adults,Little Gaynes,Other Short Term Support,500.00,0.00,COMMERCIAL SUPPLIER 
 21-10-2022,Adults,Genesis Residential Homes Ltd - Dothan House,Other Short Term Support,500.00,0.00,COMMERCIAL SUPPLIER 
 21-10-2022,Adults,Clover Cottage Ltd,Other Short Term Support,500.00,0.00,COMMERCIAL SUPPLIER 
 21-10-2022,Adults,Manor Lodge_a,Other Short Term Support,500.00,0.00,COMMERCIAL SUPPLIER 
 21-10-2022,Adults,Churchill House_a,Other Short Term Support,500.00,0.00,COMMERCIAL SUPPLIER 
 21-10-2022,Adults,The Avenues Trust Support Services Glebe House,Other Short Term Support,500.00,0.00,COMMERCIAL SUPPLIER 
 21-10-2022,Adults,Outlook Care - 74 Neave Crescent,Other Short Term Support,500.00,0.00,COMMERCIAL SUPPLIER 
 21-10-2022,Adults,Outlook Care - 86 Veronica Close,Other Short Term Support,500.00,0.00,COMMERCIAL SUPPLIER 
 21-10-2022,Adults,The Avenues Trust - 73A Neave Crescent,Other Short Term Support,500.00,0.00,COMMERCIAL SUPPLIER 
 21-10-2022,Adults,Ashgate House Ltd_a,Other Short Term Support,500.00,0.00,COMMERCIAL SUPPLIER 
 24-10-2022,Adults,EC Romford Holdings Ltd,Other Short Term Support,500.00,0.00,COMMERCIAL SUPPLIER 
 24-10-2022,Adults,Prepaid Financial Services 266 Corporate,"Purchase - Equipment, Furniture And Materials",500.00,0.00,COMMERCIAL SUPPLIER 
 24-10-2022,Adults,Prepaid Financial Services 266 Corporate,Private Contractors Payment - Other,500.00,0.00,COMMERCIAL SUPPLIER 
 03-10-2022,Adults,Morepower Ltd t/a Aqs Homecare,Home Care - Private Contractors Payment,500.53,0.00,COMMERCIAL SUPPLIER 
 05-10-2022,Adults,Matrix SCM Ltd,Agency Staff,501.12,0.00,COMMERCIAL SUPPLIER 
 18-10-2022,Adults,Home Sweet Home Care Ltd,Home Care - Private Contractors Payment,501.84,0.00,COMMERCIAL SUPPLIER 
 18-10-2022,Adults,Home Sweet Home Care Ltd,Home Care - Private Contractors Payment,501.84,0.00,COMMERCIAL SUPPLIER 
 24-10-2022,Adults,John Stanleys Care Agency Ltd,Home Care - Private Contractors Payment,501.84,0.00,COMMERCIAL SUPPLIER 
 09-10-2022,Adults,Homestead Care Service,Home Care - Private Contractors Payment,502.82,0.00,COMMERCIAL SUPPLIER 
 14-10-2022,Adults,Quality Healthcare Solutions Ltd t/a Kare Plus Romford,Home Care - Private Contractors Payment,502.82,0.00,COMMERCIAL SUPPLIER 
 18-10-2022,Adults,Home Sweet Home Care Ltd,Home Care - Private Contractors Payment,503.15,0.00,COMMERCIAL SUPPLIER 
 26-10-2022,Adults,Matrix SCM Ltd,Agency Staff,505.44,0.00,COMMERCIAL SUPPLIER 
 18-10-2022,Adults,Home Sweet Home Care Ltd,Home Care - Private Contractors Payment,508.40,0.00,COMMERCIAL SUPPLIER 
 21-10-2022,Adults,Infinite Healthcare Services Ltd.,Supported Other Accommodation - Private Contractors Payment,510.00,0.00,COMMERCIAL SUPPLIER 
 21-10-2022,Adults,Lodge Group Care UK Ltd,Home Care - Private Contractors Payment,511.35,0.00,COMMERCIAL SUPPLIER 
 09-10-2022,Adults,Homestead Care Service,Home Care - Private Contractors Payment,511.68,0.00,COMMERCIAL SUPPLIER 
 09-10-2022,Adults,Homestead Care Service,Home Care - Private Contractors Payment,511.68,0.00,COMMERCIAL SUPPLIER 
 18-10-2022,Adults,Home Sweet Home Care Ltd,Home Care - Private Contractors Payment,511.68,0.00,COMMERCIAL SUPPLIER 
 21-10-2022,Adults,Lodge Group Care UK Ltd,Home Care - Private Contractors Payment,511.68,0.00,COMMERCIAL SUPPLIER 
 21-10-2022,Adults,Lodge Group Care UK Ltd,Home Care - Private Contractors Payment,511.68,0.00,COMMERCIAL SUPPLIER 
 21-10-2022,Adults,Lodge Group Care UK Ltd,Home Care - Private Contractors Payment,511.68,0.00,COMMERCIAL SUPPLIER 
 21-10-2022,Adults,Lodge Group Care UK Ltd,Home Care - Private Contractors Payment,511.68,0.00,COMMERCIAL SUPPLIER 
 26-10-2022,Adults,Home Support Services (Havering & Essex) Ltd,Home Care - Private Contractors Payment,511.68,0.00,COMMERCIAL SUPPLIER 
 18-10-2022,Adults,Home Sweet Home Care Ltd,Home Care - Private Contractors Payment,512.34,0.00,COMMERCIAL SUPPLIER 
 21-10-2022,Adults,Topaz Care and Support Co Ltd,Supported Other Accommodation - Private Contractors Payment,514.08,0.00,COMMERCIAL SUPPLIER 
 18-10-2022,Adults,Home Sweet Home Care Ltd,Home Care - Private Contractors Payment,514.30,0.00,COMMERCIAL SUPPLIER 
 26-10-2022,Adults,Home Support Services (Havering & Essex) Ltd,Home Care - Private Contractors Payment,515.62,0.00,COMMERCIAL SUPPLIER 
 26-10-2022,Adults,Home Support Services (Havering & Essex) Ltd,Home Care - Private Contractors Payment,516.60,0.00,COMMERCIAL SUPPLIER 
 09-10-2022,Adults,Westminster Homecare Ltd_a,Home Care - Private Contractors Payment,518.24,0.00,COMMERCIAL SUPPLIER 
 19-10-2022,Adults,Matrix SCM Ltd,Agency Staff,518.28,0.00,COMMERCIAL SUPPLIER 
 09-10-2022,Adults,Westminster Homecare Ltd_a,Home Care - Private Contractors Payment,518.90,0.00,COMMERCIAL SUPPLIER 
 03-10-2022,Adults,Morepower Ltd t/a Aqs Homecare,Home Care - Private Contractors Payment,519.55,0.00,COMMERCIAL SUPPLIER 
 09-10-2022,Adults,Homestead Care Service,Home Care - Private Contractors Payment,519.88,0.00,COMMERCIAL SUPPLIER 
 10-10-2022,Adults,The Camden Society,Daycare - Private Contractors Payment,520.00,0.00,NON COMMERCIAL SUPPLIER 
 05-10-2022,Adults,Matrix SCM Ltd,Agency Staff,520.66,0.00,COMMERCIAL SUPPLIER 
 12-10-2022,Adults,Matrix SCM Ltd,Agency Staff,520.66,0.00,COMMERCIAL SUPPLIER 
 19-10-2022,Adults,Matrix SCM Ltd,Agency Staff,520.66,0.00,COMMERCIAL SUPPLIER 
 26-10-2022,Adults,Matrix SCM Ltd,Agency Staff,520.66,0.00,COMMERCIAL SUPPLIER 
 13-10-2022,Adults,Prestige Care & Support Ltd,Home Care - Private Contractors Payment,521.52,0.00,COMMERCIAL SUPPLIER 
 18-10-2022,Adults,Home Sweet Home Care Ltd,Home Care - Private Contractors Payment,521.52,0.00,COMMERCIAL SUPPLIER 
 21-10-2022,Adults,Lodge Group Care UK Ltd,Home Care - Private Contractors Payment,521.52,0.00,COMMERCIAL SUPPLIER 
 17-10-2022,Adults,Morepower Ltd t/a Aqs Homecare,Home Care - Private Contractors Payment,521.85,0.00,COMMERCIAL SUPPLIER 
 21-10-2022,Adults,Lodge Group Care UK Ltd,Home Care - Private Contractors Payment,521.85,0.00,COMMERCIAL SUPPLIER 
 09-10-2022,Adults,Homestead Care Service,Home Care - Private Contractors Payment,522.18,0.00,COMMERCIAL SUPPLIER 
 09-10-2022,Adults,Homestead Care Service,Home Care - Private Contractors Payment,522.18,0.00,COMMERCIAL SUPPLIER 
 09-10-2022,Adults,Homestead Care Service,Home Care - Private Contractors Payment,522.83,0.00,COMMERCIAL SUPPLIER 
 13-10-2022,Adults,Care-Away Ltd T/A Care Support,Home Care - Private Contractors Payment,524.16,0.00,COMMERCIAL SUPPLIER 
 09-10-2022,Adults,Homestead Care Service,Home Care - Private Contractors Payment,525.46,0.00,COMMERCIAL SUPPLIER 
 17-10-2022,Adults,Morepower Ltd t/a Aqs Homecare,Home Care - Private Contractors Payment,531.36,0.00,COMMERCIAL SUPPLIER 
 13-10-2022,Adults,Prestige Care & Support Ltd,Home Care - Private Contractors Payment,532.02,0.00,COMMERCIAL SUPPLIER 
 09-10-2022,Adults,Homestead Care Service,Home Care - Private Contractors Payment,532.34,0.00,COMMERCIAL SUPPLIER 
 09-10-2022,Adults,Homestead Care Service,Home Care - Private Contractors Payment,533.00,0.00,COMMERCIAL SUPPLIER 
 19-10-2022,Adults,Matrix SCM Ltd,Agency Staff,534.16,0.00,COMMERCIAL SUPPLIER 
 12-10-2022,Adults,Matrix SCM Ltd,Agency Staff,534.45,0.00,COMMERCIAL SUPPLIER 
 19-10-2022,Adults,Matrix SCM Ltd,Agency Staff,534.45,0.00,COMMERCIAL SUPPLIER 
 26-10-2022,Adults,Matrix SCM Ltd,Agency Staff,534.45,0.00,COMMERCIAL SUPPLIER 
 09-10-2022,Adults,Homestead Care Service,Home Care - Private Contractors Payment,534.97,0.00,COMMERCIAL SUPPLIER 
 03-10-2022,Adults,Morepower Ltd t/a Aqs Homecare,Home Care - Private Contractors Payment,535.30,0.00,COMMERCIAL SUPPLIER 
 18-10-2022,Adults,Home Sweet Home Care Ltd,Home Care - Private Contractors Payment,535.62,0.00,COMMERCIAL SUPPLIER 
 04-10-2022,Adults,Prior Care Ltd_a,Home Care - Private Contractors Payment,535.95,0.00,COMMERCIAL SUPPLIER 
 21-10-2022,Adults,Barleycroft Care Home Ltd,Residential Care Income,538.11,0.00,COMMERCIAL SUPPLIER 
 18-10-2022,Adults,Home Sweet Home Care Ltd,Home Care - Private Contractors Payment,538.58,0.00,COMMERCIAL SUPPLIER 
 04-10-2022,Adults,Prior Care Ltd_a,Home Care - Private Contractors Payment,541.20,0.00,COMMERCIAL SUPPLIER 
 09-10-2022,Adults,Homestead Care Service,Home Care - Private Contractors Payment,541.20,0.00,COMMERCIAL SUPPLIER 
 17-10-2022,Adults,Morepower Ltd t/a Aqs Homecare,Home Care - Private Contractors Payment,541.20,0.00,COMMERCIAL SUPPLIER 
 18-10-2022,Adults,Home Sweet Home Care Ltd,Home Care - Private Contractors Payment,541.20,0.00,COMMERCIAL SUPPLIER 
 18-10-2022,Adults,Home Sweet Home Care Ltd,Home Care - Private Contractors Payment,541.20,0.00,COMMERCIAL SUPPLIER 
 18-10-2022,Adults,Home Sweet Home Care Ltd,Home Care - Private Contractors Payment,541.20,0.00,COMMERCIAL SUPPLIER 
 21-10-2022,Adults,Lodge Group Care UK Ltd,Home Care - Private Contractors Payment,541.20,0.00,COMMERCIAL SUPPLIER 
 21-10-2022,Adults,Lodge Group Care UK Ltd,Home Care - Private Contractors Payment,541.20,0.00,COMMERCIAL SUPPLIER 
 21-10-2022,Adults,Lodge Group Care UK Ltd,Home Care - Private Contractors Payment,541.20,0.00,COMMERCIAL SUPPLIER 
 25-10-2022,Adults,Prior Care Ltd_a,Home Care - Private Contractors Payment,541.20,0.00,COMMERCIAL SUPPLIER 
 26-10-2022,Adults,Home Support Services (Havering & Essex) Ltd,Home Care - Private Contractors Payment,541.20,0.00,COMMERCIAL SUPPLIER 
 26-10-2022,Adults,Home Support Services (Havering & Essex) Ltd,Home Care - Private Contractors Payment,541.86,0.00,COMMERCIAL SUPPLIER 
 18-10-2022,Adults,Home Sweet Home Care Ltd,Home Care - Private Contractors Payment,542.18,0.00,COMMERCIAL SUPPLIER 
 14-10-2022,Adults,Cera Care Operations Ltd,Home Care - Private Contractors Payment,542.84,0.00,COMMERCIAL SUPPLIER 
 21-10-2022,Adults,Affinia Healthcare Ltd_a,Supported Other Accommodation - Private Contractors Payment,543.20,0.00,COMMERCIAL SUPPLIER 
 21-10-2022,Adults,Outlook Care - 76 Neave Crescent,Supported Other Accommodation - Private Contractors Payment,543.32,0.00,COMMERCIAL SUPPLIER 
 21-10-2022,Adults,Outlook Care - 76 Neave Crescent,Supported Other Accommodation - Private Contractors Payment,543.32,0.00,COMMERCIAL SUPPLIER 
 21-10-2022,Adults,Lodge Group Care UK Ltd,Home Care - Private Contractors Payment,543.82,0.00,COMMERCIAL SUPPLIER 
 03-10-2022,Adults,Morepower Ltd t/a Aqs Homecare,Home Care - Private Contractors Payment,544.15,0.00,COMMERCIAL SUPPLIER 
 12-10-2022,Adults,Hospiva Care & Associates Agency Ltd_a,Home Care - Private Contractors Payment,544.48,0.00,COMMERCIAL SUPPLIER 
 18-10-2022,Adults,Home Sweet Home Care Ltd,Home Care - Private Contractors Payment,545.46,0.00,COMMERCIAL SUPPLIER 
 14-10-2022,Adults,Cera Care Operations Ltd,Home Care - Private Contractors Payment,546.12,0.00,COMMERCIAL SUPPLIER 
 21-10-2022,Adults,Paradise Independent Living,Supported Other Accommodation - Private Contractors Payment,546.24,0.00,NON COMMERCIAL SUPPLIER 
 17-10-2022,Adults,Anytime Care 2020_a,Home Care - Private Contractors Payment,546.78,0.00,COMMERCIAL SUPPLIER 
 14-10-2022,Adults,Cera Care Operations Ltd,Home Care - Private Contractors Payment,547.10,0.00,COMMERCIAL SUPPLIER 
 09-10-2022,Adults,Homestead Care Service,Home Care - Private Contractors Payment,548.74,0.00,COMMERCIAL SUPPLIER 
 17-10-2022,Adults,Anytime Care 2020_a,Home Care - Private Contractors Payment,548.74,0.00,COMMERCIAL SUPPLIER 
 17-10-2022,Adults,Morepower Ltd t/a Aqs Homecare,Home Care - Private Contractors Payment,549.07,0.00,COMMERCIAL SUPPLIER 
 03-10-2022,Adults,Morepower Ltd t/a Aqs Homecare,Home Care - Private Contractors Payment,549.73,0.00,COMMERCIAL SUPPLIER 
 03-10-2022,Adults,Morepower Ltd t/a Aqs Homecare,Home Care - Private Contractors Payment,551.04,0.00,COMMERCIAL SUPPLIER 
 03-10-2022,Adults,Morepower Ltd t/a Aqs Homecare,Home Care - Private Contractors Payment,551.04,0.00,COMMERCIAL SUPPLIER 
 04-10-2022,Adults,Prior Care Ltd_a,Home Care - Private Contractors Payment,551.04,0.00,COMMERCIAL SUPPLIER 
 06-10-2022,Adults,Recruitcare Professionals Ltd ,Home Care - Private Contractors Payment,551.04,0.00,COMMERCIAL SUPPLIER 
 06-10-2022,Adults,Recruitcare Professionals Ltd ,Home Care - Private Contractors Payment,551.04,0.00,COMMERCIAL SUPPLIER 
 10-10-2022,Adults,Outreach Support Services Ltd,Home Care - Private Contractors Payment,551.04,0.00,COMMERCIAL SUPPLIER 
 10-10-2022,Adults,Outreach Support Services Ltd,Home Care - Private Contractors Payment,551.04,0.00,COMMERCIAL SUPPLIER 
 10-10-2022,Adults,Outreach Support Services Ltd,Home Care - Private Contractors Payment,551.04,0.00,COMMERCIAL SUPPLIER 
 10-10-2022,Adults,Outreach Support Services Ltd,Home Care - Private Contractors Payment,551.04,0.00,COMMERCIAL SUPPLIER 
 10-10-2022,Adults,Outreach Support Services Ltd,Home Care - Private Contractors Payment,551.04,0.00,COMMERCIAL SUPPLIER 
 10-10-2022,Adults,Passion Tree Care Services Ltd,Home Care - Private Contractors Payment,551.04,0.00,COMMERCIAL SUPPLIER 
 10-10-2022,Adults,Passion Tree Care Services Ltd,Home Care - Private Contractors Payment,551.04,0.00,COMMERCIAL SUPPLIER 
 10-10-2022,Adults,Passion Tree Care Services Ltd,Home Care - Private Contractors Payment,551.04,0.00,COMMERCIAL SUPPLIER 
 10-10-2022,Adults,Passion Tree Care Services Ltd,Home Care - Private Contractors Payment,551.04,0.00,COMMERCIAL SUPPLIER 
 10-10-2022,Adults,Passion Tree Care Services Ltd,Home Care - Private Contractors Payment,551.04,0.00,COMMERCIAL SUPPLIER 
 10-10-2022,Adults,Passion Tree Care Services Ltd,Home Care - Private Contractors Payment,551.04,0.00,COMMERCIAL SUPPLIER 
 12-10-2022,Adults,Hospiva Care & Associates Agency Ltd_a,Home Care - Private Contractors Payment,551.04,0.00,COMMERCIAL SUPPLIER 
 12-10-2022,Adults,Hospiva Care & Associates Agency Ltd_a,Home Care - Private Contractors Payment,551.04,0.00,COMMERCIAL SUPPLIER 
 12-10-2022,Adults,Hospiva Care & Associates Agency Ltd_a,Home Care - Private Contractors Payment,551.04,0.00,COMMERCIAL SUPPLIER 
 12-10-2022,Adults,Hospiva Care & Associates Agency Ltd_a,Home Care - Private Contractors Payment,551.04,0.00,COMMERCIAL SUPPLIER 
 12-10-2022,Adults,Hospiva Care & Associates Agency Ltd_a,Home Care - Private Contractors Payment,551.04,0.00,COMMERCIAL SUPPLIER 
 13-10-2022,Adults,Prestige Care & Support Ltd,Home Care - Private Contractors Payment,551.04,0.00,COMMERCIAL SUPPLIER 
 13-10-2022,Adults,Prestige Care & Support Ltd,Home Care - Private Contractors Payment,551.04,0.00,COMMERCIAL SUPPLIER 
 13-10-2022,Adults,Prestige Care & Support Ltd,Home Care - Private Contractors Payment,551.04,0.00,COMMERCIAL SUPPLIER 
 13-10-2022,Adults,Inna Care Ltd,Home Care - Private Contractors Payment,551.04,0.00,COMMERCIAL SUPPLIER 
 13-10-2022,Adults,Inna Care Ltd,Home Care - Private Contractors Payment,551.04,0.00,COMMERCIAL SUPPLIER 
 13-10-2022,Adults,Inna Care Ltd,Home Care - Private Contractors Payment,551.04,0.00,COMMERCIAL SUPPLIER 
 13-10-2022,Adults,Inna Care Ltd,Home Care - Private Contractors Payment,551.04,0.00,COMMERCIAL SUPPLIER 
 14-10-2022,Adults,London Care Plc_a,Home Care - Private Contractors Payment,551.04,0.00,COMMERCIAL SUPPLIER 
 14-10-2022,Adults,Cera Care Operations Ltd,Home Care - Private Contractors Payment,551.04,0.00,COMMERCIAL SUPPLIER 
 14-10-2022,Adults,Cera Care Operations Ltd,Home Care - Private Contractors Payment,551.04,0.00,COMMERCIAL SUPPLIER 
 17-10-2022,Adults,Rosemont Care Limited,Home Care - Private Contractors Payment,551.04,0.00,COMMERCIAL SUPPLIER 
 18-10-2022,Adults,Home Sweet Home Care Ltd,Home Care - Private Contractors Payment,551.04,0.00,COMMERCIAL SUPPLIER 
 18-10-2022,Adults,Home Sweet Home Care Ltd,Home Care - Private Contractors Payment,551.04,0.00,COMMERCIAL SUPPLIER 
 18-10-2022,Adults,Home Sweet Home Care Ltd,Home Care - Private Contractors Payment,551.04,0.00,COMMERCIAL SUPPLIER 
 18-10-2022,Adults,Home Sweet Home Care Ltd,Home Care - Private Contractors Payment,551.04,0.00,COMMERCIAL SUPPLIER 
 18-10-2022,Adults,Home Sweet Home Care Ltd,Home Care - Private Contractors Payment,551.04,0.00,COMMERCIAL SUPPLIER 
 18-10-2022,Adults,Home Sweet Home Care Ltd,Home Care - Private Contractors Payment,551.04,0.00,COMMERCIAL SUPPLIER 
 18-10-2022,Adults,Home Sweet Home Care Ltd,Home Care - Private Contractors Payment,551.04,0.00,COMMERCIAL SUPPLIER 
 18-10-2022,Adults,Home Sweet Home Care Ltd,Home Care - Private Contractors Payment,551.04,0.00,COMMERCIAL SUPPLIER 
 21-10-2022,Adults,Lodge Group Care UK Ltd,Home Care - Private Contractors Payment,551.04,0.00,COMMERCIAL SUPPLIER 
 21-10-2022,Adults,Lodge Group Care UK Ltd,Home Care - Private Contractors Payment,551.04,0.00,COMMERCIAL SUPPLIER 
 21-10-2022,Adults,Lodge Group Care UK Ltd,Home Care - Private Contractors Payment,551.04,0.00,COMMERCIAL SUPPLIER 
 21-10-2022,Adults,Lodge Group Care UK Ltd,Home Care - Private Contractors Payment,551.04,0.00,COMMERCIAL SUPPLIER 
 24-10-2022,Adults,John Stanleys Care Agency Ltd,Home Care - Private Contractors Payment,551.04,0.00,COMMERCIAL SUPPLIER 
 26-10-2022,Adults,Home Support Services (Havering & Essex) Ltd,Home Care - Private Contractors Payment,551.04,0.00,COMMERCIAL SUPPLIER 
 03-10-2022,Adults,Morepower Ltd t/a Aqs Homecare,Home Care - Private Contractors Payment,551.37,0.00,COMMERCIAL SUPPLIER 
 14-10-2022,Adults,Cera Care Operations Ltd,Home Care - Private Contractors Payment,551.37,0.00,COMMERCIAL SUPPLIER 
 17-10-2022,Adults,Morepower Ltd t/a Aqs Homecare,Home Care - Private Contractors Payment,551.37,0.00,COMMERCIAL SUPPLIER 
 21-10-2022,Adults,Lodge Group Care UK Ltd,Home Care - Private Contractors Payment,551.37,0.00,COMMERCIAL SUPPLIER 
 26-10-2022,Adults,Home Support Services (Havering & Essex) Ltd,Home Care - Private Contractors Payment,551.37,0.00,COMMERCIAL SUPPLIER 
 13-10-2022,Adults,Prestige Care & Support Ltd,Home Care - Private Contractors Payment,551.70,0.00,COMMERCIAL SUPPLIER 
 13-10-2022,Adults,Prestige Care & Support Ltd,Home Care - Private Contractors Payment,551.70,0.00,COMMERCIAL SUPPLIER 
 14-10-2022,Adults,Cera Care Operations Ltd,Home Care - Private Contractors Payment,552.02,0.00,COMMERCIAL SUPPLIER 
 21-10-2022,Adults,Lodge Group Care UK Ltd,Home Care - Private Contractors Payment,552.02,0.00,COMMERCIAL SUPPLIER 
 13-10-2022,Adults,Prestige Care & Support Ltd,Home Care - Private Contractors Payment,552.35,0.00,COMMERCIAL SUPPLIER 
 14-10-2022,Adults,Cera Care Operations Ltd,Home Care - Private Contractors Payment,552.35,0.00,COMMERCIAL SUPPLIER 
 21-10-2022,Adults,Lodge Group Care UK Ltd,Home Care - Private Contractors Payment,552.68,0.00,COMMERCIAL SUPPLIER 
 26-10-2022,Adults,Home Support Services (Havering & Essex) Ltd,Home Care - Private Contractors Payment,552.68,0.00,COMMERCIAL SUPPLIER 
 09-10-2022,Adults,Homestead Care Service,Home Care - Private Contractors Payment,553.01,0.00,COMMERCIAL SUPPLIER 
 26-10-2022,Adults,Home Support Services (Havering & Essex) Ltd,Home Care - Private Contractors Payment,553.01,0.00,COMMERCIAL SUPPLIER 
 09-10-2022,Adults,Homestead Care Service,Home Care - Private Contractors Payment,553.66,0.00,COMMERCIAL SUPPLIER 
 17-10-2022,Adults,Morepower Ltd t/a Aqs Homecare,Home Care - Private Contractors Payment,553.66,0.00,COMMERCIAL SUPPLIER 
 26-10-2022,Adults,Home Support Services (Havering & Essex) Ltd,Home Care - Private Contractors Payment,553.66,0.00,COMMERCIAL SUPPLIER 
 26-10-2022,Adults,Home Support Services (Havering & Essex) Ltd,Home Care - Private Contractors Payment,553.66,0.00,COMMERCIAL SUPPLIER 
 13-10-2022,Adults,Prestige Care & Support Ltd,Home Care - Private Contractors Payment,553.99,0.00,COMMERCIAL SUPPLIER 
 25-10-2022,Adults,Prior Care Ltd_a,Home Care - Private Contractors Payment,554.65,0.00,COMMERCIAL SUPPLIER 
 26-10-2022,Adults,Home Support Services (Havering & Essex) Ltd,Home Care - Private Contractors Payment,554.65,0.00,COMMERCIAL SUPPLIER 
 18-10-2022,Adults,Home Sweet Home Care Ltd,Home Care - Private Contractors Payment,555.30,0.00,COMMERCIAL SUPPLIER 
 26-10-2022,Adults,Home Support Services (Havering & Essex) Ltd,Home Care - Private Contractors Payment,555.30,0.00,COMMERCIAL SUPPLIER 
 17-10-2022,Adults,Anytime Care 2020_a,Home Care - Private Contractors Payment,555.63,0.00,COMMERCIAL SUPPLIER 
 17-10-2022,Adults,Anytime Care 2020_a,Home Care - Private Contractors Payment,555.96,0.00,COMMERCIAL SUPPLIER 
 18-10-2022,Adults,Home Sweet Home Care Ltd,Home Care - Private Contractors Payment,556.29,0.00,COMMERCIAL SUPPLIER 
 26-10-2022,Adults,Home Support Services (Havering & Essex) Ltd,Home Care - Private Contractors Payment,556.29,0.00,COMMERCIAL SUPPLIER 
 21-10-2022,Adults,Lodge Group Care UK Ltd,Home Care - Private Contractors Payment,556.94,0.00,COMMERCIAL SUPPLIER 
 21-10-2022,Adults,Lodge Group Care UK Ltd,Home Care - Private Contractors Payment,556.94,0.00,COMMERCIAL SUPPLIER 
 25-10-2022,Adults,Prior Care Ltd_a,Home Care - Private Contractors Payment,556.94,0.00,COMMERCIAL SUPPLIER 
 13-10-2022,Adults,Prestige Care & Support Ltd,Home Care - Private Contractors Payment,557.27,0.00,COMMERCIAL SUPPLIER 
 17-10-2022,Adults,Anytime Care 2020_a,Home Care - Private Contractors Payment,557.27,0.00,COMMERCIAL SUPPLIER 
 03-10-2022,Adults,Morepower Ltd t/a Aqs Homecare,Home Care - Private Contractors Payment,557.60,0.00,COMMERCIAL SUPPLIER 
 09-10-2022,Adults,Homestead Care Service,Home Care - Private Contractors Payment,557.60,0.00,COMMERCIAL SUPPLIER 
 18-10-2022,Adults,Home Sweet Home Care Ltd,Home Care - Private Contractors Payment,557.60,0.00,COMMERCIAL SUPPLIER 
 24-10-2022,Adults,John Stanleys Care Agency Ltd,Home Care - Private Contractors Payment,557.93,0.00,COMMERCIAL SUPPLIER 
 14-10-2022,Adults,Quality Healthcare Solutions Ltd t/a Kare Plus Romford,Home Care - Private Contractors Payment,558.58,0.00,COMMERCIAL SUPPLIER 
 03-10-2022,Adults,Morepower Ltd t/a Aqs Homecare,Home Care - Private Contractors Payment,558.91,0.00,COMMERCIAL SUPPLIER 
 03-10-2022,Adults,Morepower Ltd t/a Aqs Homecare,Home Care - Private Contractors Payment,559.24,0.00,COMMERCIAL SUPPLIER 
 21-10-2022,Adults,DMP Healthcare (Cherry Orchard) Ltd,Nursing Homes - Private Contractors Payment,560.25,0.00,COMMERCIAL SUPPLIER 
 04-10-2022,Adults,Prior Care Ltd_a,Home Care - Private Contractors Payment,560.55,0.00,COMMERCIAL SUPPLIER 
 18-10-2022,Adults,Home Sweet Home Care Ltd,Home Care - Private Contractors Payment,560.88,0.00,COMMERCIAL SUPPLIER 
 18-10-2022,Adults,Home Sweet Home Care Ltd,Home Care - Private Contractors Payment,560.88,0.00,COMMERCIAL SUPPLIER 
 18-10-2022,Adults,Home Sweet Home Care Ltd,Home Care - Private Contractors Payment,560.88,0.00,COMMERCIAL SUPPLIER 
 26-10-2022,Adults,Home Support Services (Havering & Essex) Ltd,Home Care - Private Contractors Payment,560.88,0.00,COMMERCIAL SUPPLIER 
 26-10-2022,Adults,Matrix SCM Ltd,Agency Staff,561.28,0.00,COMMERCIAL SUPPLIER 
 04-10-2022,Adults,Prior Care Ltd_a,Home Care - Private Contractors Payment,562.52,0.00,COMMERCIAL SUPPLIER 
 14-10-2022,Adults,Quality Healthcare Solutions Ltd t/a Kare Plus Romford,Home Care - Private Contractors Payment,562.85,0.00,COMMERCIAL SUPPLIER 
 21-10-2022,Adults,Lodge Group Care UK Ltd,Home Care - Private Contractors Payment,562.85,0.00,COMMERCIAL SUPPLIER 
 26-10-2022,Adults,Home Support Services (Havering & Essex) Ltd,Home Care - Private Contractors Payment,562.85,0.00,COMMERCIAL SUPPLIER 
 14-10-2022,Adults,Cera Care Operations Ltd,Home Care - Private Contractors Payment,563.18,0.00,COMMERCIAL SUPPLIER 
 26-10-2022,Adults,Home Support Services (Havering & Essex) Ltd,Home Care - Private Contractors Payment,563.83,0.00,COMMERCIAL SUPPLIER 
 26-10-2022,Adults,Home Support Services (Havering & Essex) Ltd,Home Care - Private Contractors Payment,564.16,0.00,COMMERCIAL SUPPLIER 
 17-10-2022,Adults,Morepower Ltd t/a Aqs Homecare,Home Care - Private Contractors Payment,564.82,0.00,COMMERCIAL SUPPLIER 
 17-10-2022,Adults,Morepower Ltd t/a Aqs Homecare,Home Care - Private Contractors Payment,565.14,0.00,COMMERCIAL SUPPLIER 
 24-10-2022,Adults,John Stanleys Care Agency Ltd,Home Care - Private Contractors Payment,566.46,0.00,COMMERCIAL SUPPLIER 
 04-10-2022,Adults,Prior Care Ltd_a,Home Care - Private Contractors Payment,567.77,0.00,COMMERCIAL SUPPLIER 
 26-10-2022,Adults,Home Support Services (Havering & Essex) Ltd,Home Care - Private Contractors Payment,568.42,0.00,COMMERCIAL SUPPLIER 
 21-10-2022,Adults,Raynet Recruitment Agency Ltd,Supported Other Accommodation - Private Contractors Payment,568.56,0.00,COMMERCIAL SUPPLIER 
 26-10-2022,Adults,Home Support Services (Havering & Essex) Ltd,Home Care - Private Contractors Payment,568.75,0.00,COMMERCIAL SUPPLIER 
 19-10-2022,Adults,Matrix SCM Ltd,Agency Staff,569.18,0.00,COMMERCIAL SUPPLIER 
 26-10-2022,Adults,Matrix SCM Ltd,Agency Staff,569.91,0.00,COMMERCIAL SUPPLIER 
 14-10-2022,Adults,Care-Away Ltd T/A Care Support,Home Care - Private Contractors Payment,569.92,0.00,COMMERCIAL SUPPLIER 
 10-10-2022,Adults,Tapestry_a.,Daycare - Private Contractors Payment,570.00,0.00,COMMERCIAL SUPPLIER 
 14-10-2022,Adults,Cera Care Operations Ltd,Home Care - Private Contractors Payment,570.72,0.00,COMMERCIAL SUPPLIER 
 21-10-2022,Adults,Lodge Group Care UK Ltd,Home Care - Private Contractors Payment,570.72,0.00,COMMERCIAL SUPPLIER 
 18-10-2022,Adults,Home Sweet Home Care Ltd,Home Care - Private Contractors Payment,571.70,0.00,COMMERCIAL SUPPLIER 
 21-10-2022,Adults,Lodge Group Care UK Ltd,Home Care - Private Contractors Payment,571.70,0.00,COMMERCIAL SUPPLIER 
 21-10-2022,Adults,Lodge Group Care UK Ltd,Home Care - Private Contractors Payment,573.02,0.00,COMMERCIAL SUPPLIER 
 14-10-2022,Adults,Cera Care Operations Ltd,Home Care - Private Contractors Payment,574.98,0.00,COMMERCIAL SUPPLIER 
 21-10-2022,Adults,Lodge Group Care UK Ltd,Home Care - Private Contractors Payment,575.97,0.00,COMMERCIAL SUPPLIER 
 21-10-2022,Adults,Lodge Group Care UK Ltd,Home Care - Private Contractors Payment,576.30,0.00,COMMERCIAL SUPPLIER 
 09-10-2022,Adults,Homestead Care Service,Home Care - Private Contractors Payment,578.26,0.00,COMMERCIAL SUPPLIER 
 05-10-2022,Adults,Kent County Council,Private Contractors Payment - Other,581.04,0.00,LOCAL AUTHORITY SERVICES 
 21-10-2022,Adults,Lodge Group Care UK Ltd,Home Care - Private Contractors Payment,581.22,0.00,COMMERCIAL SUPPLIER 
 14-10-2022,Adults,Care-Away Ltd T/A Care Support,Home Care - Private Contractors Payment,582.40,0.00,COMMERCIAL SUPPLIER 
 14-10-2022,Adults,Care-Away Ltd T/A Care Support,Home Care - Private Contractors Payment,582.40,0.00,COMMERCIAL SUPPLIER 
 14-10-2022,Adults,Care-Away Ltd T/A Care Support,Home Care - Private Contractors Payment,582.40,0.00,COMMERCIAL SUPPLIER 
 14-10-2022,Adults,Care-Away Ltd T/A Care Support,Home Care - Private Contractors Payment,582.40,0.00,COMMERCIAL SUPPLIER 
 26-10-2022,Adults,Home Support Services (Havering & Essex) Ltd,Home Care - Private Contractors Payment,584.17,0.00,COMMERCIAL SUPPLIER 
 09-10-2022,Adults,Homestead Care Service,Home Care - Private Contractors Payment,584.82,0.00,COMMERCIAL SUPPLIER 
 26-10-2022,Adults,Home Support Services (Havering & Essex) Ltd,Home Care - Private Contractors Payment,585.81,0.00,COMMERCIAL SUPPLIER 
 12-10-2022,Adults,Matrix SCM Ltd,Agency Staff,586.16,0.00,COMMERCIAL SUPPLIER 
 21-10-2022,Adults,Lodge Group Care UK Ltd,Home Care - Private Contractors Payment,586.79,0.00,COMMERCIAL SUPPLIER 
 09-10-2022,Adults,Homestead Care Service,Home Care - Private Contractors Payment,587.12,0.00,COMMERCIAL SUPPLIER 
 14-10-2022,Adults,London Care Plc_a,Home Care - Private Contractors Payment,588.76,0.00,COMMERCIAL SUPPLIER 
 21-10-2022,Adults,Lodge Group Care UK Ltd,Home Care - Private Contractors Payment,589.74,0.00,COMMERCIAL SUPPLIER 
 18-10-2022,Adults,Home Sweet Home Care Ltd,Home Care - Private Contractors Payment,590.07,0.00,COMMERCIAL SUPPLIER 
 04-10-2022,Adults,Prior Care Ltd_a,Home Care - Private Contractors Payment,590.40,0.00,COMMERCIAL SUPPLIER 
 09-10-2022,Adults,Homestead Care Service,Home Care - Private Contractors Payment,590.40,0.00,COMMERCIAL SUPPLIER 
 10-10-2022,Adults,London Homecare Ltd,Home Care - Private Contractors Payment,590.40,0.00,COMMERCIAL SUPPLIER 
 25-10-2022,Adults,Prior Care Ltd_a,Home Care - Private Contractors Payment,590.40,0.00,COMMERCIAL SUPPLIER 
 03-10-2022,Adults,Morepower Ltd t/a Aqs Homecare,Home Care - Private Contractors Payment,591.71,0.00,COMMERCIAL SUPPLIER 
 24-10-2022,Adults,John Stanleys Care Agency Ltd,Home Care - Private Contractors Payment,592.70,0.00,COMMERCIAL SUPPLIER 
 17-10-2022,Adults,Morepower Ltd t/a Aqs Homecare,Home Care - Private Contractors Payment,593.35,0.00,COMMERCIAL SUPPLIER 
 18-10-2022,Adults,Home Sweet Home Care Ltd,Home Care - Private Contractors Payment,593.68,0.00,COMMERCIAL SUPPLIER 
 12-10-2022,Adults,Matrix SCM Ltd,Agency Staff,594.65,0.00,COMMERCIAL SUPPLIER 
 13-10-2022,Adults,Prestige Care & Support Ltd,Home Care - Private Contractors Payment,595.32,0.00,COMMERCIAL SUPPLIER 
 09-10-2022,Adults,Westminster Homecare Ltd_a,Home Care - Private Contractors Payment,595.65,0.00,COMMERCIAL SUPPLIER 
 21-10-2022,Adults,Lodge Lane Care Home Limited,Residential Placements - Private Contractors Payment,595.71,0.00,COMMERCIAL SUPPLIER 
 24-10-2022,Adults,John Stanleys Care Agency Ltd,Home Care - Private Contractors Payment,596.30,0.00,COMMERCIAL SUPPLIER 
 13-10-2022,Adults,Prestige Care & Support Ltd,Home Care - Private Contractors Payment,596.96,0.00,COMMERCIAL SUPPLIER 
 21-10-2022,Adults,Lodge Group Care UK Ltd,Home Care - Private Contractors Payment,598.60,0.00,COMMERCIAL SUPPLIER 
 14-10-2022,Adults,Care-Away Ltd T/A Care Support,Home Care - Private Contractors Payment,599.04,0.00,COMMERCIAL SUPPLIER 
 21-10-2022,Adults,Lodge Group Care UK Ltd,Home Care - Private Contractors Payment,599.91,0.00,COMMERCIAL SUPPLIER 
 21-10-2022,Adults,Langley House,Other Short Term Support,600.00,0.00,COMMERCIAL SUPPLIER 
 21-10-2022,Adults,Priory Supporting Care Ltd,Other Short Term Support,600.00,0.00,COMMERCIAL SUPPLIER 
 21-10-2022,Adults,Emerson Court_a,Other Short Term Support,600.00,0.00,COMMERCIAL SUPPLIER 
 24-10-2022,Adults,EC Romford Holdings Ltd,Other Short Term Support,600.00,0.00,COMMERCIAL SUPPLIER 
 25-10-2022,Adults,Prior Care Ltd_a,Home Care - Private Contractors Payment,600.57,0.00,COMMERCIAL SUPPLIER 
 25-10-2022,Adults,Prior Care Ltd_a,Home Care - Private Contractors Payment,600.57,0.00,COMMERCIAL SUPPLIER 
 09-10-2022,Adults,Homestead Care Service,Home Care - Private Contractors Payment,601.55,0.00,COMMERCIAL SUPPLIER 
 21-10-2022,Adults,Lodge Group Care UK Ltd,Home Care - Private Contractors Payment,601.88,0.00,COMMERCIAL SUPPLIER 
 09-10-2022,Adults,Homestead Care Service,Home Care - Private Contractors Payment,602.54,0.00,COMMERCIAL SUPPLIER 
 24-10-2022,Adults,John Stanleys Care Agency Ltd,Home Care - Private Contractors Payment,603.52,0.00,COMMERCIAL SUPPLIER 
 14-10-2022,Adults,Quality Healthcare Solutions Ltd t/a Kare Plus Romford,Home Care - Private Contractors Payment,604.18,0.00,COMMERCIAL SUPPLIER 
 17-10-2022,Adults,Anytime Care 2020_a,Home Care - Private Contractors Payment,608.11,0.00,COMMERCIAL SUPPLIER 
 17-10-2022,Adults,Morepower Ltd t/a Aqs Homecare,Home Care - Private Contractors Payment,609.75,0.00,COMMERCIAL SUPPLIER 
 24-10-2022,Adults,John Stanleys Care Agency Ltd,Home Care - Private Contractors Payment,609.75,0.00,COMMERCIAL SUPPLIER 
 28-10-2022,Adults,Achieve Together  Ltd - Westcliffe Villas,Residential Placements - Private Contractors Payment,611.25,0.00,COMMERCIAL SUPPLIER 
 19-10-2022,Adults,Matrix SCM Ltd,Agency Staff,611.64,0.00,COMMERCIAL SUPPLIER 
 05-10-2022,Adults,Matrix SCM Ltd,Agency Staff,611.65,0.00,COMMERCIAL SUPPLIER 
 12-10-2022,Adults,Matrix SCM Ltd,Agency Staff,611.65,0.00,COMMERCIAL SUPPLIER 
 26-10-2022,Adults,Matrix SCM Ltd,Agency Staff,611.65,0.00,COMMERCIAL SUPPLIER 
 26-10-2022,Adults,Matrix SCM Ltd,Agency Staff,611.65,0.00,COMMERCIAL SUPPLIER 
 05-10-2022,Adults,Matrix SCM Ltd,Agency Staff,612.35,0.00,COMMERCIAL SUPPLIER 
 12-10-2022,Adults,Matrix SCM Ltd,Agency Staff,612.35,0.00,COMMERCIAL SUPPLIER 
 19-10-2022,Adults,Matrix SCM Ltd,Agency Staff,612.35,0.00,COMMERCIAL SUPPLIER 
 26-10-2022,Adults,Matrix SCM Ltd,Agency Staff,612.35,0.00,COMMERCIAL SUPPLIER 
 26-10-2022,Adults,Home Support Services (Havering & Essex) Ltd,Home Care - Private Contractors Payment,612.70,0.00,COMMERCIAL SUPPLIER 
 03-10-2022,Adults,Morepower Ltd t/a Aqs Homecare,Home Care - Private Contractors Payment,618.28,0.00,COMMERCIAL SUPPLIER 
 13-10-2022,Adults,Prestige Care & Support Ltd,Home Care - Private Contractors Payment,618.61,0.00,COMMERCIAL SUPPLIER 
 09-10-2022,Adults,Homestead Care Service,Home Care - Private Contractors Payment,619.92,0.00,COMMERCIAL SUPPLIER 
 18-10-2022,Adults,Home Sweet Home Care Ltd,Home Care - Private Contractors Payment,619.92,0.00,COMMERCIAL SUPPLIER 
 19-10-2022,Adults,Action First Assessments Ltd,Private Contractors Payment - Other,620.00,0.00,COMMERCIAL SUPPLIER 
 19-10-2022,Adults,Action First Assessments Ltd,Private Contractors Payment - Other,620.00,0.00,COMMERCIAL SUPPLIER 
 19-10-2022,Adults,Action First Assessments Ltd,Private Contractors Payment - Other,620.00,0.00,COMMERCIAL SUPPLIER 
 21-10-2022,Adults,Fountains Care Centre - Bondcare,Nursing Homes - Private Contractors Payment,620.00,0.00,COMMERCIAL SUPPLIER 
 12-10-2022,Adults,Matrix SCM Ltd,Agency Staff,622.08,0.00,COMMERCIAL SUPPLIER 
 19-10-2022,Adults,Matrix SCM Ltd,Agency Staff,622.08,0.00,COMMERCIAL SUPPLIER 
 26-10-2022,Adults,Matrix SCM Ltd,Agency Staff,622.08,0.00,COMMERCIAL SUPPLIER 
 03-10-2022,Adults,Morepower Ltd t/a Aqs Homecare,Home Care - Private Contractors Payment,623.53,0.00,COMMERCIAL SUPPLIER 
 21-10-2022,Adults,Lodge Group Care UK Ltd,Home Care - Private Contractors Payment,624.18,0.00,COMMERCIAL SUPPLIER 
 21-10-2022,Adults,Lodge Group Care UK Ltd,Home Care - Private Contractors Payment,625.17,0.00,COMMERCIAL SUPPLIER 
 10-10-2022,Adults,Tapestry_a.,Daycare - Private Contractors Payment,627.00,0.00,COMMERCIAL SUPPLIER 
 10-10-2022,Adults,Tapestry_a.,Daycare - Private Contractors Payment,627.00,0.00,COMMERCIAL SUPPLIER 
 21-10-2022,Adults,Barleycroft Care Home Ltd,Residential Care Income,627.80,0.00,COMMERCIAL SUPPLIER 
 21-10-2022,Adults,Barleycroft Care Home Ltd,Residential Care Income,627.80,0.00,COMMERCIAL SUPPLIER 
 21-10-2022,Adults,Barleycroft Care Home Ltd,Residential Care Income,627.80,0.00,COMMERCIAL SUPPLIER 
 21-10-2022,Adults,Barleycroft Care Home Ltd,Residential Care Income,627.80,0.00,COMMERCIAL SUPPLIER 
 21-10-2022,Adults,Barleycroft Care Home Ltd,Residential Care Income,627.80,0.00,COMMERCIAL SUPPLIER 
 12-10-2022,Adults,Matrix SCM Ltd,Agency Staff,628.50,0.00,COMMERCIAL SUPPLIER 
 17-10-2022,Adults,Morepower Ltd t/a Aqs Homecare,Home Care - Private Contractors Payment,629.10,0.00,COMMERCIAL SUPPLIER 
 09-10-2022,Adults,Homestead Care Service,Home Care - Private Contractors Payment,629.43,0.00,COMMERCIAL SUPPLIER 
 13-10-2022,Adults,Inna Care Ltd,Home Care - Private Contractors Payment,629.76,0.00,COMMERCIAL SUPPLIER 
 21-10-2022,Adults,Lodge Group Care UK Ltd,Home Care - Private Contractors Payment,629.76,0.00,COMMERCIAL SUPPLIER 
 21-10-2022,Adults,Lodge Group Care UK Ltd,Home Care - Private Contractors Payment,629.76,0.00,COMMERCIAL SUPPLIER 
 24-10-2022,Adults,John Stanleys Care Agency Ltd,Home Care - Private Contractors Payment,629.76,0.00,COMMERCIAL SUPPLIER 
 26-10-2022,Adults,Home Support Services (Havering & Essex) Ltd,Home Care - Private Contractors Payment,629.76,0.00,COMMERCIAL SUPPLIER 
 21-10-2022,Adults,Cygnet Health Care,Residential Placements - Private Contractors Payment,630.00,0.00,COMMERCIAL SUPPLIER 
 17-10-2022,Adults,Morepower Ltd t/a Aqs Homecare,Home Care - Private Contractors Payment,631.73,0.00,COMMERCIAL SUPPLIER 
 05-10-2022,Adults,Matrix SCM Ltd,Agency Staff,632.90,0.00,COMMERCIAL SUPPLIER 
 19-10-2022,Adults,Matrix SCM Ltd,Agency Staff,632.90,0.00,COMMERCIAL SUPPLIER 
 21-10-2022,Adults,Lodge Group Care UK Ltd,Home Care - Private Contractors Payment,633.70,0.00,COMMERCIAL SUPPLIER 
 21-10-2022,Adults,Lodge Group Care UK Ltd,Home Care - Private Contractors Payment,639.93,0.00,COMMERCIAL SUPPLIER 
 04-10-2022,Adults,Romford Private Hire Ltd,Client Transport,640.00,0.00,COMMERCIAL SUPPLIER 
 14-10-2022,Adults,Cera Care Operations Ltd,Home Care - Private Contractors Payment,640.26,0.00,COMMERCIAL SUPPLIER 
 14-10-2022,Adults,Care-Away Ltd T/A Care Support,Home Care - Private Contractors Payment,640.64,0.00,COMMERCIAL SUPPLIER 
 27-10-2022,Adults,Greenham Trading Ltd,Cleaning Materials,641.60,0.00,COMMERCIAL SUPPLIER 
 26-10-2022,Adults,Home Support Services (Havering & Essex) Ltd,Home Care - Private Contractors Payment,642.88,0.00,COMMERCIAL SUPPLIER 
 13-10-2022,Adults,Prestige Care & Support Ltd,Home Care - Private Contractors Payment,643.54,0.00,COMMERCIAL SUPPLIER 
 12-10-2022,Adults,Cera Care Operations Ltd,Home Care - Private Contractors Payment,646.12,0.00,COMMERCIAL SUPPLIER 
 09-10-2022,Adults,Homestead Care Service,Home Care - Private Contractors Payment,647.14,0.00,COMMERCIAL SUPPLIER 
 21-10-2022,Adults,Lodge Group Care UK Ltd,Home Care - Private Contractors Payment,648.46,0.00,COMMERCIAL SUPPLIER 
 09-10-2022,Adults,Homestead Care Service,Home Care - Private Contractors Payment,649.44,0.00,COMMERCIAL SUPPLIER 
 21-10-2022,Adults,Lodge Group Care UK Ltd,Home Care - Private Contractors Payment,649.44,0.00,COMMERCIAL SUPPLIER 
 03-10-2022,Adults,Morepower Ltd t/a Aqs Homecare,Home Care - Private Contractors Payment,651.74,0.00,COMMERCIAL SUPPLIER 
 18-10-2022,Adults,Home Sweet Home Care Ltd,Home Care - Private Contractors Payment,652.39,0.00,COMMERCIAL SUPPLIER 
 12-10-2022,Adults,Matrix SCM Ltd,Agency Staff,657.73,0.00,COMMERCIAL SUPPLIER 
 19-10-2022,Adults,Matrix SCM Ltd,Agency Staff,657.73,0.00,COMMERCIAL SUPPLIER 
 26-10-2022,Adults,Matrix SCM Ltd,Agency Staff,657.73,0.00,COMMERCIAL SUPPLIER 
 21-10-2022,Adults,Lodge Group Care UK Ltd,Home Care - Private Contractors Payment,658.95,0.00,COMMERCIAL SUPPLIER 
 09-10-2022,Adults,Homestead Care Service,Home Care - Private Contractors Payment,659.28,0.00,COMMERCIAL SUPPLIER 
 09-10-2022,Adults,Homestead Care Service,Home Care - Private Contractors Payment,659.28,0.00,COMMERCIAL SUPPLIER 
 18-10-2022,Adults,Home Sweet Home Care Ltd,Home Care - Private Contractors Payment,659.61,0.00,COMMERCIAL SUPPLIER 
 06-10-2022,Adults,Pristine Care London Ltd ,Daycare - Private Contractors Payment,660.00,0.00,COMMERCIAL SUPPLIER 
 13-10-2022,Adults,Prestige Care & Support Ltd,Home Care - Private Contractors Payment,660.59,0.00,COMMERCIAL SUPPLIER 
 03-10-2022,Adults,Morepower Ltd t/a Aqs Homecare,Home Care - Private Contractors Payment,662.23,0.00,COMMERCIAL SUPPLIER 
 09-10-2022,Adults,Homestead Care Service,Home Care - Private Contractors Payment,662.23,0.00,COMMERCIAL SUPPLIER 
 18-10-2022,Adults,Home Sweet Home Care Ltd,Home Care - Private Contractors Payment,662.89,0.00,COMMERCIAL SUPPLIER 
 21-10-2022,Adults,Lodge Group Care UK Ltd,Home Care - Private Contractors Payment,663.22,0.00,COMMERCIAL SUPPLIER 
 14-10-2022,Adults,Cera Care Operations Ltd,Home Care - Private Contractors Payment,663.54,0.00,COMMERCIAL SUPPLIER 
 14-10-2022,Adults,Quality Healthcare Solutions Ltd t/a Kare Plus Romford,Home Care - Private Contractors Payment,664.53,0.00,COMMERCIAL SUPPLIER 
 21-10-2022,Adults,Lodge Group Care UK Ltd,Home Care - Private Contractors Payment,664.86,0.00,COMMERCIAL SUPPLIER 
 26-10-2022,Adults,Home Support Services (Havering & Essex) Ltd,Home Care - Private Contractors Payment,665.18,0.00,COMMERCIAL SUPPLIER 
 26-10-2022,Adults,Home Support Services (Havering & Essex) Ltd,Home Care - Private Contractors Payment,666.17,0.00,COMMERCIAL SUPPLIER 
 17-10-2022,Adults,Morepower Ltd t/a Aqs Homecare,Home Care - Private Contractors Payment,668.79,0.00,COMMERCIAL SUPPLIER 
 10-10-2022,Adults,IJB Healthcare Ltd,Home Care - Private Contractors Payment,669.12,0.00,COMMERCIAL SUPPLIER 
 13-10-2022,Adults,Inna Care Ltd,Home Care - Private Contractors Payment,669.12,0.00,COMMERCIAL SUPPLIER 
 13-10-2022,Adults,Inna Care Ltd,Home Care - Private Contractors Payment,669.12,0.00,COMMERCIAL SUPPLIER 
 18-10-2022,Adults,Home Sweet Home Care Ltd,Home Care - Private Contractors Payment,669.12,0.00,COMMERCIAL SUPPLIER 
 18-10-2022,Adults,Home Sweet Home Care Ltd,Home Care - Private Contractors Payment,669.12,0.00,COMMERCIAL SUPPLIER 
 21-10-2022,Adults,Lodge Group Care UK Ltd,Home Care - Private Contractors Payment,669.45,0.00,COMMERCIAL SUPPLIER 
 04-10-2022,Adults,Prior Care Ltd_a,Home Care - Private Contractors Payment,672.07,0.00,COMMERCIAL SUPPLIER 
 09-10-2022,Adults,Homestead Care Service,Home Care - Private Contractors Payment,672.07,0.00,COMMERCIAL SUPPLIER 
 25-10-2022,Adults,Prior Care Ltd_a,Home Care - Private Contractors Payment,674.70,0.00,COMMERCIAL SUPPLIER 
 07-10-2022,Adults,Havering Mind,Other Short Term Support,675.00,0.00,NON COMMERCIAL SUPPLIER 
 07-10-2022,Adults,Havering Association for People with Disabilities (H.A.D.),Other Short Term Support,675.00,0.00,NON COMMERCIAL SUPPLIER 
 07-10-2022,Adults,Carers Centre SA Ltd ,Other Short Term Support,675.00,0.00,COMMERCIAL SUPPLIER 
 07-10-2022,Adults,"Age Uk Redbridge, Barking and Havering Limited",Other Short Term Support,675.00,0.00,COMMERCIAL SUPPLIER 
 07-10-2022,Adults,The Sycamore Trust,Other Short Term Support,675.00,0.00,COMMERCIAL SUPPLIER 
 09-10-2022,Adults,Homestead Care Service,Home Care - Private Contractors Payment,676.66,0.00,COMMERCIAL SUPPLIER 
 21-10-2022,Adults,Lodge Group Care UK Ltd,Home Care - Private Contractors Payment,676.66,0.00,COMMERCIAL SUPPLIER 
 21-10-2022,Adults,Fountains Care Centre - Bondcare,Nursing Homes - Private Contractors Payment,678.00,0.00,COMMERCIAL SUPPLIER 
 21-10-2022,Adults,Fountains Care Centre - Bondcare,Nursing Homes - Private Contractors Payment,678.00,0.00,COMMERCIAL SUPPLIER 
 21-10-2022,Adults,Lodge Group Care UK Ltd,Home Care - Private Contractors Payment,678.96,0.00,COMMERCIAL SUPPLIER 
 21-10-2022,Adults,Lodge Group Care UK Ltd,Home Care - Private Contractors Payment,678.96,0.00,COMMERCIAL SUPPLIER 
 21-10-2022,Adults,Affinia Healthcare Ltd_a,Supported Other Accommodation - Private Contractors Payment,678.96,0.00,COMMERCIAL SUPPLIER 
 21-10-2022,Adults,Lodge Group Care UK Ltd,Home Care - Private Contractors Payment,680.60,0.00,COMMERCIAL SUPPLIER 
 21-10-2022,Adults,Lodge Group Care UK Ltd,Home Care - Private Contractors Payment,681.58,0.00,COMMERCIAL SUPPLIER 
 05-10-2022,Adults,Matrix SCM Ltd,Agency Staff,682.08,0.00,COMMERCIAL SUPPLIER 
 14-10-2022,Adults,Care-Away Ltd T/A Care Support,Home Care - Private Contractors Payment,682.24,0.00,COMMERCIAL SUPPLIER 
 10-10-2022,Adults,Tapestry_a.,Daycare - Private Contractors Payment,684.00,0.00,COMMERCIAL SUPPLIER 
 10-10-2022,Adults,Tapestry_a.,Daycare - Private Contractors Payment,684.00,0.00,COMMERCIAL SUPPLIER 
 10-10-2022,Adults,Tapestry_a.,Daycare - Private Contractors Payment,684.00,0.00,COMMERCIAL SUPPLIER 
 10-10-2022,Adults,Tapestry_a.,Daycare - Private Contractors Payment,684.00,0.00,COMMERCIAL SUPPLIER 
 21-10-2022,Adults,Gemini Assisted Living Ltd,Supported Other Accommodation - Private Contractors Payment,686.40,0.00,COMMERCIAL SUPPLIER 
 17-10-2022,Adults,Anytime Care 2020_a,Home Care - Private Contractors Payment,687.82,0.00,COMMERCIAL SUPPLIER 
 26-10-2022,Adults,Home Support Services (Havering & Essex) Ltd,Home Care - Private Contractors Payment,688.47,0.00,COMMERCIAL SUPPLIER 
 09-10-2022,Adults,Homestead Care Service,Home Care - Private Contractors Payment,688.80,0.00,COMMERCIAL SUPPLIER 
 09-10-2022,Adults,Homestead Care Service,Home Care - Private Contractors Payment,688.80,0.00,COMMERCIAL SUPPLIER 
 10-10-2022,Adults,Passion Tree Care Services Ltd,Home Care - Private Contractors Payment,688.80,0.00,COMMERCIAL SUPPLIER 
 10-10-2022,Adults,London Homecare Ltd,Home Care - Private Contractors Payment,688.80,0.00,COMMERCIAL SUPPLIER 
 14-10-2022,Adults,Care-Away Ltd T/A Care Support,Home Care - Private Contractors Payment,690.56,0.00,COMMERCIAL SUPPLIER 
 09-10-2022,Adults,Homestead Care Service,Home Care - Private Contractors Payment,693.39,0.00,COMMERCIAL SUPPLIER 
 21-10-2022,Adults,Lodge Group Care UK Ltd,Home Care - Private Contractors Payment,694.05,0.00,COMMERCIAL SUPPLIER 
 21-10-2022,Adults,Barleycroft Care Home Ltd,Residential Placements - Private Contractors Payment,695.00,0.00,COMMERCIAL SUPPLIER 
 26-10-2022,Adults,Home Support Services (Havering & Essex) Ltd,Home Care - Private Contractors Payment,695.69,0.00,COMMERCIAL SUPPLIER 
 24-10-2022,Adults,John Stanleys Care Agency Ltd,Home Care - Private Contractors Payment,696.34,0.00,COMMERCIAL SUPPLIER 
 14-10-2022,Adults,Care-Away Ltd T/A Care Support,Home Care - Private Contractors Payment,698.88,0.00,COMMERCIAL SUPPLIER 
 14-10-2022,Adults,Care-Away Ltd T/A Care Support,Home Care - Private Contractors Payment,698.88,0.00,COMMERCIAL SUPPLIER 
 14-10-2022,Adults,Care-Away Ltd T/A Care Support,Home Care - Private Contractors Payment,698.88,0.00,COMMERCIAL SUPPLIER 
 19-10-2022,Adults,Matrix SCM Ltd,Agency Staff,699.81,0.00,COMMERCIAL SUPPLIER 
 21-10-2022,Adults,Meadowbanks,Other Short Term Support,700.00,0.00,COMMERCIAL SUPPLIER 
 21-10-2022,Adults,Ebury Court_a,Other Short Term Support,700.00,0.00,COMMERCIAL SUPPLIER 
 21-10-2022,Adults,May Residential Homes Ltd,Other Short Term Support,700.00,0.00,COMMERCIAL SUPPLIER 
 26-10-2022,Adults,Home Support Services (Havering & Essex) Ltd,Home Care - Private Contractors Payment,700.28,0.00,COMMERCIAL SUPPLIER 
 03-10-2022,Adults,Inclusive Care Support Limited,Long Term Support - Community: Supported Living,700.84,0.00,COMMERCIAL SUPPLIER 
 03-10-2022,Adults,Inclusive Care Support Limited,Supported Other Accommodation - Private Contractors Payment,700.84,0.00,COMMERCIAL SUPPLIER 
 03-10-2022,Adults,Inclusive Care Support Limited,Supported Other Accommodation - Private Contractors Payment,700.84,0.00,COMMERCIAL SUPPLIER 
 03-10-2022,Adults,Inclusive Care Support Limited,Supported Other Accommodation - Private Contractors Payment,700.84,0.00,COMMERCIAL SUPPLIER 
 03-10-2022,Adults,Inclusive Care Support Limited,Supported Other Accommodation - Private Contractors Payment,700.84,0.00,COMMERCIAL SUPPLIER 
 28-10-2022,Adults,Achieve Together  Ltd - Westcliffe Villas,Residential Placements - Private Contractors Payment,702.99,0.00,COMMERCIAL SUPPLIER 
 14-10-2022,Adults,Care-Away Ltd T/A Care Support,Home Care - Private Contractors Payment,703.04,0.00,COMMERCIAL SUPPLIER 
 26-10-2022,Adults,Home Support Services (Havering & Essex) Ltd,Home Care - Private Contractors Payment,704.22,0.00,COMMERCIAL SUPPLIER 
 21-10-2022,Adults,Lodge Group Care UK Ltd,Home Care - Private Contractors Payment,705.86,0.00,COMMERCIAL SUPPLIER 
 10-10-2022,Adults,Outreach Support Services Ltd,Home Care - Private Contractors Payment,708.48,0.00,COMMERCIAL SUPPLIER 
 13-10-2022,Adults,Inna Care Ltd,Home Care - Private Contractors Payment,708.48,0.00,COMMERCIAL SUPPLIER 
 17-10-2022,Adults,Rosemont Care Limited,Home Care - Private Contractors Payment,708.48,0.00,COMMERCIAL SUPPLIER 
 17-10-2022,Adults,Rosemont Care Limited,Home Care - Private Contractors Payment,708.48,0.00,COMMERCIAL SUPPLIER 
 21-10-2022,Adults,Gims Care Solution Ltd_a,Home Care - Private Contractors Payment,708.48,0.00,NON COMMERCIAL SUPPLIER 
 26-10-2022,Adults,Home Support Services (Havering & Essex) Ltd,Home Care - Private Contractors Payment,708.48,0.00,COMMERCIAL SUPPLIER 
 12-10-2022,Adults,Matrix SCM Ltd,Agency Staff,710.29,0.00,COMMERCIAL SUPPLIER 
 04-10-2022,Adults,Prior Care Ltd_a,Home Care - Private Contractors Payment,711.43,0.00,COMMERCIAL SUPPLIER 
 09-10-2022,Adults,Homestead Care Service,Home Care - Private Contractors Payment,711.76,0.00,COMMERCIAL SUPPLIER 
 21-10-2022,Adults,Lodge Group Care UK Ltd,Home Care - Private Contractors Payment,711.76,0.00,COMMERCIAL SUPPLIER 
 09-10-2022,Adults,Homestead Care Service,Home Care - Private Contractors Payment,714.06,0.00,COMMERCIAL SUPPLIER 
 14-10-2022,Adults,Care-Away Ltd T/A Care Support,Home Care - Private Contractors Payment,715.52,0.00,COMMERCIAL SUPPLIER 
 26-10-2022,Adults,Home Support Services (Havering & Essex) Ltd,Home Care - Private Contractors Payment,716.02,0.00,COMMERCIAL SUPPLIER 
 25-10-2022,Adults,Prior Care Ltd_a,Home Care - Private Contractors Payment,716.35,0.00,COMMERCIAL SUPPLIER 
 03-10-2022,Adults,Morepower Ltd t/a Aqs Homecare,Home Care - Private Contractors Payment,717.34,0.00,COMMERCIAL SUPPLIER 
 14-10-2022,Adults,Cera Care Operations Ltd,Home Care - Private Contractors Payment,725.21,0.00,COMMERCIAL SUPPLIER 
 14-10-2022,Adults,Quality Healthcare Solutions Ltd t/a Kare Plus Romford,Home Care - Private Contractors Payment,733.08,0.00,COMMERCIAL SUPPLIER 
 26-10-2022,Adults,Home Support Services (Havering & Essex) Ltd,Home Care - Private Contractors Payment,733.08,0.00,COMMERCIAL SUPPLIER 
 13-10-2022,Adults,Prestige Care & Support Ltd,Home Care - Private Contractors Payment,733.41,0.00,COMMERCIAL SUPPLIER 
 09-10-2022,Adults,Homestead Care Service,Home Care - Private Contractors Payment,734.06,0.00,COMMERCIAL SUPPLIER 
 09-10-2022,Adults,Homestead Care Service,Home Care - Private Contractors Payment,734.39,0.00,COMMERCIAL SUPPLIER 
 05-10-2022,Adults,Matrix SCM Ltd,Agency Staff,735.84,0.00,COMMERCIAL SUPPLIER 
 19-10-2022,Adults,Matrix SCM Ltd,Agency Staff,735.84,0.00,COMMERCIAL SUPPLIER 
 26-10-2022,Adults,Matrix SCM Ltd,Agency Staff,735.84,0.00,COMMERCIAL SUPPLIER 
 09-10-2022,Adults,Homestead Care Service,Home Care - Private Contractors Payment,738.98,0.00,COMMERCIAL SUPPLIER 
 05-10-2022,Adults,Matrix SCM Ltd,Agency Staff,741.75,0.00,COMMERCIAL SUPPLIER 
 12-10-2022,Adults,Matrix SCM Ltd,Agency Staff,741.75,0.00,COMMERCIAL SUPPLIER 
 19-10-2022,Adults,Matrix SCM Ltd,Agency Staff,741.75,0.00,COMMERCIAL SUPPLIER 
 26-10-2022,Adults,Matrix SCM Ltd,Agency Staff,741.75,0.00,COMMERCIAL SUPPLIER 
 21-10-2022,Adults,Ashgate House Ltd_a,Residential Placements - Private Contractors Payment,746.16,0.00,COMMERCIAL SUPPLIER 
 09-10-2022,Adults,Homestead Care Service,Home Care - Private Contractors Payment,748.50,0.00,COMMERCIAL SUPPLIER 
 14-10-2022,Adults,Care-Away Ltd T/A Care Support,Home Care - Private Contractors Payment,748.80,0.00,COMMERCIAL SUPPLIER 
 26-10-2022,Adults,Matrix SCM Ltd,Agency Staff,748.80,0.00,COMMERCIAL SUPPLIER 
 09-10-2022,Adults,Homestead Care Service,Home Care - Private Contractors Payment,749.15,0.00,COMMERCIAL SUPPLIER 
 17-10-2022,Adults,Morepower Ltd t/a Aqs Homecare,Home Care - Private Contractors Payment,749.48,0.00,COMMERCIAL SUPPLIER 
 14-10-2022,Adults,Quality Healthcare Solutions Ltd t/a Kare Plus Romford,Home Care - Private Contractors Payment,751.45,0.00,COMMERCIAL SUPPLIER 
 21-10-2022,Adults,Lodge Group Care UK Ltd,Home Care - Private Contractors Payment,751.45,0.00,COMMERCIAL SUPPLIER 
 24-10-2022,Adults,John Stanleys Care Agency Ltd,Home Care - Private Contractors Payment,751.45,0.00,COMMERCIAL SUPPLIER 
 19-10-2022,Adults,Matrix SCM Ltd,Agency Staff,752.03,0.00,COMMERCIAL SUPPLIER 
 26-10-2022,Adults,Matrix SCM Ltd,Agency Staff,752.03,0.00,COMMERCIAL SUPPLIER 
 05-10-2022,Adults,Matrix SCM Ltd,Agency Staff,752.05,0.00,COMMERCIAL SUPPLIER 
 18-10-2022,Adults,Home Sweet Home Care Ltd,Home Care - Private Contractors Payment,754.07,0.00,COMMERCIAL SUPPLIER 
 17-10-2022,Adults,Morepower Ltd t/a Aqs Homecare,Home Care - Private Contractors Payment,755.06,0.00,COMMERCIAL SUPPLIER 
 25-10-2022,Adults,Prior Care Ltd_a,Home Care - Private Contractors Payment,758.66,0.00,COMMERCIAL SUPPLIER 
 10-10-2022,Adults,Bluebird Care Havering,Home Care - Private Contractors Payment,762.60,0.00,COMMERCIAL SUPPLIER 
 24-10-2022,Adults,Bluebird Care Havering,Home Care - Private Contractors Payment,762.60,0.00,COMMERCIAL SUPPLIER 
 18-10-2022,Adults,Home Sweet Home Care Ltd,Home Care - Private Contractors Payment,764.57,0.00,COMMERCIAL SUPPLIER 
 14-10-2022,Adults,Quality Healthcare Solutions Ltd t/a Kare Plus Romford,Home Care - Private Contractors Payment,767.19,0.00,COMMERCIAL SUPPLIER 
 03-10-2022,Adults,Morepower Ltd t/a Aqs Homecare,Home Care - Private Contractors Payment,767.52,0.00,COMMERCIAL SUPPLIER 
 21-10-2022,Adults,Lodge Group Care UK Ltd,Home Care - Private Contractors Payment,767.52,0.00,COMMERCIAL SUPPLIER 
 21-10-2022,Adults,Lodge Group Care UK Ltd,Home Care - Private Contractors Payment,767.52,0.00,COMMERCIAL SUPPLIER 
 09-10-2022,Adults,Homestead Care Service,Home Care - Private Contractors Payment,769.16,0.00,COMMERCIAL SUPPLIER 
 24-10-2022,Adults,John Stanleys Care Agency Ltd,Home Care - Private Contractors Payment,769.82,0.00,COMMERCIAL SUPPLIER 
 12-10-2022,Adults,Matrix SCM Ltd,Agency Staff,771.84,0.00,COMMERCIAL SUPPLIER 
 24-10-2022,Adults,John Stanleys Care Agency Ltd,Home Care - Private Contractors Payment,772.11,0.00,COMMERCIAL SUPPLIER 
 05-10-2022,Adults,Matrix SCM Ltd,Agency Staff,772.19,0.00,COMMERCIAL SUPPLIER 
 12-10-2022,Adults,Matrix SCM Ltd,Agency Staff,772.19,0.00,COMMERCIAL SUPPLIER 
 19-10-2022,Adults,Matrix SCM Ltd,Agency Staff,772.19,0.00,COMMERCIAL SUPPLIER 
 26-10-2022,Adults,Matrix SCM Ltd,Agency Staff,772.19,0.00,COMMERCIAL SUPPLIER 
 21-10-2022,Adults,Chosen Care Group Ltd,Supported Other Accommodation - Private Contractors Payment,772.60,0.00,COMMERCIAL SUPPLIER 
 21-10-2022,Adults,Alexander Court Care Centre - Bondcare,Nursing Homes - Private Contractors Payment,774.86,0.00,COMMERCIAL SUPPLIER 
 21-10-2022,Adults,Acorn Village_a,Residential Placements - Private Contractors Payment,774.92,0.00,COMMERCIAL SUPPLIER 
 05-10-2022,Adults,Matrix SCM Ltd,Agency Staff,777.42,0.00,COMMERCIAL SUPPLIER 
 05-10-2022,Adults,Matrix SCM Ltd,Agency Staff,777.42,0.00,COMMERCIAL SUPPLIER 
 12-10-2022,Adults,Matrix SCM Ltd,Agency Staff,777.42,0.00,COMMERCIAL SUPPLIER 
 12-10-2022,Adults,Matrix SCM Ltd,Agency Staff,777.42,0.00,COMMERCIAL SUPPLIER 
 19-10-2022,Adults,Matrix SCM Ltd,Agency Staff,777.42,0.00,COMMERCIAL SUPPLIER 
 26-10-2022,Adults,Matrix SCM Ltd,Agency Staff,777.42,0.00,COMMERCIAL SUPPLIER 
 03-10-2022,Adults,Morepower Ltd t/a Aqs Homecare,Home Care - Private Contractors Payment,779.00,0.00,COMMERCIAL SUPPLIER 
 18-10-2022,Adults,Home Sweet Home Care Ltd,Home Care - Private Contractors Payment,779.33,0.00,COMMERCIAL SUPPLIER 
 18-10-2022,Adults,Home Sweet Home Care Ltd,Home Care - Private Contractors Payment,780.31,0.00,COMMERCIAL SUPPLIER 
 14-10-2022,Adults,Cera Care Operations Ltd,Home Care - Private Contractors Payment,780.97,0.00,COMMERCIAL SUPPLIER 
 18-10-2022,Adults,Home Sweet Home Care Ltd,Home Care - Private Contractors Payment,781.95,0.00,COMMERCIAL SUPPLIER 
 26-10-2022,Adults,Matrix SCM Ltd,Agency Staff,787.08,0.00,COMMERCIAL SUPPLIER 
 06-10-2022,Adults,Recruitcare Professionals Ltd ,Home Care - Private Contractors Payment,787.20,0.00,COMMERCIAL SUPPLIER 
 10-10-2022,Adults,London Homecare Ltd,Home Care - Private Contractors Payment,787.20,0.00,COMMERCIAL SUPPLIER 
 11-10-2022,Adults,Carers Trust East Midlands,Home Care - Private Contractors Payment,787.20,0.00,COMMERCIAL SUPPLIER 
 11-10-2022,Adults,Carers Trust East Midlands,Home Care - Private Contractors Payment,787.20,0.00,COMMERCIAL SUPPLIER 
 13-10-2022,Adults,Inna Care Ltd,Home Care - Private Contractors Payment,787.20,0.00,COMMERCIAL SUPPLIER 
 09-10-2022,Adults,Homestead Care Service,Home Care - Private Contractors Payment,787.86,0.00,COMMERCIAL SUPPLIER 
 18-10-2022,Adults,Home Sweet Home Care Ltd,Home Care - Private Contractors Payment,787.86,0.00,COMMERCIAL SUPPLIER 
 04-10-2022,Adults,Prior Care Ltd_a,Home Care - Private Contractors Payment,788.84,0.00,COMMERCIAL SUPPLIER 
 21-10-2022,Adults,Lodge Group Care UK Ltd,Home Care - Private Contractors Payment,788.84,0.00,COMMERCIAL SUPPLIER 
 21-10-2022,Adults,Lodge Group Care UK Ltd,Home Care - Private Contractors Payment,789.17,0.00,COMMERCIAL SUPPLIER 
 21-10-2022,Adults,Lodge Group Care UK Ltd,Home Care - Private Contractors Payment,789.17,0.00,COMMERCIAL SUPPLIER 
 25-10-2022,Adults,Prior Care Ltd_a,Home Care - Private Contractors Payment,789.17,0.00,COMMERCIAL SUPPLIER 
 21-10-2022,Adults,Lodge Group Care UK Ltd,Home Care - Private Contractors Payment,790.15,0.00,COMMERCIAL SUPPLIER 
 14-10-2022,Adults,Cera Care Operations Ltd,Home Care - Private Contractors Payment,790.81,0.00,COMMERCIAL SUPPLIER 
 17-10-2022,Adults,Morepower Ltd t/a Aqs Homecare,Home Care - Private Contractors Payment,790.81,0.00,COMMERCIAL SUPPLIER 
 14-10-2022,Adults,Cera Care Operations Ltd,Home Care - Private Contractors Payment,791.14,0.00,COMMERCIAL SUPPLIER 
 14-10-2022,Adults,Cera Care Operations Ltd,Home Care - Private Contractors Payment,791.14,0.00,COMMERCIAL SUPPLIER 
 14-10-2022,Adults,Cera Care Operations Ltd,Home Care - Private Contractors Payment,791.79,0.00,COMMERCIAL SUPPLIER 
 05-10-2022,Adults,Matrix SCM Ltd,Agency Staff,792.55,0.00,COMMERCIAL SUPPLIER 
 19-10-2022,Adults,Castle Water Limited,Water And Sewerage,796.28,0.00,COMMERCIAL SUPPLIER 
 21-10-2022,Adults,Outlook Care - 76 Neave Crescent,Supported Other Accommodation - Private Contractors Payment,796.96,0.00,COMMERCIAL SUPPLIER 
 09-10-2022,Adults,Homestead Care Service,Home Care - Private Contractors Payment,797.04,0.00,COMMERCIAL SUPPLIER 
 13-10-2022,Adults,Prestige Care & Support Ltd,Home Care - Private Contractors Payment,797.04,0.00,COMMERCIAL SUPPLIER 
 18-10-2022,Adults,Home Sweet Home Care Ltd,Home Care - Private Contractors Payment,797.04,0.00,COMMERCIAL SUPPLIER 
 18-10-2022,Adults,Home Sweet Home Care Ltd,Home Care - Private Contractors Payment,797.04,0.00,COMMERCIAL SUPPLIER 
 17-10-2022,Adults,Morepower Ltd t/a Aqs Homecare,Home Care - Private Contractors Payment,798.68,0.00,COMMERCIAL SUPPLIER 
 13-10-2022,Adults,Care-Away Ltd T/A Care Support,Home Care - Private Contractors Payment,798.72,0.00,COMMERCIAL SUPPLIER 
 20-10-2022,Adults,R G Care Ltd ,Daycare - Private Contractors Payment,800.00,0.00,COMMERCIAL SUPPLIER 
 20-10-2022,Adults,R G Care Ltd ,Daycare - Private Contractors Payment,800.00,0.00,COMMERCIAL SUPPLIER 
 21-10-2022,Adults,Moreland House_a,Other Short Term Support,800.00,0.00,COMMERCIAL SUPPLIER 
 21-10-2022,Adults,Nightingale Residential Care Home Ltd,Other Short Term Support,800.00,0.00,COMMERCIAL SUPPLIER 
 21-10-2022,Adults,Masumin Ltd t/s Abbeleigh House,Other Short Term Support,800.00,0.00,COMMERCIAL SUPPLIER 
 21-10-2022,Adults,Lodge Group Care UK Ltd,Home Care - Private Contractors Payment,802.94,0.00,COMMERCIAL SUPPLIER 
 19-10-2022,Adults,Matrix SCM Ltd,Agency Staff,806.40,0.00,COMMERCIAL SUPPLIER 
 09-10-2022,Adults,Homestead Care Service,Home Care - Private Contractors Payment,806.88,0.00,COMMERCIAL SUPPLIER 
 09-10-2022,Adults,Homestead Care Service,Home Care - Private Contractors Payment,806.88,0.00,COMMERCIAL SUPPLIER 
 14-10-2022,Adults,Cera Care Operations Ltd,Home Care - Private Contractors Payment,806.88,0.00,COMMERCIAL SUPPLIER 
 13-10-2022,Adults,Prestige Care & Support Ltd,Home Care - Private Contractors Payment,807.86,0.00,COMMERCIAL SUPPLIER 
 26-10-2022,Adults,Home Support Services (Havering & Essex) Ltd,Home Care - Private Contractors Payment,807.86,0.00,COMMERCIAL SUPPLIER 
 13-10-2022,Adults,Prestige Care & Support Ltd,Home Care - Private Contractors Payment,808.19,0.00,COMMERCIAL SUPPLIER 
 21-10-2022,Adults,Lodge Group Care UK Ltd,Home Care - Private Contractors Payment,809.18,0.00,COMMERCIAL SUPPLIER 
 21-10-2022,Adults,Lodge Group Care UK Ltd,Home Care - Private Contractors Payment,810.16,0.00,COMMERCIAL SUPPLIER 
 17-10-2022,Adults,Anytime Care 2020_a,Home Care - Private Contractors Payment,811.80,0.00,COMMERCIAL SUPPLIER 
 21-10-2022,Adults,Beechcourt Care Centre - Bondcare,Nursing Homes - Private Contractors Payment,812.57,0.00,COMMERCIAL SUPPLIER 
 09-10-2022,Adults,Homestead Care Service,Home Care - Private Contractors Payment,813.44,0.00,COMMERCIAL SUPPLIER 
 14-10-2022,Adults,Care-Away Ltd T/A Care Support,Home Care - Private Contractors Payment,815.36,0.00,COMMERCIAL SUPPLIER 
 14-10-2022,Adults,Care-Away Ltd T/A Care Support,Home Care - Private Contractors Payment,815.36,0.00,COMMERCIAL SUPPLIER 
 13-10-2022,Adults,Prestige Care & Support Ltd,Home Care - Private Contractors Payment,816.72,0.00,COMMERCIAL SUPPLIER 
 18-10-2022,Adults,Home Sweet Home Care Ltd,Home Care - Private Contractors Payment,816.72,0.00,COMMERCIAL SUPPLIER 
 14-10-2022,Adults,Quality Healthcare Solutions Ltd t/a Kare Plus Romford,Home Care - Private Contractors Payment,820.98,0.00,COMMERCIAL SUPPLIER 
 18-10-2022,Adults,Home Sweet Home Care Ltd,Home Care - Private Contractors Payment,821.64,0.00,COMMERCIAL SUPPLIER 
 21-10-2022,Adults,Lodge Group Care UK Ltd,Home Care - Private Contractors Payment,822.30,0.00,COMMERCIAL SUPPLIER 
 03-10-2022,Adults,Morepower Ltd t/a Aqs Homecare,Home Care - Private Contractors Payment,822.95,0.00,COMMERCIAL SUPPLIER 
 13-10-2022,Adults,Prestige Care & Support Ltd,Home Care - Private Contractors Payment,825.25,0.00,COMMERCIAL SUPPLIER 
 21-10-2022,Adults,Lodge Group Care UK Ltd,Home Care - Private Contractors Payment,825.90,0.00,COMMERCIAL SUPPLIER 
 10-10-2022,Adults,Outreach Support Services Ltd,Home Care - Private Contractors Payment,826.56,0.00,COMMERCIAL SUPPLIER 
 10-10-2022,Adults,Outreach Support Services Ltd,Home Care - Private Contractors Payment,826.56,0.00,COMMERCIAL SUPPLIER 
 10-10-2022,Adults,Passion Tree Care Services Ltd,Home Care - Private Contractors Payment,826.56,0.00,COMMERCIAL SUPPLIER 
 12-10-2022,Adults,Premier Carewaiting Ltd,Home Care - Private Contractors Payment,826.56,0.00,COMMERCIAL SUPPLIER 
 12-10-2022,Adults,Premier Carewaiting Ltd,Home Care - Private Contractors Payment,826.56,0.00,COMMERCIAL SUPPLIER 
 13-10-2022,Adults,Inna Care Ltd,Home Care - Private Contractors Payment,826.56,0.00,COMMERCIAL SUPPLIER 
 13-10-2022,Adults,Inna Care Ltd,Home Care - Private Contractors Payment,826.56,0.00,COMMERCIAL SUPPLIER 
 13-10-2022,Adults,Inna Care Ltd,Home Care - Private Contractors Payment,826.56,0.00,COMMERCIAL SUPPLIER 
 13-10-2022,Adults,Inna Care Ltd,Home Care - Private Contractors Payment,826.56,0.00,COMMERCIAL SUPPLIER 
 13-10-2022,Adults,Inna Care Ltd,Home Care - Private Contractors Payment,826.56,0.00,COMMERCIAL SUPPLIER 
 13-10-2022,Adults,Inna Care Ltd,Home Care - Private Contractors Payment,826.56,0.00,COMMERCIAL SUPPLIER 
 13-10-2022,Adults,Inna Care Ltd,Home Care - Private Contractors Payment,826.56,0.00,COMMERCIAL SUPPLIER 
 13-10-2022,Adults,Inna Care Ltd,Home Care - Private Contractors Payment,826.56,0.00,COMMERCIAL SUPPLIER 
 14-10-2022,Adults,Cera Care Operations Ltd,Home Care - Private Contractors Payment,826.56,0.00,COMMERCIAL SUPPLIER 
 14-10-2022,Adults,Cera Care Operations Ltd,Home Care - Private Contractors Payment,826.56,0.00,COMMERCIAL SUPPLIER 
 14-10-2022,Adults,Cera Care Operations Ltd,Home Care - Private Contractors Payment,826.56,0.00,COMMERCIAL SUPPLIER 
 14-10-2022,Adults,Cera Care Operations Ltd,Home Care - Private Contractors Payment,826.56,0.00,COMMERCIAL SUPPLIER 
 17-10-2022,Adults,Anytime Care 2020_a,Home Care - Private Contractors Payment,826.56,0.00,COMMERCIAL SUPPLIER 
 17-10-2022,Adults,Rosemont Care Limited,Home Care - Private Contractors Payment,826.56,0.00,COMMERCIAL SUPPLIER 
 17-10-2022,Adults,Rosemont Care Limited,Home Care - Private Contractors Payment,826.56,0.00,COMMERCIAL SUPPLIER 
 17-10-2022,Adults,Rosemont Care Limited,Home Care - Private Contractors Payment,826.56,0.00,COMMERCIAL SUPPLIER 
 21-10-2022,Adults,Lodge Group Care UK Ltd,Home Care - Private Contractors Payment,826.56,0.00,COMMERCIAL SUPPLIER 
 21-10-2022,Adults,Lodge Group Care UK Ltd,Home Care - Private Contractors Payment,826.56,0.00,COMMERCIAL SUPPLIER 
 26-10-2022,Adults,Home Support Services (Havering & Essex) Ltd,Home Care - Private Contractors Payment,826.56,0.00,COMMERCIAL SUPPLIER 
 26-10-2022,Adults,Home Support Services (Havering & Essex) Ltd,Home Care - Private Contractors Payment,826.56,0.00,COMMERCIAL SUPPLIER 
 26-10-2022,Adults,Home Support Services (Havering & Essex) Ltd,Home Care - Private Contractors Payment,826.56,0.00,COMMERCIAL SUPPLIER 
 26-10-2022,Adults,Home Support Services (Havering & Essex) Ltd,Home Care - Private Contractors Payment,826.56,0.00,COMMERCIAL SUPPLIER 
 03-10-2022,Adults,Morepower Ltd t/a Aqs Homecare,Home Care - Private Contractors Payment,827.22,0.00,COMMERCIAL SUPPLIER 
 14-10-2022,Adults,Cera Care Operations Ltd,Home Care - Private Contractors Payment,827.22,0.00,COMMERCIAL SUPPLIER 
 18-10-2022,Adults,Home Sweet Home Care Ltd,Home Care - Private Contractors Payment,827.22,0.00,COMMERCIAL SUPPLIER 
 26-10-2022,Adults,Home Support Services (Havering & Essex) Ltd,Home Care - Private Contractors Payment,827.22,0.00,COMMERCIAL SUPPLIER 
 26-10-2022,Adults,Home Support Services (Havering & Essex) Ltd,Home Care - Private Contractors Payment,827.22,0.00,COMMERCIAL SUPPLIER 
 21-10-2022,Adults,Lodge Group Care UK Ltd,Home Care - Private Contractors Payment,827.54,0.00,COMMERCIAL SUPPLIER 
 21-10-2022,Adults,Lodge Group Care UK Ltd,Home Care - Private Contractors Payment,827.87,0.00,COMMERCIAL SUPPLIER 
 17-10-2022,Adults,Morepower Ltd t/a Aqs Homecare,Home Care - Private Contractors Payment,828.20,0.00,COMMERCIAL SUPPLIER 
 21-10-2022,Adults,Lodge Group Care UK Ltd,Home Care - Private Contractors Payment,828.20,0.00,COMMERCIAL SUPPLIER 
 18-10-2022,Adults,Home Sweet Home Care Ltd,Home Care - Private Contractors Payment,828.53,0.00,COMMERCIAL SUPPLIER 
 21-10-2022,Adults,Lodge Group Care UK Ltd,Home Care - Private Contractors Payment,828.53,0.00,COMMERCIAL SUPPLIER 
 26-10-2022,Adults,Home Support Services (Havering & Essex) Ltd,Home Care - Private Contractors Payment,828.53,0.00,COMMERCIAL SUPPLIER 
 04-10-2022,Adults,Prior Care Ltd_a,Home Care - Private Contractors Payment,828.86,0.00,COMMERCIAL SUPPLIER 
 09-10-2022,Adults,Homestead Care Service,Home Care - Private Contractors Payment,828.86,0.00,COMMERCIAL SUPPLIER 
 21-10-2022,Adults,Lodge Group Care UK Ltd,Home Care - Private Contractors Payment,828.86,0.00,COMMERCIAL SUPPLIER 
 21-10-2022,Adults,Lodge Group Care UK Ltd,Home Care - Private Contractors Payment,828.86,0.00,COMMERCIAL SUPPLIER 
 03-10-2022,Adults,Morepower Ltd t/a Aqs Homecare,Home Care - Private Contractors Payment,829.18,0.00,COMMERCIAL SUPPLIER 
 09-10-2022,Adults,Homestead Care Service,Home Care - Private Contractors Payment,829.18,0.00,COMMERCIAL SUPPLIER 
 19-10-2022,Adults,Matrix SCM Ltd,Agency Staff,829.44,0.00,COMMERCIAL SUPPLIER 
 26-10-2022,Adults,Matrix SCM Ltd,Agency Staff,829.44,0.00,COMMERCIAL SUPPLIER 
 18-10-2022,Adults,Home Sweet Home Care Ltd,Home Care - Private Contractors Payment,829.51,0.00,COMMERCIAL SUPPLIER 
 03-10-2022,Adults,Morepower Ltd t/a Aqs Homecare,Home Care - Private Contractors Payment,829.84,0.00,COMMERCIAL SUPPLIER 
 21-10-2022,Adults,Lodge Group Care UK Ltd,Home Care - Private Contractors Payment,829.84,0.00,COMMERCIAL SUPPLIER 
 25-10-2022,Adults,Prior Care Ltd_a,Home Care - Private Contractors Payment,829.84,0.00,COMMERCIAL SUPPLIER 
 18-10-2022,Adults,Home Sweet Home Care Ltd,Home Care - Private Contractors Payment,830.82,0.00,COMMERCIAL SUPPLIER 
 18-10-2022,Adults,Home Sweet Home Care Ltd,Home Care - Private Contractors Payment,830.82,0.00,COMMERCIAL SUPPLIER 
 18-10-2022,Adults,Home Sweet Home Care Ltd,Home Care - Private Contractors Payment,831.15,0.00,COMMERCIAL SUPPLIER 
 03-10-2022,Adults,Morepower Ltd t/a Aqs Homecare,Home Care - Private Contractors Payment,831.81,0.00,COMMERCIAL SUPPLIER 
 21-10-2022,Adults,Lodge Group Care UK Ltd,Home Care - Private Contractors Payment,831.81,0.00,COMMERCIAL SUPPLIER 
 21-10-2022,Adults,Lodge Group Care UK Ltd,Home Care - Private Contractors Payment,832.46,0.00,COMMERCIAL SUPPLIER 
 21-10-2022,Adults,Lodge Group Care UK Ltd,Home Care - Private Contractors Payment,832.79,0.00,COMMERCIAL SUPPLIER 
 17-10-2022,Adults,Morepower Ltd t/a Aqs Homecare,Home Care - Private Contractors Payment,833.12,0.00,COMMERCIAL SUPPLIER 
 21-10-2022,Adults,Lodge Group Care UK Ltd,Home Care - Private Contractors Payment,833.12,0.00,COMMERCIAL SUPPLIER 
 17-10-2022,Adults,Morepower Ltd t/a Aqs Homecare,Home Care - Private Contractors Payment,833.45,0.00,COMMERCIAL SUPPLIER 
 09-10-2022,Adults,Homestead Care Service,Home Care - Private Contractors Payment,833.78,0.00,COMMERCIAL SUPPLIER 
 03-10-2022,Adults,Morepower Ltd t/a Aqs Homecare,Home Care - Private Contractors Payment,835.09,0.00,COMMERCIAL SUPPLIER 
 09-10-2022,Adults,Homestead Care Service,Home Care - Private Contractors Payment,835.42,0.00,COMMERCIAL SUPPLIER 
 21-10-2022,Adults,Lodge Group Care UK Ltd,Home Care - Private Contractors Payment,835.42,0.00,COMMERCIAL SUPPLIER 
 12-10-2022,Adults,Hospiva Care & Associates Agency Ltd_a,Home Care - Private Contractors Payment,836.73,0.00,COMMERCIAL SUPPLIER 
 12-10-2022,Adults,Hospiva Care & Associates Agency Ltd_a,Home Care - Private Contractors Payment,836.73,0.00,COMMERCIAL SUPPLIER 
 21-10-2022,Adults,Lodge Group Care UK Ltd,Home Care - Private Contractors Payment,836.73,0.00,COMMERCIAL SUPPLIER 
 03-10-2022,Adults,Morepower Ltd t/a Aqs Homecare,Home Care - Private Contractors Payment,837.38,0.00,COMMERCIAL SUPPLIER 
 17-10-2022,Adults,Morepower Ltd t/a Aqs Homecare,Home Care - Private Contractors Payment,837.38,0.00,COMMERCIAL SUPPLIER 
 21-10-2022,Adults,Lodge Group Care UK Ltd,Home Care - Private Contractors Payment,838.04,0.00,COMMERCIAL SUPPLIER 
 26-10-2022,Adults,Home Support Services (Havering & Essex) Ltd,Home Care - Private Contractors Payment,838.04,0.00,COMMERCIAL SUPPLIER 
 17-10-2022,Adults,Morepower Ltd t/a Aqs Homecare,Home Care - Private Contractors Payment,838.70,0.00,COMMERCIAL SUPPLIER 
 13-10-2022,Adults,Prestige Care & Support Ltd,Home Care - Private Contractors Payment,839.02,0.00,COMMERCIAL SUPPLIER 
 26-10-2022,Adults,Home Support Services (Havering & Essex) Ltd,Home Care - Private Contractors Payment,839.02,0.00,COMMERCIAL SUPPLIER 
 12-10-2022,Adults,Matrix SCM Ltd,Agency Staff,839.75,0.00,COMMERCIAL SUPPLIER 
 12-10-2022,Adults,Hospiva Care & Associates Agency Ltd_a,Home Care - Private Contractors Payment,841.32,0.00,COMMERCIAL SUPPLIER 
 21-10-2022,Adults,Lodge Group Care UK Ltd,Home Care - Private Contractors Payment,841.65,0.00,COMMERCIAL SUPPLIER 
 17-10-2022,Adults,Morepower Ltd t/a Aqs Homecare,Home Care - Private Contractors Payment,842.96,0.00,COMMERCIAL SUPPLIER 
 05-10-2022,Adults,Matrix SCM Ltd,Agency Staff,844.58,0.00,COMMERCIAL SUPPLIER 
 05-10-2022,Adults,Matrix SCM Ltd,Agency Staff,844.58,0.00,COMMERCIAL SUPPLIER 
 19-10-2022,Adults,Matrix SCM Ltd,Agency Staff,844.58,0.00,COMMERCIAL SUPPLIER 
 19-10-2022,Adults,Matrix SCM Ltd,Agency Staff,844.58,0.00,COMMERCIAL SUPPLIER 
 26-10-2022,Adults,Matrix SCM Ltd,Agency Staff,844.58,0.00,COMMERCIAL SUPPLIER 
 17-10-2022,Adults,Morepower Ltd t/a Aqs Homecare,Home Care - Private Contractors Payment,845.91,0.00,COMMERCIAL SUPPLIER 
 05-10-2022,Adults,Matrix SCM Ltd,Agency Staff,847.36,0.00,COMMERCIAL SUPPLIER 
 12-10-2022,Adults,Matrix SCM Ltd,Agency Staff,847.36,0.00,COMMERCIAL SUPPLIER 
 26-10-2022,Adults,Matrix SCM Ltd,Agency Staff,847.36,0.00,COMMERCIAL SUPPLIER 
 18-10-2022,Adults,Home Sweet Home Care Ltd,Home Care - Private Contractors Payment,848.86,0.00,COMMERCIAL SUPPLIER 
 13-10-2022,Adults,Prestige Care & Support Ltd,Home Care - Private Contractors Payment,850.50,0.00,COMMERCIAL SUPPLIER 
 14-10-2022,Adults,Quality Healthcare Solutions Ltd t/a Kare Plus Romford,Home Care - Private Contractors Payment,852.14,0.00,COMMERCIAL SUPPLIER 
 21-10-2022,Adults,Topaz Care and Support Co Ltd,Supported Other Accommodation - Private Contractors Payment,854.20,0.00,COMMERCIAL SUPPLIER 
 17-10-2022,Adults,Morepower Ltd t/a Aqs Homecare,Home Care - Private Contractors Payment,856.74,0.00,COMMERCIAL SUPPLIER 
 26-10-2022,Adults,Home Support Services (Havering & Essex) Ltd,Home Care - Private Contractors Payment,858.38,0.00,COMMERCIAL SUPPLIER 
 26-10-2022,Adults,Home Support Services (Havering & Essex) Ltd,Home Care - Private Contractors Payment,858.70,0.00,COMMERCIAL SUPPLIER 
 14-10-2022,Adults,Quality Healthcare Solutions Ltd t/a Kare Plus Romford,Home Care - Private Contractors Payment,859.36,0.00,COMMERCIAL SUPPLIER 
 10-10-2022,Adults,Eastway Care Ltd_a,Daycare - Private Contractors Payment,860.00,0.00,COMMERCIAL SUPPLIER 
 10-10-2022,Adults,Eastway Care Ltd_a,Daycare - Private Contractors Payment,860.00,0.00,COMMERCIAL SUPPLIER 
 14-10-2022,Adults,Mayflower Travel,Client Transport,860.00,0.00,COMMERCIAL SUPPLIER 
 14-10-2022,Adults,Quality Healthcare Solutions Ltd t/a Kare Plus Romford,Home Care - Private Contractors Payment,860.02,0.00,COMMERCIAL SUPPLIER 
 18-10-2022,Adults,Home Sweet Home Care Ltd,Home Care - Private Contractors Payment,860.34,0.00,COMMERCIAL SUPPLIER 
 03-10-2022,Adults,Morepower Ltd t/a Aqs Homecare,Home Care - Private Contractors Payment,860.67,0.00,COMMERCIAL SUPPLIER 
 18-10-2022,Adults,Home Sweet Home Care Ltd,Home Care - Private Contractors Payment,863.95,0.00,COMMERCIAL SUPPLIER 
 14-10-2022,Adults,Cera Care Operations Ltd,Home Care - Private Contractors Payment,864.61,0.00,COMMERCIAL SUPPLIER 
 13-10-2022,Adults,Care-Away Ltd T/A Care Support,Home Care - Private Contractors Payment,865.28,0.00,COMMERCIAL SUPPLIER 
 14-10-2022,Adults,London Care Plc_a,Home Care - Private Contractors Payment,865.92,0.00,COMMERCIAL SUPPLIER 
 26-10-2022,Adults,Home Support Services (Havering & Essex) Ltd,Home Care - Private Contractors Payment,866.25,0.00,COMMERCIAL SUPPLIER 
 26-10-2022,Adults,Home Support Services (Havering & Essex) Ltd,Home Care - Private Contractors Payment,866.58,0.00,COMMERCIAL SUPPLIER 
 09-10-2022,Adults,Homestead Care Service,Home Care - Private Contractors Payment,867.23,0.00,COMMERCIAL SUPPLIER 
 13-10-2022,Adults,Prestige Care & Support Ltd,Home Care - Private Contractors Payment,871.50,0.00,COMMERCIAL SUPPLIER 
 21-10-2022,Adults,Fountains Care Centre - Bondcare,Nursing Homes - Private Contractors Payment,871.71,0.00,COMMERCIAL SUPPLIER 
 13-10-2022,Adults,Prestige Care & Support Ltd,Home Care - Private Contractors Payment,873.14,0.00,COMMERCIAL SUPPLIER 
 09-10-2022,Adults,Homestead Care Service,Home Care - Private Contractors Payment,875.76,0.00,COMMERCIAL SUPPLIER 
 18-10-2022,Adults,Home Sweet Home Care Ltd,Home Care - Private Contractors Payment,876.74,0.00,COMMERCIAL SUPPLIER 
 21-10-2022,Adults,Little Gaynes,Residential Placements - Private Contractors Payment,880.00,0.00,COMMERCIAL SUPPLIER 
 14-10-2022,Adults,Cera Care Operations Ltd,Home Care - Private Contractors Payment,880.02,0.00,COMMERCIAL SUPPLIER 
 17-10-2022,Adults,Morepower Ltd t/a Aqs Homecare,Home Care - Private Contractors Payment,881.34,0.00,COMMERCIAL SUPPLIER 
 21-10-2022,Adults,Ebony Health Care Services Limited,Supported Other Accommodation - Private Contractors Payment,881.48,0.00,COMMERCIAL SUPPLIER 
 06-10-2022,Adults,Headway East London,Daycare - Private Contractors Payment,882.00,0.00,COMMERCIAL SUPPLIER 
 17-10-2022,Adults,Anytime Care 2020_a,Home Care - Private Contractors Payment,884.29,0.00,COMMERCIAL SUPPLIER 
 21-10-2022,Adults,EC Romford Holdings Ltd,Respite Care - Private Contractors Payment,885.71,0.00,COMMERCIAL SUPPLIER 
 04-10-2022,Adults,Prior Care Ltd_a,Home Care - Private Contractors Payment,887.90,0.00,COMMERCIAL SUPPLIER 
 21-10-2022,Adults,Chosen Care Group Ltd,Supported Other Accommodation - Private Contractors Payment,891.60,0.00,COMMERCIAL SUPPLIER 
 03-10-2022,Adults,Morepower Ltd t/a Aqs Homecare,Home Care - Private Contractors Payment,892.49,0.00,COMMERCIAL SUPPLIER 
 17-10-2022,Adults,Morepower Ltd t/a Aqs Homecare,Home Care - Private Contractors Payment,895.11,0.00,COMMERCIAL SUPPLIER 
 17-10-2022,Adults,Morepower Ltd t/a Aqs Homecare,Home Care - Private Contractors Payment,895.44,0.00,COMMERCIAL SUPPLIER 
 21-10-2022,Adults,Fresh Tree Care Services,Supported Other Accommodation - Private Contractors Payment,896.00,0.00,COMMERCIAL SUPPLIER 
 21-10-2022,Adults,Fresh Tree Care Services,Supported Other Accommodation - Private Contractors Payment,896.00,0.00,COMMERCIAL SUPPLIER 
 09-10-2022,Adults,Homestead Care Service,Home Care - Private Contractors Payment,899.70,0.00,COMMERCIAL SUPPLIER 
 21-10-2022,Adults,Westminster Health Care Ltd Derham House,Other Short Term Support,900.00,0.00,COMMERCIAL SUPPLIER 
 21-10-2022,Adults,GCH - Hillside Nursing Home,Other Short Term Support,900.00,0.00,COMMERCIAL SUPPLIER 
 21-10-2022,Adults,Lodge Group Care UK Ltd,Home Care - Private Contractors Payment,900.69,0.00,COMMERCIAL SUPPLIER 
 17-10-2022,Adults,Anytime Care 2020_a,Home Care - Private Contractors Payment,901.34,0.00,COMMERCIAL SUPPLIER 
 21-10-2022,Adults,Pathways Care Group Ltd,Residential Placements - Private Contractors Payment,904.04,0.00,COMMERCIAL SUPPLIER 
 13-10-2022,Adults,Inna Care Ltd,Home Care - Private Contractors Payment,905.28,0.00,COMMERCIAL SUPPLIER 
 26-10-2022,Adults,Home Support Services (Havering & Essex) Ltd,Home Care - Private Contractors Payment,905.28,0.00,COMMERCIAL SUPPLIER 
 14-10-2022,Adults,Cera Care Operations Ltd,Home Care - Private Contractors Payment,905.61,0.00,COMMERCIAL SUPPLIER 
 21-10-2022,Adults,Lodge Group Care UK Ltd,Home Care - Private Contractors Payment,906.59,0.00,COMMERCIAL SUPPLIER 
 09-10-2022,Adults,Homestead Care Service,Home Care - Private Contractors Payment,908.56,0.00,COMMERCIAL SUPPLIER 
 18-10-2022,Adults,Home Sweet Home Care Ltd,Home Care - Private Contractors Payment,911.84,0.00,COMMERCIAL SUPPLIER 
 10-10-2022,Adults,Tapestry_a.,Daycare - Private Contractors Payment,912.00,0.00,COMMERCIAL SUPPLIER 
 10-10-2022,Adults,Tapestry_a.,Daycare - Private Contractors Payment,912.00,0.00,COMMERCIAL SUPPLIER 
 10-10-2022,Adults,Tapestry_a.,Daycare - Private Contractors Payment,912.00,0.00,COMMERCIAL SUPPLIER 
 10-10-2022,Adults,Tapestry_a.,Daycare - Private Contractors Payment,912.00,0.00,COMMERCIAL SUPPLIER 
 10-10-2022,Adults,Tapestry_a.,Daycare - Private Contractors Payment,912.00,0.00,COMMERCIAL SUPPLIER 
 21-10-2022,Adults,Lodge Group Care UK Ltd,Home Care - Private Contractors Payment,912.50,0.00,COMMERCIAL SUPPLIER 
 12-10-2022,Adults,Matrix SCM Ltd,Agency Staff,913.95,0.00,COMMERCIAL SUPPLIER 
 21-10-2022,Adults,Lodge Group Care UK Ltd,Home Care - Private Contractors Payment,914.46,0.00,COMMERCIAL SUPPLIER 
 13-10-2022,Adults,Prestige Care & Support Ltd,Home Care - Private Contractors Payment,915.12,0.00,COMMERCIAL SUPPLIER 
 14-10-2022,Adults,Care-Away Ltd T/A Care Support,Home Care - Private Contractors Payment,915.20,0.00,COMMERCIAL SUPPLIER 
 14-10-2022,Adults,Cera Care Operations Ltd,Home Care - Private Contractors Payment,916.10,0.00,COMMERCIAL SUPPLIER 
 26-10-2022,Adults,Home Support Services (Havering & Essex) Ltd,Home Care - Private Contractors Payment,916.10,0.00,COMMERCIAL SUPPLIER 
 03-10-2022,Adults,Morepower Ltd t/a Aqs Homecare,Home Care - Private Contractors Payment,916.76,0.00,COMMERCIAL SUPPLIER 
 21-10-2022,Adults,Outlook Care - 4 Peel Way,Supported Other Accommodation - Private Contractors Payment,917.60,0.00,COMMERCIAL SUPPLIER 
 21-10-2022,Adults,Omega Elifar Ltd,Residential Placements - Private Contractors Payment,918.40,0.00,COMMERCIAL SUPPLIER 
 17-10-2022,Adults,Morepower Ltd t/a Aqs Homecare,Home Care - Private Contractors Payment,919.71,0.00,COMMERCIAL SUPPLIER 
 21-10-2022,Adults,Lodge Group Care UK Ltd,Home Care - Private Contractors Payment,919.71,0.00,COMMERCIAL SUPPLIER 
 12-10-2022,Adults,Matrix SCM Ltd,Agency Staff,926.21,0.00,COMMERCIAL SUPPLIER 
 26-10-2022,Adults,Home Support Services (Havering & Essex) Ltd,Home Care - Private Contractors Payment,926.27,0.00,COMMERCIAL SUPPLIER 
 21-10-2022,Adults,Lodge Group Care UK Ltd,Home Care - Private Contractors Payment,926.93,0.00,COMMERCIAL SUPPLIER 
 19-10-2022,Adults,Action First Assessments Ltd,Private Contractors Payment - Other,930.00,0.00,COMMERCIAL SUPPLIER 
 19-10-2022,Adults,Action First Assessments Ltd,Private Contractors Payment - Other,930.00,0.00,COMMERCIAL SUPPLIER 
 03-10-2022,Adults,Morepower Ltd t/a Aqs Homecare,Home Care - Private Contractors Payment,930.86,0.00,COMMERCIAL SUPPLIER 
 14-10-2022,Adults,Care-Away Ltd T/A Care Support,Home Care - Private Contractors Payment,931.84,0.00,COMMERCIAL SUPPLIER 
 14-10-2022,Adults,Care-Away Ltd T/A Care Support,Home Care - Private Contractors Payment,931.84,0.00,COMMERCIAL SUPPLIER 
 14-10-2022,Adults,Care-Away Ltd T/A Care Support,Home Care - Private Contractors Payment,931.84,0.00,COMMERCIAL SUPPLIER 
 14-10-2022,Adults,Care-Away Ltd T/A Care Support,Home Care - Private Contractors Payment,931.84,0.00,COMMERCIAL SUPPLIER 
 14-10-2022,Adults,Care-Away Ltd T/A Care Support,Home Care - Private Contractors Payment,931.84,0.00,COMMERCIAL SUPPLIER 
 14-10-2022,Adults,Care-Away Ltd T/A Care Support,Home Care - Private Contractors Payment,931.84,0.00,COMMERCIAL SUPPLIER 
 14-10-2022,Adults,Care-Away Ltd T/A Care Support,Home Care - Private Contractors Payment,931.84,0.00,COMMERCIAL SUPPLIER 
 17-10-2022,Adults,Morepower Ltd t/a Aqs Homecare,Home Care - Private Contractors Payment,934.80,0.00,COMMERCIAL SUPPLIER 
 21-10-2022,Adults,Lodge Group Care UK Ltd,Home Care - Private Contractors Payment,935.78,0.00,COMMERCIAL SUPPLIER 
 24-10-2022,Adults,John Stanleys Care Agency Ltd,Home Care - Private Contractors Payment,942.34,0.00,COMMERCIAL SUPPLIER 
 09-10-2022,Adults,Homestead Care Service,Home Care - Private Contractors Payment,943.00,0.00,COMMERCIAL SUPPLIER 
 10-10-2022,Adults,Passion Tree Care Services Ltd,Home Care - Private Contractors Payment,944.64,0.00,COMMERCIAL SUPPLIER 
 10-10-2022,Adults,Ace Outreach Ltd,Home Care - Private Contractors Payment,945.00,0.00,COMMERCIAL SUPPLIER 
 21-10-2022,Adults,Lodge Group Care UK Ltd,Home Care - Private Contractors Payment,948.25,0.00,COMMERCIAL SUPPLIER 
 21-10-2022,Adults,Barleycroft Care Home Ltd,Other Short Term Support,950.00,0.00,COMMERCIAL SUPPLIER 
 13-10-2022,Adults,Prestige Care & Support Ltd,Home Care - Private Contractors Payment,954.48,0.00,COMMERCIAL SUPPLIER 
 09-10-2022,Adults,Homestead Care Service,Home Care - Private Contractors Payment,957.10,0.00,COMMERCIAL SUPPLIER 
 17-10-2022,Adults,Morepower Ltd t/a Aqs Homecare,Home Care - Private Contractors Payment,957.10,0.00,COMMERCIAL SUPPLIER 
 21-10-2022,Adults,Lodge Group Care UK Ltd,Home Care - Private Contractors Payment,959.73,0.00,COMMERCIAL SUPPLIER 
 17-10-2022,Adults,All Therapy Solutions Ltd,Occupational Health,960.00,0.00,COMMERCIAL SUPPLIER 
 21-10-2022,Adults,2 Peel Way - Outlook Care,Supported Other Accommodation - Private Contractors Payment,963.92,0.00,NON COMMERCIAL SUPPLIER 
 10-10-2022,Adults,Outreach Support Services Ltd,Home Care - Private Contractors Payment,964.32,0.00,COMMERCIAL SUPPLIER 
 21-10-2022,Adults,IECC Care,Supported Other Accommodation - Private Contractors Payment,964.32,0.00,COMMERCIAL SUPPLIER 
 07-10-2022,Adults,Treetops Romford Ltd,Other Short Term Support,965.00,0.00,COMMERCIAL SUPPLIER 
 07-10-2022,Adults,The Learning Centre (TLC Romford) Ltd,Other Short Term Support,965.00,0.00,COMMERCIAL SUPPLIER 
 07-10-2022,Adults,New Opportunity Groups Havering,Other Short Term Support,965.00,0.00,COMMERCIAL SUPPLIER 
 07-10-2022,Adults,Eastway Care Ltd_a,Other Short Term Support,965.00,0.00,COMMERCIAL SUPPLIER 
 10-10-2022,Adults,Liberty Centre Ltd,Other Short Term Support,965.00,0.00,COMMERCIAL SUPPLIER 
 14-10-2022,Adults,Care-Away Ltd T/A Care Support,Home Care - Private Contractors Payment,965.12,0.00,COMMERCIAL SUPPLIER 
 14-10-2022,Adults,Care-Away Ltd T/A Care Support,Home Care - Private Contractors Payment,965.12,0.00,COMMERCIAL SUPPLIER 
 14-10-2022,Adults,Care-Away Ltd T/A Care Support,Home Care - Private Contractors Payment,965.12,0.00,COMMERCIAL SUPPLIER 
 26-10-2022,Adults,Matrix SCM Ltd,Agency Staff,966.48,0.00,COMMERCIAL SUPPLIER 
 18-10-2022,Adults,Home Sweet Home Care Ltd,Home Care - Private Contractors Payment,968.26,0.00,COMMERCIAL SUPPLIER 
 21-10-2022,Adults,GCH - Hillside Nursing Home,Nursing Homes - Private Contractors Payment,968.57,0.00,COMMERCIAL SUPPLIER 
 09-10-2022,Adults,Homestead Care Service,Home Care - Private Contractors Payment,969.57,0.00,COMMERCIAL SUPPLIER 
 26-10-2022,Adults,Home Support Services (Havering & Essex) Ltd,Home Care - Private Contractors Payment,970.22,0.00,COMMERCIAL SUPPLIER 
 21-10-2022,Adults,Lodge Lane Care Home Limited,Other Short Term Support,970.86,0.00,COMMERCIAL SUPPLIER 
 28-10-2022,Adults,Achieve Together  Ltd - Westcliffe Villas,Residential Placements - Private Contractors Payment,974.12,0.00,COMMERCIAL SUPPLIER 
 21-10-2022,Adults,Ash Grove Residential Care Home,Residential Placements - Private Contractors Payment,974.29,0.00,COMMERCIAL SUPPLIER 
 21-10-2022,Adults,Ash Grove Residential Care Home,Residential Placements - Private Contractors Payment,974.29,0.00,COMMERCIAL SUPPLIER 
 24-10-2022,Adults,John Stanleys Care Agency Ltd,Home Care - Private Contractors Payment,980.06,0.00,COMMERCIAL SUPPLIER 
 13-10-2022,Adults,Inna Care Ltd,Home Care - Private Contractors Payment,984.00,0.00,COMMERCIAL SUPPLIER 
 17-10-2022,Adults,Morepower Ltd t/a Aqs Homecare,Home Care - Private Contractors Payment,984.00,0.00,COMMERCIAL SUPPLIER 
 18-10-2022,Adults,Home Sweet Home Care Ltd,Home Care - Private Contractors Payment,984.00,0.00,COMMERCIAL SUPPLIER 
 14-10-2022,Adults,Cera Care Operations Ltd,Home Care - Private Contractors Payment,984.66,0.00,COMMERCIAL SUPPLIER 
 29-10-2022,Adults,Headway East London,Daycare - Private Contractors Payment,987.00,0.00,COMMERCIAL SUPPLIER 
 29-10-2022,Adults,Headway East London,Daycare - Private Contractors Payment,987.00,0.00,COMMERCIAL SUPPLIER 
 29-10-2022,Adults,Headway East London,Daycare - Private Contractors Payment,987.00,0.00,COMMERCIAL SUPPLIER 
 29-10-2022,Adults,Headway East London,Daycare - Private Contractors Payment,987.00,0.00,COMMERCIAL SUPPLIER 
 26-10-2022,Adults,Home Support Services (Havering & Essex) Ltd,Home Care - Private Contractors Payment,988.92,0.00,COMMERCIAL SUPPLIER 
 09-10-2022,Adults,Homestead Care Service,Home Care - Private Contractors Payment,989.25,0.00,COMMERCIAL SUPPLIER 
 04-10-2022,Adults,Prior Care Ltd_a,Home Care - Private Contractors Payment,989.58,0.00,COMMERCIAL SUPPLIER 
 24-10-2022,Adults,John Stanleys Care Agency Ltd,Home Care - Private Contractors Payment,989.90,0.00,COMMERCIAL SUPPLIER 
 14-10-2022,Adults,Care-Away Ltd T/A Care Support,Home Care - Private Contractors Payment,990.08,0.00,COMMERCIAL SUPPLIER 
 09-10-2022,Adults,Homestead Care Service,Home Care - Private Contractors Payment,990.56,0.00,COMMERCIAL SUPPLIER 
 18-10-2022,Adults,Home Sweet Home Care Ltd,Home Care - Private Contractors Payment,991.87,0.00,COMMERCIAL SUPPLIER 
 21-10-2022,Adults,Ebony Health Care Services Limited,Supported Other Accommodation - Private Contractors Payment,992.24,0.00,COMMERCIAL SUPPLIER 
 18-10-2022,Adults,Home Sweet Home Care Ltd,Home Care - Private Contractors Payment,992.53,0.00,COMMERCIAL SUPPLIER 
 21-10-2022,Adults,Westminster Health Care Ltd Derham House,Respite Care - Private Contractors Payment,992.86,0.00,COMMERCIAL SUPPLIER 
 12-10-2022,Adults,Hospiva Care & Associates Agency Ltd_a,Home Care - Private Contractors Payment,993.84,0.00,COMMERCIAL SUPPLIER 
 21-10-2022,Adults,Bupa Care Homes (HVC) - Havering Court,Nursing Homes - Private Contractors Payment,998.06,0.00,COMMERCIAL SUPPLIER 
 26-10-2022,Adults,Home Support Services (Havering & Essex) Ltd,Home Care - Private Contractors Payment,1001.71,0.00,COMMERCIAL SUPPLIER 
 21-10-2022,Adults,Coastal Supported Living CIC,Supported Other Accommodation - Private Contractors Payment,1002.56,0.00,COMMERCIAL SUPPLIER 
 04-10-2022,Adults,Prior Care Ltd_a,Home Care - Private Contractors Payment,1005.32,0.00,COMMERCIAL SUPPLIER 
 03-10-2022,Adults,Morepower Ltd t/a Aqs Homecare,Home Care - Private Contractors Payment,1005.65,0.00,COMMERCIAL SUPPLIER 
 09-10-2022,Adults,Homestead Care Service,Home Care - Private Contractors Payment,1006.63,0.00,COMMERCIAL SUPPLIER 
 26-10-2022,Adults,Home Support Services (Havering & Essex) Ltd,Home Care - Private Contractors Payment,1007.94,0.00,COMMERCIAL SUPPLIER 
 21-10-2022,Adults,Independent Community Support Ltd t/a Wingletye Lodge ,Supported Other Accommodation - Private Contractors Payment,1008.00,0.00,COMMERCIAL SUPPLIER 
 21-10-2022,Adults,Personal Information - Redacted,Supported Other Accommodation - Private Contractors Payment,1008.00,0.00,INDIVIDUALS 
 09-10-2022,Adults,Homestead Care Service,Home Care - Private Contractors Payment,1010.90,0.00,COMMERCIAL SUPPLIER 
 13-10-2022,Adults,Prestige Care & Support Ltd,Home Care - Private Contractors Payment,1013.52,0.00,COMMERCIAL SUPPLIER 
 26-10-2022,Adults,Home Support Services (Havering & Essex) Ltd,Home Care - Private Contractors Payment,1019.42,0.00,COMMERCIAL SUPPLIER 
 21-10-2022,Adults,Infinite Healthcare Services Ltd.,Supported Other Accommodation - Private Contractors Payment,1020.00,0.00,COMMERCIAL SUPPLIER 
 03-10-2022,Adults,Morepower Ltd t/a Aqs Homecare,Home Care - Private Contractors Payment,1021.06,0.00,COMMERCIAL SUPPLIER 
 09-10-2022,Adults,Homestead Care Service,Home Care - Private Contractors Payment,1024.02,0.00,COMMERCIAL SUPPLIER 
 03-10-2022,Adults,Trinity London Care Ltd,Daycare - Private Contractors Payment,1025.20,0.00,COMMERCIAL SUPPLIER 
 03-10-2022,Adults,Trinity London Care Ltd,Daycare - Private Contractors Payment,1025.20,0.00,COMMERCIAL SUPPLIER 
 03-10-2022,Adults,Trinity London Care Ltd,Daycare - Private Contractors Payment,1025.20,0.00,COMMERCIAL SUPPLIER 
 25-10-2022,Adults,Trinity London Care Ltd,Daycare - Private Contractors Payment,1025.20,0.00,COMMERCIAL SUPPLIER 
 25-10-2022,Adults,Trinity London Care Ltd,Daycare - Private Contractors Payment,1025.20,0.00,COMMERCIAL SUPPLIER 
 25-10-2022,Adults,Trinity London Care Ltd,Daycare - Private Contractors Payment,1025.20,0.00,COMMERCIAL SUPPLIER 
 13-10-2022,Adults,Prestige Care & Support Ltd,Home Care - Private Contractors Payment,1027.62,0.00,COMMERCIAL SUPPLIER 
 18-10-2022,Adults,Home Sweet Home Care Ltd,Home Care - Private Contractors Payment,1027.62,0.00,COMMERCIAL SUPPLIER 
 13-10-2022,Adults,Prestige Care & Support Ltd,Home Care - Private Contractors Payment,1028.28,0.00,COMMERCIAL SUPPLIER 
 26-10-2022,Adults,Home Support Services (Havering & Essex) Ltd,Home Care - Private Contractors Payment,1028.28,0.00,COMMERCIAL SUPPLIER 
 26-10-2022,Adults,Home Support Services (Havering & Essex) Ltd,Home Care - Private Contractors Payment,1029.59,0.00,COMMERCIAL SUPPLIER 
 09-10-2022,Adults,Homestead Care Service,Home Care - Private Contractors Payment,1031.56,0.00,COMMERCIAL SUPPLIER 
 13-10-2022,Adults,Prestige Care & Support Ltd,Home Care - Private Contractors Payment,1033.86,0.00,COMMERCIAL SUPPLIER 
 14-10-2022,Adults,Care-Away Ltd T/A Care Support,Home Care - Private Contractors Payment,1034.51,0.00,COMMERCIAL SUPPLIER 
 21-10-2022,Adults,Outlook Care - 4 Peel Way,Supported Other Accommodation - Private Contractors Payment,1035.08,0.00,COMMERCIAL SUPPLIER 
 26-10-2022,Adults,Matrix SCM Ltd,Agency Staff,1036.56,0.00,COMMERCIAL SUPPLIER 
 09-10-2022,Adults,Homestead Care Service,Home Care - Private Contractors Payment,1037.79,0.00,COMMERCIAL SUPPLIER 
 21-10-2022,Adults,The Cottage Residential Care Home,Residential Placements - Private Contractors Payment,1040.28,0.00,COMMERCIAL SUPPLIER 
 13-10-2022,Adults,Prestige Care & Support Ltd,Home Care - Private Contractors Payment,1040.42,0.00,COMMERCIAL SUPPLIER 
 13-10-2022,Adults,Prestige Care & Support Ltd,Home Care - Private Contractors Payment,1043.37,0.00,COMMERCIAL SUPPLIER 
 13-10-2022,Adults,Prestige Care & Support Ltd,Home Care - Private Contractors Payment,1044.02,0.00,COMMERCIAL SUPPLIER 
 26-10-2022,Adults,Home Support Services (Havering & Essex) Ltd,Home Care - Private Contractors Payment,1044.68,0.00,COMMERCIAL SUPPLIER 
 21-10-2022,Adults,Care Management Group Ltd - The Ridgeway,Supported Other Accommodation - Private Contractors Payment,1047.76,0.00,COMMERCIAL SUPPLIER 
 14-10-2022,Adults,Care-Away Ltd T/A Care Support,Home Care - Private Contractors Payment,1048.32,0.00,COMMERCIAL SUPPLIER 
 14-10-2022,Adults,Care-Away Ltd T/A Care Support,Home Care - Private Contractors Payment,1048.32,0.00,COMMERCIAL SUPPLIER 
 09-10-2022,Adults,Homestead Care Service,Home Care - Private Contractors Payment,1048.62,0.00,COMMERCIAL SUPPLIER 
 04-10-2022,Adults,Flex360 Limited,Private Contractors Payment - Other,1050.00,0.00,COMMERCIAL SUPPLIER 
 21-10-2022,Adults,Protecthand Care Ltd ,Supported Other Accommodation - Private Contractors Payment,1050.00,0.00,COMMERCIAL SUPPLIER 
 26-10-2022,Adults,Home Support Services (Havering & Essex) Ltd,Home Care - Private Contractors Payment,1054.85,0.00,COMMERCIAL SUPPLIER 
 21-10-2022,Adults,Outreach Support Services Ltd,Supported Other Accommodation - Private Contractors Payment,1058.40,0.00,COMMERCIAL SUPPLIER 
 04-10-2022,Adults,Prior Care Ltd_a,Home Care - Private Contractors Payment,1059.77,0.00,COMMERCIAL SUPPLIER 
 04-10-2022,Adults,Prior Care Ltd_a,Home Care - Private Contractors Payment,1060.10,0.00,COMMERCIAL SUPPLIER 
 04-10-2022,Adults,Prior Care Ltd_a,Home Care - Private Contractors Payment,1062.72,0.00,COMMERCIAL SUPPLIER 
 13-10-2022,Adults,Inna Care Ltd,Home Care - Private Contractors Payment,1062.72,0.00,COMMERCIAL SUPPLIER 
 21-10-2022,Adults,Gims Care Solution Ltd_a,Home Care - Private Contractors Payment,1062.72,0.00,NON COMMERCIAL SUPPLIER 
 09-10-2022,Adults,Homestead Care Service,Home Care - Private Contractors Payment,1063.38,0.00,COMMERCIAL SUPPLIER 
 09-10-2022,Adults,Homestead Care Service,Home Care - Private Contractors Payment,1063.70,0.00,COMMERCIAL SUPPLIER 
 21-10-2022,Adults,Lodge Lane Care Home Limited,Residential Placements - Private Contractors Payment,1064.00,0.00,COMMERCIAL SUPPLIER 
 18-10-2022,Adults,Home Sweet Home Care Ltd,Home Care - Private Contractors Payment,1064.36,0.00,COMMERCIAL SUPPLIER 
 18-10-2022,Adults,Home Sweet Home Care Ltd,Home Care - Private Contractors Payment,1066.33,0.00,COMMERCIAL SUPPLIER 
 17-10-2022,Adults,Morepower Ltd t/a Aqs Homecare,Home Care - Private Contractors Payment,1067.97,0.00,COMMERCIAL SUPPLIER 
 26-10-2022,Adults,Home Support Services (Havering & Essex) Ltd,Home Care - Private Contractors Payment,1068.62,0.00,COMMERCIAL SUPPLIER 
 09-10-2022,Adults,Homestead Care Service,Home Care - Private Contractors Payment,1069.61,0.00,COMMERCIAL SUPPLIER 
 13-10-2022,Adults,Prestige Care & Support Ltd,Home Care - Private Contractors Payment,1069.94,0.00,COMMERCIAL SUPPLIER 
 26-10-2022,Adults,Home Support Services (Havering & Essex) Ltd,Home Care - Private Contractors Payment,1071.90,0.00,COMMERCIAL SUPPLIER 
 09-10-2022,Adults,Homestead Care Service,Home Care - Private Contractors Payment,1073.22,0.00,COMMERCIAL SUPPLIER 
 09-10-2022,Adults,Homestead Care Service,Home Care - Private Contractors Payment,1073.87,0.00,COMMERCIAL SUPPLIER 
 09-10-2022,Adults,Homestead Care Service,Home Care - Private Contractors Payment,1074.20,0.00,COMMERCIAL SUPPLIER 
 26-10-2022,Adults,Home Support Services (Havering & Essex) Ltd,Home Care - Private Contractors Payment,1074.20,0.00,COMMERCIAL SUPPLIER 
 09-10-2022,Adults,Homestead Care Service,Home Care - Private Contractors Payment,1079.12,0.00,COMMERCIAL SUPPLIER 
 14-10-2022,Adults,Quality Healthcare Solutions Ltd t/a Kare Plus Romford,Home Care - Private Contractors Payment,1080.76,0.00,COMMERCIAL SUPPLIER 
 09-10-2022,Adults,Homestead Care Service,Home Care - Private Contractors Payment,1082.40,0.00,COMMERCIAL SUPPLIER 
 18-10-2022,Adults,Home Sweet Home Care Ltd,Home Care - Private Contractors Payment,1082.40,0.00,COMMERCIAL SUPPLIER 
 26-10-2022,Adults,Home Support Services (Havering & Essex) Ltd,Home Care - Private Contractors Payment,1082.40,0.00,COMMERCIAL SUPPLIER 
 26-10-2022,Adults,Home Support Services (Havering & Essex) Ltd,Home Care - Private Contractors Payment,1082.40,0.00,COMMERCIAL SUPPLIER 
 09-10-2022,Adults,Homestead Care Service,Home Care - Private Contractors Payment,1082.73,0.00,COMMERCIAL SUPPLIER 
 10-10-2022,Adults,Tapestry_a.,Daycare - Private Contractors Payment,1083.00,0.00,COMMERCIAL SUPPLIER 
 03-10-2022,Adults,Morepower Ltd t/a Aqs Homecare,Home Care - Private Contractors Payment,1083.71,0.00,COMMERCIAL SUPPLIER 
 18-10-2022,Adults,Home Sweet Home Care Ltd,Home Care - Private Contractors Payment,1084.37,0.00,COMMERCIAL SUPPLIER 
 18-10-2022,Adults,Home Sweet Home Care Ltd,Home Care - Private Contractors Payment,1085.02,0.00,COMMERCIAL SUPPLIER 
 18-10-2022,Adults,Home Sweet Home Care Ltd,Home Care - Private Contractors Payment,1086.01,0.00,COMMERCIAL SUPPLIER 
 14-10-2022,Adults,Quality Healthcare Solutions Ltd t/a Kare Plus Romford,Home Care - Private Contractors Payment,1086.34,0.00,COMMERCIAL SUPPLIER 
 09-10-2022,Adults,Homestead Care Service,Home Care - Private Contractors Payment,1086.66,0.00,COMMERCIAL SUPPLIER 
 14-10-2022,Adults,Cera Care Operations Ltd,Home Care - Private Contractors Payment,1087.65,0.00,COMMERCIAL SUPPLIER 
 09-10-2022,Adults,Homestead Care Service,Home Care - Private Contractors Payment,1090.27,0.00,COMMERCIAL SUPPLIER 
 17-10-2022,Adults,Anytime Care 2020_a,Home Care - Private Contractors Payment,1090.60,0.00,COMMERCIAL SUPPLIER 
 09-10-2022,Adults,Homestead Care Service,Home Care - Private Contractors Payment,1090.93,0.00,COMMERCIAL SUPPLIER 
 09-10-2022,Adults,Homestead Care Service,Home Care - Private Contractors Payment,1091.26,0.00,COMMERCIAL SUPPLIER 
 21-10-2022,Adults,Lodge Group Care UK Ltd,Home Care - Private Contractors Payment,1091.26,0.00,COMMERCIAL SUPPLIER 
 24-10-2022,Adults,John Stanleys Care Agency Ltd,Home Care - Private Contractors Payment,1091.91,0.00,COMMERCIAL SUPPLIER 
 21-10-2022,Adults,Mundy House,Residential Placements - Private Contractors Payment,1092.14,0.00,COMMERCIAL SUPPLIER 
 13-10-2022,Adults,Prestige Care & Support Ltd,Home Care - Private Contractors Payment,1092.24,0.00,COMMERCIAL SUPPLIER 
 18-10-2022,Adults,Home Sweet Home Care Ltd,Home Care - Private Contractors Payment,1092.24,0.00,COMMERCIAL SUPPLIER 
 14-10-2022,Adults,Cera Care Operations Ltd,Home Care - Private Contractors Payment,1092.57,0.00,COMMERCIAL SUPPLIER 
 18-10-2022,Adults,Home Sweet Home Care Ltd,Home Care - Private Contractors Payment,1092.57,0.00,COMMERCIAL SUPPLIER 
 26-10-2022,Adults,Home Support Services (Havering & Essex) Ltd,Home Care - Private Contractors Payment,1092.57,0.00,COMMERCIAL SUPPLIER 
 13-10-2022,Adults,Prestige Care & Support Ltd,Home Care - Private Contractors Payment,1092.90,0.00,COMMERCIAL SUPPLIER 
 17-10-2022,Adults,Anytime Care 2020_a,Home Care - Private Contractors Payment,1092.90,0.00,COMMERCIAL SUPPLIER 
 13-10-2022,Adults,Prestige Care & Support Ltd,Home Care - Private Contractors Payment,1093.22,0.00,COMMERCIAL SUPPLIER 
 14-10-2022,Adults,Cera Care Operations Ltd,Home Care - Private Contractors Payment,1093.22,0.00,COMMERCIAL SUPPLIER 
 09-10-2022,Adults,Homestead Care Service,Home Care - Private Contractors Payment,1093.55,0.00,COMMERCIAL SUPPLIER 
 18-10-2022,Adults,Home Sweet Home Care Ltd,Home Care - Private Contractors Payment,1093.55,0.00,COMMERCIAL SUPPLIER 
 13-10-2022,Adults,Prestige Care & Support Ltd,Home Care - Private Contractors Payment,1093.88,0.00,COMMERCIAL SUPPLIER 
 13-10-2022,Adults,Prestige Care & Support Ltd,Home Care - Private Contractors Payment,1093.88,0.00,COMMERCIAL SUPPLIER 
 14-10-2022,Adults,Cera Care Operations Ltd,Home Care - Private Contractors Payment,1094.21,0.00,COMMERCIAL SUPPLIER 
 18-10-2022,Adults,Home Sweet Home Care Ltd,Home Care - Private Contractors Payment,1095.19,0.00,COMMERCIAL SUPPLIER 
 18-10-2022,Adults,Home Sweet Home Care Ltd,Home Care - Private Contractors Payment,1095.19,0.00,COMMERCIAL SUPPLIER 
 18-10-2022,Adults,Home Sweet Home Care Ltd,Home Care - Private Contractors Payment,1095.85,0.00,COMMERCIAL SUPPLIER 
 18-10-2022,Adults,Home Sweet Home Care Ltd,Home Care - Private Contractors Payment,1096.18,0.00,COMMERCIAL SUPPLIER 
 03-10-2022,Adults,Morepower Ltd t/a Aqs Homecare,Home Care - Private Contractors Payment,1096.83,0.00,COMMERCIAL SUPPLIER 
 03-10-2022,Adults,Morepower Ltd t/a Aqs Homecare,Home Care - Private Contractors Payment,1098.14,0.00,COMMERCIAL SUPPLIER 
 03-10-2022,Adults,Morepower Ltd t/a Aqs Homecare,Home Care - Private Contractors Payment,1098.47,0.00,COMMERCIAL SUPPLIER 
 14-10-2022,Adults,Cera Care Operations Ltd,Home Care - Private Contractors Payment,1098.47,0.00,COMMERCIAL SUPPLIER 
 12-10-2022,Adults,Hospiva Care & Associates Agency Ltd_a,Home Care - Private Contractors Payment,1098.80,0.00,COMMERCIAL SUPPLIER 
 21-10-2022,Adults,Lodge Group Care UK Ltd,Home Care - Private Contractors Payment,1098.80,0.00,COMMERCIAL SUPPLIER 
 26-10-2022,Adults,Home Support Services (Havering & Essex) Ltd,Home Care - Private Contractors Payment,1098.80,0.00,COMMERCIAL SUPPLIER 
 18-10-2022,Adults,Home Sweet Home Care Ltd,Home Care - Private Contractors Payment,1099.46,0.00,COMMERCIAL SUPPLIER 
 18-10-2022,Adults,Home Sweet Home Care Ltd,Home Care - Private Contractors Payment,1099.78,0.00,COMMERCIAL SUPPLIER 
 18-10-2022,Adults,Home Sweet Home Care Ltd,Home Care - Private Contractors Payment,1100.11,0.00,COMMERCIAL SUPPLIER 
 26-10-2022,Adults,Home Support Services (Havering & Essex) Ltd,Home Care - Private Contractors Payment,1100.11,0.00,COMMERCIAL SUPPLIER 
 09-10-2022,Adults,Homestead Care Service,Home Care - Private Contractors Payment,1101.10,0.00,COMMERCIAL SUPPLIER 
 21-10-2022,Adults,Lodge Group Care UK Ltd,Home Care - Private Contractors Payment,1101.42,0.00,COMMERCIAL SUPPLIER 
 25-10-2022,Adults,Prior Care Ltd_a,Home Care - Private Contractors Payment,1101.42,0.00,COMMERCIAL SUPPLIER 
 18-10-2022,Adults,Home Sweet Home Care Ltd,Home Care - Private Contractors Payment,1101.75,0.00,COMMERCIAL SUPPLIER 
 21-10-2022,Adults,Lodge Group Care UK Ltd,Home Care - Private Contractors Payment,1101.75,0.00,COMMERCIAL SUPPLIER 
 25-10-2022,Adults,Prior Care Ltd_a,Home Care - Private Contractors Payment,1101.75,0.00,COMMERCIAL SUPPLIER 
 04-10-2022,Adults,Prior Care Ltd_a,Home Care - Private Contractors Payment,1102.08,0.00,COMMERCIAL SUPPLIER 
 06-10-2022,Adults,Recruitcare Professionals Ltd ,Home Care - Private Contractors Payment,1102.08,0.00,COMMERCIAL SUPPLIER 
 06-10-2022,Adults,Recruitcare Professionals Ltd ,Home Care - Private Contractors Payment,1102.08,0.00,COMMERCIAL SUPPLIER 
 06-10-2022,Adults,Recruitcare Professionals Ltd ,Home Care - Private Contractors Payment,1102.08,0.00,COMMERCIAL SUPPLIER 
 06-10-2022,Adults,Recruitcare Professionals Ltd ,Home Care - Private Contractors Payment,1102.08,0.00,COMMERCIAL SUPPLIER 
 09-10-2022,Adults,Homestead Care Service,Home Care - Private Contractors Payment,1102.08,0.00,COMMERCIAL SUPPLIER 
 09-10-2022,Adults,Homestead Care Service,Home Care - Private Contractors Payment,1102.08,0.00,COMMERCIAL SUPPLIER 
 10-10-2022,Adults,IJB Healthcare Ltd,Home Care - Private Contractors Payment,1102.08,0.00,COMMERCIAL SUPPLIER 
 10-10-2022,Adults,IJB Healthcare Ltd,Home Care - Private Contractors Payment,1102.08,0.00,COMMERCIAL SUPPLIER 
 10-10-2022,Adults,Outreach Support Services Ltd,Home Care - Private Contractors Payment,1102.08,0.00,COMMERCIAL SUPPLIER 
 10-10-2022,Adults,Outreach Support Services Ltd,Home Care - Private Contractors Payment,1102.08,0.00,COMMERCIAL SUPPLIER 
 10-10-2022,Adults,Outreach Support Services Ltd,Home Care - Private Contractors Payment,1102.08,0.00,COMMERCIAL SUPPLIER 
 10-10-2022,Adults,Outreach Support Services Ltd,Home Care - Private Contractors Payment,1102.08,0.00,COMMERCIAL SUPPLIER 
 10-10-2022,Adults,Outreach Support Services Ltd,Home Care - Private Contractors Payment,1102.08,0.00,COMMERCIAL SUPPLIER 
 10-10-2022,Adults,Outreach Support Services Ltd,Home Care - Private Contractors Payment,1102.08,0.00,COMMERCIAL SUPPLIER 
 10-10-2022,Adults,Passion Tree Care Services Ltd,Home Care - Private Contractors Payment,1102.08,0.00,COMMERCIAL SUPPLIER 
 10-10-2022,Adults,Passion Tree Care Services Ltd,Home Care - Private Contractors Payment,1102.08,0.00,COMMERCIAL SUPPLIER 
 10-10-2022,Adults,Passion Tree Care Services Ltd,Home Care - Private Contractors Payment,1102.08,0.00,COMMERCIAL SUPPLIER 
 10-10-2022,Adults,London Homecare Ltd,Home Care - Private Contractors Payment,1102.08,0.00,COMMERCIAL SUPPLIER 
 13-10-2022,Adults,Prestige Care & Support Ltd,Home Care - Private Contractors Payment,1102.08,0.00,COMMERCIAL SUPPLIER 
 13-10-2022,Adults,Prestige Care & Support Ltd,Home Care - Private Contractors Payment,1102.08,0.00,COMMERCIAL SUPPLIER 
 13-10-2022,Adults,Inna Care Ltd,Home Care - Private Contractors Payment,1102.08,0.00,COMMERCIAL SUPPLIER 
 13-10-2022,Adults,Inna Care Ltd,Home Care - Private Contractors Payment,1102.08,0.00,COMMERCIAL SUPPLIER 
 13-10-2022,Adults,Inna Care Ltd,Home Care - Private Contractors Payment,1102.08,0.00,COMMERCIAL SUPPLIER 
 13-10-2022,Adults,Inna Care Ltd,Home Care - Private Contractors Payment,1102.08,0.00,COMMERCIAL SUPPLIER 
 13-10-2022,Adults,Inna Care Ltd,Home Care - Private Contractors Payment,1102.08,0.00,COMMERCIAL SUPPLIER 
 13-10-2022,Adults,Inna Care Ltd,Home Care - Private Contractors Payment,1102.08,0.00,COMMERCIAL SUPPLIER 
 17-10-2022,Adults,Anytime Care 2020_a,Home Care - Private Contractors Payment,1102.08,0.00,COMMERCIAL SUPPLIER 
 17-10-2022,Adults,Rosemont Care Limited,Home Care - Private Contractors Payment,1102.08,0.00,COMMERCIAL SUPPLIER 
 17-10-2022,Adults,Rosemont Care Limited,Home Care - Private Contractors Payment,1102.08,0.00,COMMERCIAL SUPPLIER 
 17-10-2022,Adults,Rosemont Care Limited,Home Care - Private Contractors Payment,1102.08,0.00,COMMERCIAL SUPPLIER 
 17-10-2022,Adults,Rosemont Care Limited,Home Care - Private Contractors Payment,1102.08,0.00,COMMERCIAL SUPPLIER 
 17-10-2022,Adults,Rosemont Care Limited,Home Care - Private Contractors Payment,1102.08,0.00,COMMERCIAL SUPPLIER 
 17-10-2022,Adults,Rosemont Care Limited,Home Care - Private Contractors Payment,1102.08,0.00,COMMERCIAL SUPPLIER 
 17-10-2022,Adults,Rosemont Care Limited,Home Care - Private Contractors Payment,1102.08,0.00,COMMERCIAL SUPPLIER 
 18-10-2022,Adults,Home Sweet Home Care Ltd,Home Care - Private Contractors Payment,1102.08,0.00,COMMERCIAL SUPPLIER 
 18-10-2022,Adults,Home Sweet Home Care Ltd,Home Care - Private Contractors Payment,1102.08,0.00,COMMERCIAL SUPPLIER 
 18-10-2022,Adults,Home Sweet Home Care Ltd,Home Care - Private Contractors Payment,1102.08,0.00,COMMERCIAL SUPPLIER 
 21-10-2022,Adults,Lodge Group Care UK Ltd,Home Care - Private Contractors Payment,1102.08,0.00,COMMERCIAL SUPPLIER 
 21-10-2022,Adults,Lodge Group Care UK Ltd,Home Care - Private Contractors Payment,1102.08,0.00,COMMERCIAL SUPPLIER 
 21-10-2022,Adults,Lodge Group Care UK Ltd,Home Care - Private Contractors Payment,1102.08,0.00,COMMERCIAL SUPPLIER 
 21-10-2022,Adults,Lodge Group Care UK Ltd,Home Care - Private Contractors Payment,1102.08,0.00,COMMERCIAL SUPPLIER 
 21-10-2022,Adults,Lodge Group Care UK Ltd,Home Care - Private Contractors Payment,1102.08,0.00,COMMERCIAL SUPPLIER 
 24-10-2022,Adults,John Stanleys Care Agency Ltd,Home Care - Private Contractors Payment,1102.08,0.00,COMMERCIAL SUPPLIER 
 25-10-2022,Adults,Prior Care Ltd_a,Home Care - Private Contractors Payment,1102.08,0.00,COMMERCIAL SUPPLIER 
 25-10-2022,Adults,Prior Care Ltd_a,Home Care - Private Contractors Payment,1102.08,0.00,COMMERCIAL SUPPLIER 
 26-10-2022,Adults,Home Support Services (Havering & Essex) Ltd,Home Care - Private Contractors Payment,1102.08,0.00,COMMERCIAL SUPPLIER 
 26-10-2022,Adults,Home Support Services (Havering & Essex) Ltd,Home Care - Private Contractors Payment,1102.08,0.00,COMMERCIAL SUPPLIER 
 26-10-2022,Adults,Home Support Services (Havering & Essex) Ltd,Home Care - Private Contractors Payment,1102.08,0.00,COMMERCIAL SUPPLIER 
 26-10-2022,Adults,Home Support Services (Havering & Essex) Ltd,Home Care - Private Contractors Payment,1102.08,0.00,COMMERCIAL SUPPLIER 
 26-10-2022,Adults,Home Support Services (Havering & Essex) Ltd,Home Care - Private Contractors Payment,1102.08,0.00,COMMERCIAL SUPPLIER 
 04-10-2022,Adults,Prior Care Ltd_a,Home Care - Private Contractors Payment,1102.41,0.00,COMMERCIAL SUPPLIER 
 09-10-2022,Adults,Homestead Care Service,Home Care - Private Contractors Payment,1102.41,0.00,COMMERCIAL SUPPLIER 
 13-10-2022,Adults,Prestige Care & Support Ltd,Home Care - Private Contractors Payment,1102.41,0.00,COMMERCIAL SUPPLIER 
 18-10-2022,Adults,Home Sweet Home Care Ltd,Home Care - Private Contractors Payment,1102.41,0.00,COMMERCIAL SUPPLIER 
 21-10-2022,Adults,Lodge Group Care UK Ltd,Home Care - Private Contractors Payment,1102.41,0.00,COMMERCIAL SUPPLIER 
 26-10-2022,Adults,Home Support Services (Havering & Essex) Ltd,Home Care - Private Contractors Payment,1102.41,0.00,COMMERCIAL SUPPLIER 
 26-10-2022,Adults,Home Support Services (Havering & Essex) Ltd,Home Care - Private Contractors Payment,1102.41,0.00,COMMERCIAL SUPPLIER 
 26-10-2022,Adults,Home Support Services (Havering & Essex) Ltd,Home Care - Private Contractors Payment,1102.41,0.00,COMMERCIAL SUPPLIER 
 04-10-2022,Adults,Prior Care Ltd_a,Home Care - Private Contractors Payment,1102.74,0.00,COMMERCIAL SUPPLIER 
 13-10-2022,Adults,Prestige Care & Support Ltd,Home Care - Private Contractors Payment,1102.74,0.00,COMMERCIAL SUPPLIER 
 25-10-2022,Adults,Prior Care Ltd_a,Home Care - Private Contractors Payment,1102.74,0.00,COMMERCIAL SUPPLIER 
 26-10-2022,Adults,Home Support Services (Havering & Essex) Ltd,Home Care - Private Contractors Payment,1102.74,0.00,COMMERCIAL SUPPLIER 
 04-10-2022,Adults,Prior Care Ltd_a,Home Care - Private Contractors Payment,1103.06,0.00,COMMERCIAL SUPPLIER 
 09-10-2022,Adults,Homestead Care Service,Home Care - Private Contractors Payment,1103.06,0.00,COMMERCIAL SUPPLIER 
 21-10-2022,Adults,Lodge Group Care UK Ltd,Home Care - Private Contractors Payment,1103.06,0.00,COMMERCIAL SUPPLIER 
 25-10-2022,Adults,Prior Care Ltd_a,Home Care - Private Contractors Payment,1103.06,0.00,COMMERCIAL SUPPLIER 
 26-10-2022,Adults,Home Support Services (Havering & Essex) Ltd,Home Care - Private Contractors Payment,1103.06,0.00,COMMERCIAL SUPPLIER 
 03-10-2022,Adults,Morepower Ltd t/a Aqs Homecare,Home Care - Private Contractors Payment,1103.39,0.00,COMMERCIAL SUPPLIER 
 09-10-2022,Adults,Homestead Care Service,Home Care - Private Contractors Payment,1103.39,0.00,COMMERCIAL SUPPLIER 
 21-10-2022,Adults,Independent Community Support Ltd t/a Wingletye Lodge ,Supported Other Accommodation - Private Contractors Payment,1103.66,0.00,COMMERCIAL SUPPLIER 
 04-10-2022,Adults,Prior Care Ltd_a,Home Care - Private Contractors Payment,1103.72,0.00,COMMERCIAL SUPPLIER 
 18-10-2022,Adults,Home Sweet Home Care Ltd,Home Care - Private Contractors Payment,1103.72,0.00,COMMERCIAL SUPPLIER 
 26-10-2022,Adults,Home Support Services (Havering & Essex) Ltd,Home Care - Private Contractors Payment,1103.72,0.00,COMMERCIAL SUPPLIER 
 26-10-2022,Adults,Matrix SCM Ltd,Agency Staff,1103.93,0.00,COMMERCIAL SUPPLIER 
 09-10-2022,Adults,Homestead Care Service,Home Care - Private Contractors Payment,1104.05,0.00,COMMERCIAL SUPPLIER 
 21-10-2022,Adults,Lodge Group Care UK Ltd,Home Care - Private Contractors Payment,1104.05,0.00,COMMERCIAL SUPPLIER 
 21-10-2022,Adults,Lodge Group Care UK Ltd,Home Care - Private Contractors Payment,1104.05,0.00,COMMERCIAL SUPPLIER 
 18-10-2022,Adults,Home Sweet Home Care Ltd,Home Care - Private Contractors Payment,1104.38,0.00,COMMERCIAL SUPPLIER 
 26-10-2022,Adults,Home Support Services (Havering & Essex) Ltd,Home Care - Private Contractors Payment,1104.38,0.00,COMMERCIAL SUPPLIER 
 17-10-2022,Adults,Anytime Care 2020_a,Home Care - Private Contractors Payment,1104.70,0.00,COMMERCIAL SUPPLIER 
 09-10-2022,Adults,Homestead Care Service,Home Care - Private Contractors Payment,1105.03,0.00,COMMERCIAL SUPPLIER 
 21-10-2022,Adults,Lodge Group Care UK Ltd,Home Care - Private Contractors Payment,1105.36,0.00,COMMERCIAL SUPPLIER 
 18-10-2022,Adults,Home Sweet Home Care Ltd,Home Care - Private Contractors Payment,1105.69,0.00,COMMERCIAL SUPPLIER 
 26-10-2022,Adults,Home Support Services (Havering & Essex) Ltd,Home Care - Private Contractors Payment,1105.69,0.00,COMMERCIAL SUPPLIER 
 25-10-2022,Adults,Prior Care Ltd_a,Home Care - Private Contractors Payment,1106.02,0.00,COMMERCIAL SUPPLIER 
 25-10-2022,Adults,Prior Care Ltd_a,Home Care - Private Contractors Payment,1106.02,0.00,COMMERCIAL SUPPLIER 
 09-10-2022,Adults,Homestead Care Service,Home Care - Private Contractors Payment,1106.34,0.00,COMMERCIAL SUPPLIER 
 14-10-2022,Adults,Cera Care Operations Ltd,Home Care - Private Contractors Payment,1106.67,0.00,COMMERCIAL SUPPLIER 
 14-10-2022,Adults,Cera Care Operations Ltd,Home Care - Private Contractors Payment,1106.67,0.00,COMMERCIAL SUPPLIER 
 21-10-2022,Adults,Lodge Group Care UK Ltd,Home Care - Private Contractors Payment,1106.67,0.00,COMMERCIAL SUPPLIER 
 21-10-2022,Adults,Lodge Group Care UK Ltd,Home Care - Private Contractors Payment,1106.67,0.00,COMMERCIAL SUPPLIER 
 21-10-2022,Adults,Lodge Group Care UK Ltd,Home Care - Private Contractors Payment,1106.67,0.00,COMMERCIAL SUPPLIER 
 18-10-2022,Adults,Home Sweet Home Care Ltd,Home Care - Private Contractors Payment,1107.00,0.00,COMMERCIAL SUPPLIER 
 04-10-2022,Adults,Prior Care Ltd_a,Home Care - Private Contractors Payment,1107.33,0.00,COMMERCIAL SUPPLIER 
 18-10-2022,Adults,Home Sweet Home Care Ltd,Home Care - Private Contractors Payment,1107.33,0.00,COMMERCIAL SUPPLIER 
 18-10-2022,Adults,Home Sweet Home Care Ltd,Home Care - Private Contractors Payment,1107.33,0.00,COMMERCIAL SUPPLIER 
 21-10-2022,Adults,Lodge Group Care UK Ltd,Home Care - Private Contractors Payment,1107.33,0.00,COMMERCIAL SUPPLIER 
 21-10-2022,Adults,Lodge Group Care UK Ltd,Home Care - Private Contractors Payment,1107.33,0.00,COMMERCIAL SUPPLIER 
 21-10-2022,Adults,Lodge Group Care UK Ltd,Home Care - Private Contractors Payment,1107.66,0.00,COMMERCIAL SUPPLIER 
 21-10-2022,Adults,Lodge Group Care UK Ltd,Home Care - Private Contractors Payment,1107.66,0.00,COMMERCIAL SUPPLIER 
 26-10-2022,Adults,Home Support Services (Havering & Essex) Ltd,Home Care - Private Contractors Payment,1107.66,0.00,COMMERCIAL SUPPLIER 
 18-10-2022,Adults,Home Sweet Home Care Ltd,Home Care - Private Contractors Payment,1107.98,0.00,COMMERCIAL SUPPLIER 
 25-10-2022,Adults,Prior Care Ltd_a,Home Care - Private Contractors Payment,1108.31,0.00,COMMERCIAL SUPPLIER 
 26-10-2022,Adults,Home Support Services (Havering & Essex) Ltd,Home Care - Private Contractors Payment,1108.31,0.00,COMMERCIAL SUPPLIER 
 09-10-2022,Adults,Homestead Care Service,Home Care - Private Contractors Payment,1108.64,0.00,COMMERCIAL SUPPLIER 
 18-10-2022,Adults,Home Sweet Home Care Ltd,Home Care - Private Contractors Payment,1108.97,0.00,COMMERCIAL SUPPLIER 
 21-10-2022,Adults,Lodge Group Care UK Ltd,Home Care - Private Contractors Payment,1108.97,0.00,COMMERCIAL SUPPLIER 
 25-10-2022,Adults,Prior Care Ltd_a,Home Care - Private Contractors Payment,1108.97,0.00,COMMERCIAL SUPPLIER 
 17-10-2022,Adults,Morepower Ltd t/a Aqs Homecare,Home Care - Private Contractors Payment,1109.30,0.00,COMMERCIAL SUPPLIER 
 17-10-2022,Adults,Morepower Ltd t/a Aqs Homecare,Home Care - Private Contractors Payment,1109.95,0.00,COMMERCIAL SUPPLIER 
 21-10-2022,Adults,Lodge Group Care UK Ltd,Home Care - Private Contractors Payment,1109.95,0.00,COMMERCIAL SUPPLIER 
 25-10-2022,Adults,Prior Care Ltd_a,Home Care - Private Contractors Payment,1110.28,0.00,COMMERCIAL SUPPLIER 
 26-10-2022,Adults,Home Support Services (Havering & Essex) Ltd,Home Care - Private Contractors Payment,1110.61,0.00,COMMERCIAL SUPPLIER 
 09-10-2022,Adults,Homestead Care Service,Home Care - Private Contractors Payment,1110.94,0.00,COMMERCIAL SUPPLIER 
 21-10-2022,Adults,Lodge Group Care UK Ltd,Home Care - Private Contractors Payment,1110.94,0.00,COMMERCIAL SUPPLIER 
 21-10-2022,Adults,Lodge Group Care UK Ltd,Home Care - Private Contractors Payment,1111.59,0.00,COMMERCIAL SUPPLIER 
 14-10-2022,Adults,Cera Care Operations Ltd,Home Care - Private Contractors Payment,1111.92,0.00,COMMERCIAL SUPPLIER 
 18-10-2022,Adults,Home Sweet Home Care Ltd,Home Care - Private Contractors Payment,1111.92,0.00,COMMERCIAL SUPPLIER 
 24-10-2022,Adults,John Stanleys Care Agency Ltd,Home Care - Private Contractors Payment,1112.25,0.00,COMMERCIAL SUPPLIER 
 26-10-2022,Adults,Home Support Services (Havering & Essex) Ltd,Home Care - Private Contractors Payment,1112.25,0.00,COMMERCIAL SUPPLIER 
 26-10-2022,Adults,Home Support Services (Havering & Essex) Ltd,Home Care - Private Contractors Payment,1112.25,0.00,COMMERCIAL SUPPLIER 
 26-10-2022,Adults,Home Support Services (Havering & Essex) Ltd,Home Care - Private Contractors Payment,1112.90,0.00,COMMERCIAL SUPPLIER 
 26-10-2022,Adults,Home Support Services (Havering & Essex) Ltd,Home Care - Private Contractors Payment,1112.90,0.00,COMMERCIAL SUPPLIER 
 26-10-2022,Adults,Home Support Services (Havering & Essex) Ltd,Home Care - Private Contractors Payment,1112.90,0.00,COMMERCIAL SUPPLIER 
 09-10-2022,Adults,Homestead Care Service,Home Care - Private Contractors Payment,1113.23,0.00,COMMERCIAL SUPPLIER 
 18-10-2022,Adults,Home Sweet Home Care Ltd,Home Care - Private Contractors Payment,1113.23,0.00,COMMERCIAL SUPPLIER 
 18-10-2022,Adults,Home Sweet Home Care Ltd,Home Care - Private Contractors Payment,1113.23,0.00,COMMERCIAL SUPPLIER 
 25-10-2022,Adults,Prior Care Ltd_a,Home Care - Private Contractors Payment,1113.23,0.00,COMMERCIAL SUPPLIER 
 26-10-2022,Adults,Home Support Services (Havering & Essex) Ltd,Home Care - Private Contractors Payment,1113.23,0.00,COMMERCIAL SUPPLIER 
 26-10-2022,Adults,Home Support Services (Havering & Essex) Ltd,Home Care - Private Contractors Payment,1113.56,0.00,COMMERCIAL SUPPLIER 
 04-10-2022,Adults,Prior Care Ltd_a,Home Care - Private Contractors Payment,1113.89,0.00,COMMERCIAL SUPPLIER 
 04-10-2022,Adults,Prior Care Ltd_a,Home Care - Private Contractors Payment,1114.54,0.00,COMMERCIAL SUPPLIER 
 18-10-2022,Adults,Home Sweet Home Care Ltd,Home Care - Private Contractors Payment,1114.54,0.00,COMMERCIAL SUPPLIER 
 25-10-2022,Adults,Prior Care Ltd_a,Home Care - Private Contractors Payment,1114.54,0.00,COMMERCIAL SUPPLIER 
 25-10-2022,Adults,Prior Care Ltd_a,Home Care - Private Contractors Payment,1114.87,0.00,COMMERCIAL SUPPLIER 
 25-10-2022,Adults,Prior Care Ltd_a,Home Care - Private Contractors Payment,1115.20,0.00,COMMERCIAL SUPPLIER 
 21-10-2022,Adults,Lodge Group Care UK Ltd,Home Care - Private Contractors Payment,1115.86,0.00,COMMERCIAL SUPPLIER 
 21-10-2022,Adults,Lodge Group Care UK Ltd,Home Care - Private Contractors Payment,1116.18,0.00,COMMERCIAL SUPPLIER 
 13-10-2022,Adults,Prestige Care & Support Ltd,Home Care - Private Contractors Payment,1116.51,0.00,COMMERCIAL SUPPLIER 
 13-10-2022,Adults,Prestige Care & Support Ltd,Home Care - Private Contractors Payment,1116.51,0.00,COMMERCIAL SUPPLIER 
 04-10-2022,Adults,Prior Care Ltd_a,Home Care - Private Contractors Payment,1116.84,0.00,COMMERCIAL SUPPLIER 
 14-10-2022,Adults,Quality Healthcare Solutions Ltd t/a Kare Plus Romford,Home Care - Private Contractors Payment,1116.84,0.00,COMMERCIAL SUPPLIER 
 21-10-2022,Adults,Lodge Group Care UK Ltd,Home Care - Private Contractors Payment,1118.48,0.00,COMMERCIAL SUPPLIER 
 21-10-2022,Adults,Lodge Group Care UK Ltd,Home Care - Private Contractors Payment,1118.81,0.00,COMMERCIAL SUPPLIER 
 09-10-2022,Adults,Homestead Care Service,Home Care - Private Contractors Payment,1119.14,0.00,COMMERCIAL SUPPLIER 
 09-10-2022,Adults,Homestead Care Service,Home Care - Private Contractors Payment,1119.46,0.00,COMMERCIAL SUPPLIER 
 13-10-2022,Adults,Prestige Care & Support Ltd,Home Care - Private Contractors Payment,1119.46,0.00,COMMERCIAL SUPPLIER 
 18-10-2022,Adults,Home Sweet Home Care Ltd,Home Care - Private Contractors Payment,1119.46,0.00,COMMERCIAL SUPPLIER 
 26-10-2022,Adults,Home Support Services (Havering & Essex) Ltd,Home Care - Private Contractors Payment,1119.46,0.00,COMMERCIAL SUPPLIER 
 04-10-2022,Adults,Prior Care Ltd_a,Home Care - Private Contractors Payment,1120.12,0.00,COMMERCIAL SUPPLIER 
 28-10-2022,Adults,Achieve Together  Ltd - Westcliffe Villas,Residential Placements - Private Contractors Payment,1120.28,0.00,COMMERCIAL SUPPLIER 
 18-10-2022,Adults,Home Sweet Home Care Ltd,Home Care - Private Contractors Payment,1120.45,0.00,COMMERCIAL SUPPLIER 
 18-10-2022,Adults,Home Sweet Home Care Ltd,Home Care - Private Contractors Payment,1120.45,0.00,COMMERCIAL SUPPLIER 
 18-10-2022,Adults,Home Sweet Home Care Ltd,Home Care - Private Contractors Payment,1120.78,0.00,COMMERCIAL SUPPLIER 
 04-10-2022,Adults,Prior Care Ltd_a,Home Care - Private Contractors Payment,1121.10,0.00,COMMERCIAL SUPPLIER 
 21-10-2022,Adults,Lodge Group Care UK Ltd,Home Care - Private Contractors Payment,1121.10,0.00,COMMERCIAL SUPPLIER 
 10-10-2022,Adults,Passion Tree Care Services Ltd,Home Care - Private Contractors Payment,1121.76,0.00,COMMERCIAL SUPPLIER 
 21-10-2022,Adults,Lodge Group Care UK Ltd,Home Care - Private Contractors Payment,1121.76,0.00,COMMERCIAL SUPPLIER 
 26-10-2022,Adults,Home Support Services (Havering & Essex) Ltd,Home Care - Private Contractors Payment,1122.09,0.00,COMMERCIAL SUPPLIER 
 26-10-2022,Adults,Home Support Services (Havering & Essex) Ltd,Home Care - Private Contractors Payment,1123.07,0.00,COMMERCIAL SUPPLIER 
 03-10-2022,Adults,Morepower Ltd t/a Aqs Homecare,Home Care - Private Contractors Payment,1123.40,0.00,COMMERCIAL SUPPLIER 
 03-10-2022,Adults,Morepower Ltd t/a Aqs Homecare,Home Care - Private Contractors Payment,1123.40,0.00,COMMERCIAL SUPPLIER 
 13-10-2022,Adults,Prestige Care & Support Ltd,Home Care - Private Contractors Payment,1123.73,0.00,COMMERCIAL SUPPLIER 
 13-10-2022,Adults,Prestige Care & Support Ltd,Home Care - Private Contractors Payment,1124.06,0.00,COMMERCIAL SUPPLIER 
 14-10-2022,Adults,Quality Healthcare Solutions Ltd t/a Kare Plus Romford,Home Care - Private Contractors Payment,1124.06,0.00,COMMERCIAL SUPPLIER 
 18-10-2022,Adults,Home Sweet Home Care Ltd,Home Care - Private Contractors Payment,1124.38,0.00,COMMERCIAL SUPPLIER 
 21-10-2022,Adults,Lodge Group Care UK Ltd,Home Care - Private Contractors Payment,1124.71,0.00,COMMERCIAL SUPPLIER 
 12-10-2022,Adults,Hospiva Care & Associates Agency Ltd_a,Home Care - Private Contractors Payment,1126.02,0.00,COMMERCIAL SUPPLIER 
 17-10-2022,Adults,Morepower Ltd t/a Aqs Homecare,Home Care - Private Contractors Payment,1126.68,0.00,COMMERCIAL SUPPLIER 
 18-10-2022,Adults,Home Sweet Home Care Ltd,Home Care - Private Contractors Payment,1126.68,0.00,COMMERCIAL SUPPLIER 
 26-10-2022,Adults,Home Support Services (Havering & Essex) Ltd,Home Care - Private Contractors Payment,1126.68,0.00,COMMERCIAL SUPPLIER 
 13-10-2022,Adults,Prestige Care & Support Ltd,Home Care - Private Contractors Payment,1127.01,0.00,COMMERCIAL SUPPLIER 
 26-10-2022,Adults,Home Support Services (Havering & Essex) Ltd,Home Care - Private Contractors Payment,1127.01,0.00,COMMERCIAL SUPPLIER 
 05-10-2022,Adults,Matrix SCM Ltd,Agency Staff,1127.57,0.00,COMMERCIAL SUPPLIER 
 09-10-2022,Adults,Homestead Care Service,Home Care - Private Contractors Payment,1127.66,0.00,COMMERCIAL SUPPLIER 
 17-10-2022,Adults,Anytime Care 2020_a,Home Care - Private Contractors Payment,1127.66,0.00,COMMERCIAL SUPPLIER 
 29-10-2022,Adults,Headway East London,Daycare - Private Contractors Payment,1128.00,0.00,COMMERCIAL SUPPLIER 
 29-10-2022,Adults,Headway East London,Daycare - Private Contractors Payment,1128.00,0.00,COMMERCIAL SUPPLIER 
 09-10-2022,Adults,Homestead Care Service,Home Care - Private Contractors Payment,1128.32,0.00,COMMERCIAL SUPPLIER 
 09-10-2022,Adults,Homestead Care Service,Home Care - Private Contractors Payment,1131.27,0.00,COMMERCIAL SUPPLIER 
 13-10-2022,Adults,Prestige Care & Support Ltd,Home Care - Private Contractors Payment,1133.57,0.00,COMMERCIAL SUPPLIER 
 26-10-2022,Adults,Home Support Services (Havering & Essex) Ltd,Home Care - Private Contractors Payment,1133.90,0.00,COMMERCIAL SUPPLIER 
 26-10-2022,Adults,Home Support Services (Havering & Essex) Ltd,Home Care - Private Contractors Payment,1134.22,0.00,COMMERCIAL SUPPLIER 
 21-10-2022,Adults,Lodge Group Care UK Ltd,Home Care - Private Contractors Payment,1134.55,0.00,COMMERCIAL SUPPLIER 
 13-10-2022,Adults,Prestige Care & Support Ltd,Home Care - Private Contractors Payment,1134.88,0.00,COMMERCIAL SUPPLIER 
 17-10-2022,Adults,Morepower Ltd t/a Aqs Homecare,Home Care - Private Contractors Payment,1135.54,0.00,COMMERCIAL SUPPLIER 
 14-10-2022,Adults,Cera Care Operations Ltd,Home Care - Private Contractors Payment,1135.86,0.00,COMMERCIAL SUPPLIER 
 20-10-2022,Adults,Care & Independence Ltd,"Purchase - Equipment, Furniture And Materials",1137.50,0.00,COMMERCIAL SUPPLIER 
 17-10-2022,Adults,Morepower Ltd t/a Aqs Homecare,Home Care - Private Contractors Payment,1137.83,0.00,COMMERCIAL SUPPLIER 
 26-10-2022,Adults,Home Support Services (Havering & Essex) Ltd,Home Care - Private Contractors Payment,1137.83,0.00,COMMERCIAL SUPPLIER 
 26-10-2022,Adults,Home Support Services (Havering & Essex) Ltd,Home Care - Private Contractors Payment,1137.83,0.00,COMMERCIAL SUPPLIER 
 14-10-2022,Adults,Cera Care Operations Ltd,Home Care - Private Contractors Payment,1138.82,0.00,COMMERCIAL SUPPLIER 
 18-10-2022,Adults,Home Sweet Home Care Ltd,Home Care - Private Contractors Payment,1139.14,0.00,COMMERCIAL SUPPLIER 
 10-10-2022,Adults,Tapestry_a.,Daycare - Private Contractors Payment,1140.00,0.00,COMMERCIAL SUPPLIER 
 10-10-2022,Adults,Tapestry_a.,Daycare - Private Contractors Payment,1140.00,0.00,COMMERCIAL SUPPLIER 
 10-10-2022,Adults,Tapestry_a.,Daycare - Private Contractors Payment,1140.00,0.00,COMMERCIAL SUPPLIER 
 10-10-2022,Adults,Tapestry_a.,Daycare - Private Contractors Payment,1140.00,0.00,COMMERCIAL SUPPLIER 
 09-10-2022,Adults,Homestead Care Service,Home Care - Private Contractors Payment,1141.11,0.00,COMMERCIAL SUPPLIER 
 09-10-2022,Adults,Homestead Care Service,Home Care - Private Contractors Payment,1141.11,0.00,COMMERCIAL SUPPLIER 
 04-10-2022,Adults,Prior Care Ltd_a,Home Care - Private Contractors Payment,1141.44,0.00,COMMERCIAL SUPPLIER 
 18-10-2022,Adults,Home Sweet Home Care Ltd,Home Care - Private Contractors Payment,1141.44,0.00,COMMERCIAL SUPPLIER 
 26-10-2022,Adults,Home Support Services (Havering & Essex) Ltd,Home Care - Private Contractors Payment,1142.10,0.00,COMMERCIAL SUPPLIER 
 09-10-2022,Adults,Homestead Care Service,Home Care - Private Contractors Payment,1142.75,0.00,COMMERCIAL SUPPLIER 
 14-10-2022,Adults,Cera Care Operations Ltd,Home Care - Private Contractors Payment,1142.75,0.00,COMMERCIAL SUPPLIER 
 09-10-2022,Adults,Homestead Care Service,Home Care - Private Contractors Payment,1143.74,0.00,COMMERCIAL SUPPLIER 
 09-10-2022,Adults,Homestead Care Service,Home Care - Private Contractors Payment,1144.72,0.00,COMMERCIAL SUPPLIER 
 12-10-2022,Adults,Hospiva Care & Associates Agency Ltd_a,Home Care - Private Contractors Payment,1147.02,0.00,COMMERCIAL SUPPLIER 
 12-10-2022,Adults,Hospiva Care & Associates Agency Ltd_a,Home Care - Private Contractors Payment,1147.02,0.00,COMMERCIAL SUPPLIER 
 09-10-2022,Adults,Homestead Care Service,Home Care - Private Contractors Payment,1149.31,0.00,COMMERCIAL SUPPLIER 
 21-10-2022,Adults,Lodge Group Care UK Ltd,Home Care - Private Contractors Payment,1149.97,0.00,COMMERCIAL SUPPLIER 
 09-10-2022,Adults,Homestead Care Service,Home Care - Private Contractors Payment,1150.95,0.00,COMMERCIAL SUPPLIER 
 17-10-2022,Adults,Morepower Ltd t/a Aqs Homecare,Home Care - Private Contractors Payment,1150.95,0.00,COMMERCIAL SUPPLIER 
 21-10-2022,Adults,Lodge Group Care UK Ltd,Home Care - Private Contractors Payment,1150.95,0.00,COMMERCIAL SUPPLIER 
 10-10-2022,Adults,Pleasant Home Healthcare Ltd,Home Care - Private Contractors Payment,1151.28,0.00,COMMERCIAL SUPPLIER 
 17-10-2022,Adults,Morepower Ltd t/a Aqs Homecare,Home Care - Private Contractors Payment,1153.25,0.00,COMMERCIAL SUPPLIER 
 09-10-2022,Adults,Homestead Care Service,Home Care - Private Contractors Payment,1154.23,0.00,COMMERCIAL SUPPLIER 
 17-10-2022,Adults,Morepower Ltd t/a Aqs Homecare,Home Care - Private Contractors Payment,1154.23,0.00,COMMERCIAL SUPPLIER 
 26-10-2022,Adults,Home Support Services (Havering & Essex) Ltd,Home Care - Private Contractors Payment,1154.23,0.00,COMMERCIAL SUPPLIER 
 18-10-2022,Adults,Home Sweet Home Care Ltd,Home Care - Private Contractors Payment,1154.89,0.00,COMMERCIAL SUPPLIER 
 06-10-2022,Adults,Pristine Care London Ltd ,Daycare - Private Contractors Payment,1155.00,0.00,COMMERCIAL SUPPLIER 
 09-10-2022,Adults,Homestead Care Service,Home Care - Private Contractors Payment,1157.18,0.00,COMMERCIAL SUPPLIER 
 13-10-2022,Adults,Prestige Care & Support Ltd,Home Care - Private Contractors Payment,1158.82,0.00,COMMERCIAL SUPPLIER 
 14-10-2022,Adults,Quality Healthcare Solutions Ltd t/a Kare Plus Romford,Home Care - Private Contractors Payment,1158.82,0.00,COMMERCIAL SUPPLIER 
 21-10-2022,Adults,The Riverside Group,Supported Other Accommodation - Private Contractors Payment,1160.00,0.00, 
 21-10-2022,Adults,The Riverside Group,Supported Other Accommodation - Private Contractors Payment,1160.00,0.00, 
 21-10-2022,Adults,The Riverside Group,Supported Other Accommodation - Private Contractors Payment,1160.00,0.00, 
 21-10-2022,Adults,The Riverside Group,Supported Other Accommodation - Private Contractors Payment,1160.00,0.00, 
 21-10-2022,Adults,The Riverside Group,Supported Other Accommodation - Private Contractors Payment,1160.00,0.00, 
 21-10-2022,Adults,The Riverside Group,Supported Other Accommodation - Private Contractors Payment,1160.00,0.00, 
 21-10-2022,Adults,The Riverside Group,Supported Other Accommodation - Private Contractors Payment,1160.00,0.00, 
 21-10-2022,Adults,The Riverside Group,Supported Other Accommodation - Private Contractors Payment,1160.00,0.00, 
 21-10-2022,Adults,Lodge Group Care UK Ltd,Home Care - Private Contractors Payment,1160.46,0.00,COMMERCIAL SUPPLIER 
 09-10-2022,Adults,Homestead Care Service,Home Care - Private Contractors Payment,1160.79,0.00,COMMERCIAL SUPPLIER 
 11-10-2022,Adults,Carers Trust East Midlands,Home Care - Private Contractors Payment,1161.12,0.00,COMMERCIAL SUPPLIER 
 21-10-2022,Adults,Ranc Care Homes Ltd - Romford Care Centre,Respite Care - Private Contractors Payment,1162.29,0.00,COMMERCIAL SUPPLIER 
 04-10-2022,Adults,Treal Care Limited,Home Care - Private Contractors Payment,1163.25,0.00,COMMERCIAL SUPPLIER 
 04-10-2022,Adults,Treal Care Limited,Home Care - Private Contractors Payment,1163.25,0.00,COMMERCIAL SUPPLIER 
 09-10-2022,Adults,Homestead Care Service,Home Care - Private Contractors Payment,1163.42,0.00,COMMERCIAL SUPPLIER 
 09-10-2022,Adults,Homestead Care Service,Home Care - Private Contractors Payment,1164.40,0.00,COMMERCIAL SUPPLIER 
 14-10-2022,Adults,Care-Away Ltd T/A Care Support,Home Care - Private Contractors Payment,1164.80,0.00,COMMERCIAL SUPPLIER 
 14-10-2022,Adults,Care-Away Ltd T/A Care Support,Home Care - Private Contractors Payment,1164.80,0.00,COMMERCIAL SUPPLIER 
 14-10-2022,Adults,Care-Away Ltd T/A Care Support,Home Care - Private Contractors Payment,1164.80,0.00,COMMERCIAL SUPPLIER 
 14-10-2022,Adults,Care-Away Ltd T/A Care Support,Home Care - Private Contractors Payment,1164.80,0.00,COMMERCIAL SUPPLIER 
 09-10-2022,Adults,Homestead Care Service,Home Care - Private Contractors Payment,1165.06,0.00,COMMERCIAL SUPPLIER 
 14-10-2022,Adults,Cera Care Operations Ltd,Home Care - Private Contractors Payment,1167.68,0.00,COMMERCIAL SUPPLIER 
 17-10-2022,Adults,Morepower Ltd t/a Aqs Homecare,Home Care - Private Contractors Payment,1168.34,0.00,COMMERCIAL SUPPLIER 
 17-10-2022,Adults,Morepower Ltd t/a Aqs Homecare,Home Care - Private Contractors Payment,1168.99,0.00,COMMERCIAL SUPPLIER 
 12-10-2022,Adults,Matrix SCM Ltd,Agency Staff,1169.28,0.00,COMMERCIAL SUPPLIER 
 19-10-2022,Adults,Matrix SCM Ltd,Agency Staff,1169.28,0.00,COMMERCIAL SUPPLIER 
 26-10-2022,Adults,Matrix SCM Ltd,Agency Staff,1169.28,0.00,COMMERCIAL SUPPLIER 
 17-10-2022,Adults,Morepower Ltd t/a Aqs Homecare,Home Care - Private Contractors Payment,1169.65,0.00,COMMERCIAL SUPPLIER 
 21-10-2022,Adults,Lodge Group Care UK Ltd,Home Care - Private Contractors Payment,1170.96,0.00,COMMERCIAL SUPPLIER 
 26-10-2022,Adults,Home Support Services (Havering & Essex) Ltd,Home Care - Private Contractors Payment,1170.96,0.00,COMMERCIAL SUPPLIER 
 03-10-2022,Adults,Morepower Ltd t/a Aqs Homecare,Home Care - Private Contractors Payment,1172.27,0.00,COMMERCIAL SUPPLIER 
 17-10-2022,Adults,Morepower Ltd t/a Aqs Homecare,Home Care - Private Contractors Payment,1172.60,0.00,COMMERCIAL SUPPLIER 
 17-10-2022,Adults,Morepower Ltd t/a Aqs Homecare,Home Care - Private Contractors Payment,1172.60,0.00,COMMERCIAL SUPPLIER 
 18-10-2022,Adults,Home Sweet Home Care Ltd,Home Care - Private Contractors Payment,1172.60,0.00,COMMERCIAL SUPPLIER 
 09-10-2022,Adults,Homestead Care Service,Home Care - Private Contractors Payment,1172.93,0.00,COMMERCIAL SUPPLIER 
 03-10-2022,Adults,Morepower Ltd t/a Aqs Homecare,Home Care - Private Contractors Payment,1174.90,0.00,COMMERCIAL SUPPLIER 
 19-10-2022,Adults,Matrix SCM Ltd,Agency Staff,1175.04,0.00,COMMERCIAL SUPPLIER 
 26-10-2022,Adults,Matrix SCM Ltd,Agency Staff,1175.04,0.00,COMMERCIAL SUPPLIER 
 14-10-2022,Adults,Cera Care Operations Ltd,Home Care - Private Contractors Payment,1175.88,0.00,COMMERCIAL SUPPLIER 
 21-10-2022,Adults,Footsteps Support Ltd_a,Supported Other Accommodation - Private Contractors Payment,1176.00,0.00,COMMERCIAL SUPPLIER 
 25-10-2022,Adults,Prior Care Ltd_a,Home Care - Private Contractors Payment,1178.18,0.00,COMMERCIAL SUPPLIER 
 03-10-2022,Adults,Morepower Ltd t/a Aqs Homecare,Home Care - Private Contractors Payment,1178.83,0.00,COMMERCIAL SUPPLIER 
 03-10-2022,Adults,Morepower Ltd t/a Aqs Homecare,Home Care - Private Contractors Payment,1178.83,0.00,COMMERCIAL SUPPLIER 
 21-10-2022,Adults,Lodge Group Care UK Ltd,Home Care - Private Contractors Payment,1178.83,0.00,COMMERCIAL SUPPLIER 
 21-10-2022,Adults,Lodge Group Care UK Ltd,Home Care - Private Contractors Payment,1180.80,0.00,COMMERCIAL SUPPLIER 
 21-10-2022,Adults,Lodge Group Care UK Ltd,Home Care - Private Contractors Payment,1181.13,0.00,COMMERCIAL SUPPLIER 
 05-10-2022,Adults,Matrix SCM Ltd,Agency Staff,1181.15,0.00,COMMERCIAL SUPPLIER 
 12-10-2022,Adults,Matrix SCM Ltd,Agency Staff,1181.15,0.00,COMMERCIAL SUPPLIER 
 19-10-2022,Adults,Matrix SCM Ltd,Agency Staff,1181.15,0.00,COMMERCIAL SUPPLIER 
 26-10-2022,Adults,Matrix SCM Ltd,Agency Staff,1181.15,0.00,COMMERCIAL SUPPLIER 
 18-10-2022,Adults,Home Sweet Home Care Ltd,Home Care - Private Contractors Payment,1182.44,0.00,COMMERCIAL SUPPLIER 
 03-10-2022,Adults,Morepower Ltd t/a Aqs Homecare,Home Care - Private Contractors Payment,1182.77,0.00,COMMERCIAL SUPPLIER 
 03-10-2022,Adults,Morepower Ltd t/a Aqs Homecare,Home Care - Private Contractors Payment,1182.77,0.00,COMMERCIAL SUPPLIER 
 21-10-2022,Adults,Lodge Group Care UK Ltd,Home Care - Private Contractors Payment,1184.08,0.00,COMMERCIAL SUPPLIER 
 21-10-2022,Adults,Lodge Group Care UK Ltd,Home Care - Private Contractors Payment,1184.74,0.00,COMMERCIAL SUPPLIER 
 17-10-2022,Adults,Morepower Ltd t/a Aqs Homecare,Home Care - Private Contractors Payment,1185.06,0.00,COMMERCIAL SUPPLIER 
 17-10-2022,Adults,Morepower Ltd t/a Aqs Homecare,Home Care - Private Contractors Payment,1185.06,0.00,COMMERCIAL SUPPLIER 
 21-10-2022,Adults,Lodge Group Care UK Ltd,Home Care - Private Contractors Payment,1185.39,0.00,COMMERCIAL SUPPLIER 
 03-10-2022,Adults,Morepower Ltd t/a Aqs Homecare,Home Care - Private Contractors Payment,1187.03,0.00,COMMERCIAL SUPPLIER 
 18-10-2022,Adults,Home Sweet Home Care Ltd,Home Care - Private Contractors Payment,1187.69,0.00,COMMERCIAL SUPPLIER 
 21-10-2022,Adults,Lodge Group Care UK Ltd,Home Care - Private Contractors Payment,1189.33,0.00,COMMERCIAL SUPPLIER 
 04-10-2022,Adults,Romford Private Hire Ltd,Client Transport,1190.00,0.00,COMMERCIAL SUPPLIER 
 03-10-2022,Adults,Morepower Ltd t/a Aqs Homecare,Home Care - Private Contractors Payment,1191.30,0.00,COMMERCIAL SUPPLIER 
 13-10-2022,Adults,Prestige Care & Support Ltd,Home Care - Private Contractors Payment,1193.26,0.00,COMMERCIAL SUPPLIER 
 09-10-2022,Adults,Homestead Care Service,Home Care - Private Contractors Payment,1193.59,0.00,COMMERCIAL SUPPLIER 
 09-10-2022,Adults,Westminster Homecare Ltd_a,Home Care - Private Contractors Payment,1194.58,0.00,COMMERCIAL SUPPLIER 
 14-10-2022,Adults,Cera Care Operations Ltd,Home Care - Private Contractors Payment,1194.58,0.00,COMMERCIAL SUPPLIER 
 13-10-2022,Adults,Prestige Care & Support Ltd,Home Care - Private Contractors Payment,1198.84,0.00,COMMERCIAL SUPPLIER 
 09-10-2022,Adults,Homestead Care Service,Home Care - Private Contractors Payment,1203.10,0.00,COMMERCIAL SUPPLIER 
 19-10-2022,Adults,Matrix SCM Ltd,Agency Staff,1206.63,0.00,COMMERCIAL SUPPLIER 
 18-10-2022,Adults,Home Sweet Home Care Ltd,Home Care - Private Contractors Payment,1207.04,0.00,COMMERCIAL SUPPLIER 
 21-10-2022,Adults,Lodge Group Care UK Ltd,Home Care - Private Contractors Payment,1207.37,0.00,COMMERCIAL SUPPLIER 
 05-10-2022,Adults,Matrix SCM Ltd,Agency Staff,1207.46,0.00,COMMERCIAL SUPPLIER 
 12-10-2022,Adults,Matrix SCM Ltd,Agency Staff,1207.46,0.00,COMMERCIAL SUPPLIER 
 19-10-2022,Adults,Matrix SCM Ltd,Agency Staff,1207.46,0.00,COMMERCIAL SUPPLIER 
 26-10-2022,Adults,Matrix SCM Ltd,Agency Staff,1207.46,0.00,COMMERCIAL SUPPLIER 
 21-10-2022,Adults,Independent Community Support Ltd t/a Wingletye Lodge ,Supported Other Accommodation - Private Contractors Payment,1209.60,0.00,COMMERCIAL SUPPLIER 
 17-10-2022,Adults,Morepower Ltd t/a Aqs Homecare,Home Care - Private Contractors Payment,1212.62,0.00,COMMERCIAL SUPPLIER 
 09-10-2022,Adults,Homestead Care Service,Home Care - Private Contractors Payment,1214.58,0.00,COMMERCIAL SUPPLIER 
 17-10-2022,Adults,Morepower Ltd t/a Aqs Homecare,Home Care - Private Contractors Payment,1214.58,0.00,COMMERCIAL SUPPLIER 
 26-10-2022,Adults,Home Support Services (Havering & Essex) Ltd,Home Care - Private Contractors Payment,1215.24,0.00,COMMERCIAL SUPPLIER 
 14-10-2022,Adults,London Care Plc_a,Home Care - Private Contractors Payment,1215.57,0.00,COMMERCIAL SUPPLIER 
 09-10-2022,Adults,Homestead Care Service,Home Care - Private Contractors Payment,1216.22,0.00,COMMERCIAL SUPPLIER 
 13-10-2022,Adults,Prestige Care & Support Ltd,Home Care - Private Contractors Payment,1218.19,0.00,COMMERCIAL SUPPLIER 
 26-10-2022,Adults,Home Support Services (Havering & Essex) Ltd,Home Care - Private Contractors Payment,1219.18,0.00,COMMERCIAL SUPPLIER 
 24-10-2022,Adults,John Stanleys Care Agency Ltd,Home Care - Private Contractors Payment,1219.50,0.00,COMMERCIAL SUPPLIER 
 12-10-2022,Adults,Premier Carewaiting Ltd,Home Care - Private Contractors Payment,1220.16,0.00,COMMERCIAL SUPPLIER 
 03-10-2022,Adults,Morepower Ltd t/a Aqs Homecare,Home Care - Private Contractors Payment,1222.13,0.00,COMMERCIAL SUPPLIER 
 09-10-2022,Adults,Homestead Care Service,Home Care - Private Contractors Payment,1223.11,0.00,COMMERCIAL SUPPLIER 
 09-10-2022,Adults,Homestead Care Service,Home Care - Private Contractors Payment,1223.11,0.00,COMMERCIAL SUPPLIER 
 03-10-2022,Adults,Morepower Ltd t/a Aqs Homecare,Home Care - Private Contractors Payment,1223.44,0.00,COMMERCIAL SUPPLIER 
 03-10-2022,Adults,Morepower Ltd t/a Aqs Homecare,Home Care - Private Contractors Payment,1223.44,0.00,COMMERCIAL SUPPLIER 
 24-10-2022,Adults,John Stanleys Care Agency Ltd,Home Care - Private Contractors Payment,1224.75,0.00,COMMERCIAL SUPPLIER 
 03-10-2022,Adults,Morepower Ltd t/a Aqs Homecare,Home Care - Private Contractors Payment,1225.74,0.00,COMMERCIAL SUPPLIER 
 14-10-2022,Adults,London Care Plc_a,Home Care - Private Contractors Payment,1227.38,0.00,COMMERCIAL SUPPLIER 
 14-10-2022,Adults,Cera Care Operations Ltd,Home Care - Private Contractors Payment,1227.38,0.00,COMMERCIAL SUPPLIER 
 19-10-2022,Adults,Matrix SCM Ltd,Agency Staff,1228.32,0.00,COMMERCIAL SUPPLIER 
 26-10-2022,Adults,Matrix SCM Ltd,Agency Staff,1228.32,0.00,COMMERCIAL SUPPLIER 
 04-10-2022,Adults,Prior Care Ltd_a,Home Care - Private Contractors Payment,1230.98,0.00,COMMERCIAL SUPPLIER 
 14-10-2022,Adults,Care-Away Ltd T/A Care Support,Home Care - Private Contractors Payment,1231.36,0.00,COMMERCIAL SUPPLIER 
 21-10-2022,Adults,Lodge Group Care UK Ltd,Home Care - Private Contractors Payment,1231.97,0.00,COMMERCIAL SUPPLIER 
 21-10-2022,Adults,Lodge Group Care UK Ltd,Home Care - Private Contractors Payment,1234.26,0.00,COMMERCIAL SUPPLIER 
 10-10-2022,Adults,IJB Healthcare Ltd,Home Care - Private Contractors Payment,1234.29,0.00,COMMERCIAL SUPPLIER 
 14-10-2022,Adults,Cera Care Operations Ltd,Home Care - Private Contractors Payment,1235.25,0.00,COMMERCIAL SUPPLIER 
 24-10-2022,Adults,John Stanleys Care Agency Ltd,Home Care - Private Contractors Payment,1235.58,0.00,COMMERCIAL SUPPLIER 
 24-10-2022,Adults,John Stanleys Care Agency Ltd,Home Care - Private Contractors Payment,1236.56,0.00,COMMERCIAL SUPPLIER 
 03-10-2022,Adults,Morepower Ltd t/a Aqs Homecare,Home Care - Private Contractors Payment,1236.89,0.00,COMMERCIAL SUPPLIER 
 12-10-2022,Adults,Hospiva Care & Associates Agency Ltd_a,Home Care - Private Contractors Payment,1237.54,0.00,COMMERCIAL SUPPLIER 
 10-10-2022,Adults,Outreach Support Services Ltd,Home Care - Private Contractors Payment,1239.84,0.00,COMMERCIAL SUPPLIER 
 10-10-2022,Adults,Outreach Support Services Ltd,Home Care - Private Contractors Payment,1239.84,0.00,COMMERCIAL SUPPLIER 
 10-10-2022,Adults,Outreach Support Services Ltd,Home Care - Private Contractors Payment,1239.84,0.00,COMMERCIAL SUPPLIER 
 10-10-2022,Adults,Passion Tree Care Services Ltd,Home Care - Private Contractors Payment,1239.84,0.00,COMMERCIAL SUPPLIER 
 10-10-2022,Adults,Passion Tree Care Services Ltd,Home Care - Private Contractors Payment,1239.84,0.00,COMMERCIAL SUPPLIER 
 10-10-2022,Adults,Passion Tree Care Services Ltd,Home Care - Private Contractors Payment,1239.84,0.00,COMMERCIAL SUPPLIER 
 10-10-2022,Adults,London Homecare Ltd,Home Care - Private Contractors Payment,1239.84,0.00,COMMERCIAL SUPPLIER 
 10-10-2022,Adults,London Homecare Ltd,Home Care - Private Contractors Payment,1239.84,0.00,COMMERCIAL SUPPLIER 
 10-10-2022,Adults,London Homecare Ltd,Home Care - Private Contractors Payment,1239.84,0.00,COMMERCIAL SUPPLIER 
 10-10-2022,Adults,London Homecare Ltd,Home Care - Private Contractors Payment,1239.84,0.00,COMMERCIAL SUPPLIER 
 10-10-2022,Adults,London Homecare Ltd,Home Care - Private Contractors Payment,1239.84,0.00,COMMERCIAL SUPPLIER 
 12-10-2022,Adults,Premier Carewaiting Ltd,Home Care - Private Contractors Payment,1239.84,0.00,COMMERCIAL SUPPLIER 
 13-10-2022,Adults,Inna Care Ltd,Home Care - Private Contractors Payment,1239.84,0.00,COMMERCIAL SUPPLIER 
 13-10-2022,Adults,Inna Care Ltd,Home Care - Private Contractors Payment,1239.84,0.00,COMMERCIAL SUPPLIER 
 14-10-2022,Adults,London Care Plc_a,Home Care - Private Contractors Payment,1239.84,0.00,COMMERCIAL SUPPLIER 
 14-10-2022,Adults,London Care Plc_a,Home Care - Private Contractors Payment,1239.84,0.00,COMMERCIAL SUPPLIER 
 14-10-2022,Adults,London Care Plc_a,Home Care - Private Contractors Payment,1239.84,0.00,COMMERCIAL SUPPLIER 
 26-10-2022,Adults,Home Support Services (Havering & Essex) Ltd,Home Care - Private Contractors Payment,1240.17,0.00,COMMERCIAL SUPPLIER 
 21-10-2022,Adults,Lodge Group Care UK Ltd,Home Care - Private Contractors Payment,1240.50,0.00,COMMERCIAL SUPPLIER 
 05-10-2022,Adults,Matrix SCM Ltd,Agency Staff,1241.28,0.00,COMMERCIAL SUPPLIER 
 05-10-2022,Adults,Matrix SCM Ltd,Agency Staff,1241.28,0.00,COMMERCIAL SUPPLIER 
 05-10-2022,Adults,Matrix SCM Ltd,Agency Staff,1241.28,0.00,COMMERCIAL SUPPLIER 
 05-10-2022,Adults,Matrix SCM Ltd,Agency Staff,1241.28,0.00,COMMERCIAL SUPPLIER 
 05-10-2022,Adults,Matrix SCM Ltd,Agency Staff,1241.28,0.00,COMMERCIAL SUPPLIER 
 05-10-2022,Adults,Matrix SCM Ltd,Agency Staff,1241.28,0.00,COMMERCIAL SUPPLIER 
 05-10-2022,Adults,Matrix SCM Ltd,Agency Staff,1241.28,0.00,COMMERCIAL SUPPLIER 
 12-10-2022,Adults,Matrix SCM Ltd,Agency Staff,1241.28,0.00,COMMERCIAL SUPPLIER 
 12-10-2022,Adults,Matrix SCM Ltd,Agency Staff,1241.28,0.00,COMMERCIAL SUPPLIER 
 12-10-2022,Adults,Matrix SCM Ltd,Agency Staff,1241.28,0.00,COMMERCIAL SUPPLIER 
 12-10-2022,Adults,Matrix SCM Ltd,Agency Staff,1241.28,0.00,COMMERCIAL SUPPLIER 
 12-10-2022,Adults,Matrix SCM Ltd,Agency Staff,1241.28,0.00,COMMERCIAL SUPPLIER 
 19-10-2022,Adults,Matrix SCM Ltd,Agency Staff,1241.28,0.00,COMMERCIAL SUPPLIER 
 19-10-2022,Adults,Matrix SCM Ltd,Agency Staff,1241.28,0.00,COMMERCIAL SUPPLIER 
 19-10-2022,Adults,Matrix SCM Ltd,Agency Staff,1241.28,0.00,COMMERCIAL SUPPLIER 
 19-10-2022,Adults,Matrix SCM Ltd,Agency Staff,1241.28,0.00,COMMERCIAL SUPPLIER 
 19-10-2022,Adults,Matrix SCM Ltd,Agency Staff,1241.28,0.00,COMMERCIAL SUPPLIER 
 19-10-2022,Adults,Matrix SCM Ltd,Agency Staff,1241.28,0.00,COMMERCIAL SUPPLIER 
 26-10-2022,Adults,Matrix SCM Ltd,Agency Staff,1241.28,0.00,COMMERCIAL SUPPLIER 
 26-10-2022,Adults,Matrix SCM Ltd,Agency Staff,1241.28,0.00,COMMERCIAL SUPPLIER 
 26-10-2022,Adults,Matrix SCM Ltd,Agency Staff,1241.28,0.00,COMMERCIAL SUPPLIER 
 26-10-2022,Adults,Matrix SCM Ltd,Agency Staff,1241.28,0.00,COMMERCIAL SUPPLIER 
 26-10-2022,Adults,Matrix SCM Ltd,Agency Staff,1241.28,0.00,COMMERCIAL SUPPLIER 
 12-10-2022,Adults,Hospiva Care & Associates Agency Ltd_a,Home Care - Private Contractors Payment,1241.48,0.00,COMMERCIAL SUPPLIER 
 21-10-2022,Adults,Lodge Group Care UK Ltd,Home Care - Private Contractors Payment,1241.48,0.00,COMMERCIAL SUPPLIER 
 12-10-2022,Adults,Hospiva Care & Associates Agency Ltd_a,Home Care - Private Contractors Payment,1242.46,0.00,COMMERCIAL SUPPLIER 
 05-10-2022,Adults,Matrix SCM Ltd,Agency Staff,1244.51,0.00,COMMERCIAL SUPPLIER 
 12-10-2022,Adults,Matrix SCM Ltd,Agency Staff,1244.51,0.00,COMMERCIAL SUPPLIER 
 19-10-2022,Adults,Matrix SCM Ltd,Agency Staff,1244.51,0.00,COMMERCIAL SUPPLIER 
 26-10-2022,Adults,Matrix SCM Ltd,Agency Staff,1244.51,0.00,COMMERCIAL SUPPLIER 
 26-10-2022,Adults,Home Support Services (Havering & Essex) Ltd,Home Care - Private Contractors Payment,1244.76,0.00,COMMERCIAL SUPPLIER 
 10-10-2022,Adults,Bluebird Care Havering,Home Care - Private Contractors Payment,1245.20,0.00,COMMERCIAL SUPPLIER 
 24-10-2022,Adults,Bluebird Care Havering,Home Care - Private Contractors Payment,1245.20,0.00,COMMERCIAL SUPPLIER 
 09-10-2022,Adults,Westminster Homecare Ltd_a,Home Care - Private Contractors Payment,1246.40,0.00,COMMERCIAL SUPPLIER 
 14-10-2022,Adults,Care-Away Ltd T/A Care Support,Home Care - Private Contractors Payment,1248.00,0.00,COMMERCIAL SUPPLIER 
 05-10-2022,Adults,Matrix SCM Ltd,Agency Staff,1253.15,0.00,COMMERCIAL SUPPLIER 
 26-10-2022,Adults,Home Support Services (Havering & Essex) Ltd,Home Care - Private Contractors Payment,1256.24,0.00,COMMERCIAL SUPPLIER 
 17-10-2022,Adults,Anytime Care 2020_a,Home Care - Private Contractors Payment,1257.88,0.00,COMMERCIAL SUPPLIER 
 18-10-2022,Adults,Home Sweet Home Care Ltd,Home Care - Private Contractors Payment,1260.83,0.00,COMMERCIAL SUPPLIER 
 18-10-2022,Adults,Home Sweet Home Care Ltd,Home Care - Private Contractors Payment,1264.11,0.00,COMMERCIAL SUPPLIER 
 05-10-2022,Adults,Matrix SCM Ltd,Agency Staff,1265.06,0.00,COMMERCIAL SUPPLIER 
 12-10-2022,Adults,Matrix SCM Ltd,Agency Staff,1265.06,0.00,COMMERCIAL SUPPLIER 
 19-10-2022,Adults,Matrix SCM Ltd,Agency Staff,1265.06,0.00,COMMERCIAL SUPPLIER 
 26-10-2022,Adults,Matrix SCM Ltd,Agency Staff,1265.06,0.00,COMMERCIAL SUPPLIER 
 14-10-2022,Adults,Quality Healthcare Solutions Ltd t/a Kare Plus Romford,Home Care - Private Contractors Payment,1265.42,0.00,COMMERCIAL SUPPLIER 
 17-10-2022,Adults,Morepower Ltd t/a Aqs Homecare,Home Care - Private Contractors Payment,1266.74,0.00,COMMERCIAL SUPPLIER 
 26-10-2022,Adults,Home Support Services (Havering & Essex) Ltd,Home Care - Private Contractors Payment,1269.36,0.00,COMMERCIAL SUPPLIER 
 17-10-2022,Adults,Morepower Ltd t/a Aqs Homecare,Home Care - Private Contractors Payment,1270.34,0.00,COMMERCIAL SUPPLIER 
 04-10-2022,Adults,Prior Care Ltd_a,Home Care - Private Contractors Payment,1272.64,0.00,COMMERCIAL SUPPLIER 
 10-10-2022,Adults,London Homecare Ltd,Home Care - Private Contractors Payment,1279.20,0.00,COMMERCIAL SUPPLIER 
 25-10-2022,Adults,Prior Care Ltd_a,Home Care - Private Contractors Payment,1279.86,0.00,COMMERCIAL SUPPLIER 
 05-10-2022,Adults,Matrix SCM Ltd,Agency Staff,1281.98,0.00,COMMERCIAL SUPPLIER 
 12-10-2022,Adults,Matrix SCM Ltd,Agency Staff,1281.98,0.00,COMMERCIAL SUPPLIER 
 05-10-2022,Adults,Matrix SCM Ltd,Agency Staff,1282.34,0.00,COMMERCIAL SUPPLIER 
 12-10-2022,Adults,Matrix SCM Ltd,Agency Staff,1282.34,0.00,COMMERCIAL SUPPLIER 
 12-10-2022,Adults,Matrix SCM Ltd,Agency Staff,1282.34,0.00,COMMERCIAL SUPPLIER 
 19-10-2022,Adults,Matrix SCM Ltd,Agency Staff,1282.34,0.00,COMMERCIAL SUPPLIER 
 19-10-2022,Adults,Matrix SCM Ltd,Agency Staff,1282.34,0.00,COMMERCIAL SUPPLIER 
 26-10-2022,Adults,Matrix SCM Ltd,Agency Staff,1282.34,0.00,COMMERCIAL SUPPLIER 
 26-10-2022,Adults,Matrix SCM Ltd,Agency Staff,1282.34,0.00,COMMERCIAL SUPPLIER 
 05-10-2022,Adults,Matrix SCM Ltd,Agency Staff,1284.13,0.00,COMMERCIAL SUPPLIER 
 12-10-2022,Adults,Matrix SCM Ltd,Agency Staff,1284.13,0.00,COMMERCIAL SUPPLIER 
 19-10-2022,Adults,Matrix SCM Ltd,Agency Staff,1284.13,0.00,COMMERCIAL SUPPLIER 
 26-10-2022,Adults,Matrix SCM Ltd,Agency Staff,1284.13,0.00,COMMERCIAL SUPPLIER 
 21-10-2022,Adults,Lodge Group Care UK Ltd,Home Care - Private Contractors Payment,1285.76,0.00,COMMERCIAL SUPPLIER 
 05-10-2022,Adults,Matrix SCM Ltd,Agency Staff,1288.45,0.00,COMMERCIAL SUPPLIER 
 12-10-2022,Adults,Matrix SCM Ltd,Agency Staff,1288.45,0.00,COMMERCIAL SUPPLIER 
 19-10-2022,Adults,Matrix SCM Ltd,Agency Staff,1288.45,0.00,COMMERCIAL SUPPLIER 
 26-10-2022,Adults,Matrix SCM Ltd,Agency Staff,1288.45,0.00,COMMERCIAL SUPPLIER 
 25-10-2022,Adults,Prior Care Ltd_a,Home Care - Private Contractors Payment,1288.71,0.00,COMMERCIAL SUPPLIER 
 24-10-2022,Adults,Crosspath CCTV Ltd,Security Services (Excluding Premises),1290.00,0.00,COMMERCIAL SUPPLIER 
 05-10-2022,Adults,Matrix SCM Ltd,Agency Staff,1290.24,0.00,COMMERCIAL SUPPLIER 
 12-10-2022,Adults,Matrix SCM Ltd,Agency Staff,1290.24,0.00,COMMERCIAL SUPPLIER 
 19-10-2022,Adults,Matrix SCM Ltd,Agency Staff,1290.24,0.00,COMMERCIAL SUPPLIER 
 26-10-2022,Adults,Matrix SCM Ltd,Agency Staff,1290.24,0.00,COMMERCIAL SUPPLIER 
 12-10-2022,Adults,Matrix SCM Ltd,Agency Staff,1290.60,0.00,COMMERCIAL SUPPLIER 
 26-10-2022,Adults,Matrix SCM Ltd,Agency Staff,1290.60,0.00,COMMERCIAL SUPPLIER 
 26-10-2022,Adults,Matrix SCM Ltd,Agency Staff,1290.60,0.00,COMMERCIAL SUPPLIER 
 05-10-2022,Adults,Matrix SCM Ltd,Agency Staff,1290.61,0.00,COMMERCIAL SUPPLIER 
 21-10-2022,Adults,Parkside_a,Residential Placements - Private Contractors Payment,1290.71,0.00,COMMERCIAL SUPPLIER 
 09-10-2022,Adults,Homestead Care Service,Home Care - Private Contractors Payment,1291.01,0.00,COMMERCIAL SUPPLIER 
 18-10-2022,Adults,Home Sweet Home Care Ltd,Home Care - Private Contractors Payment,1293.96,0.00,COMMERCIAL SUPPLIER 
 05-10-2022,Adults,Matrix SCM Ltd,Agency Staff,1295.70,0.00,COMMERCIAL SUPPLIER 
 21-10-2022,Adults,Lodge Group Care UK Ltd,Home Care - Private Contractors Payment,1297.90,0.00,COMMERCIAL SUPPLIER 
 12-10-2022,Adults,Premier Carewaiting Ltd,Home Care - Private Contractors Payment,1298.88,0.00,COMMERCIAL SUPPLIER 
 12-10-2022,Adults,Premier Carewaiting Ltd,Home Care - Private Contractors Payment,1298.88,0.00,COMMERCIAL SUPPLIER 
 09-10-2022,Adults,Homestead Care Service,Home Care - Private Contractors Payment,1301.50,0.00,COMMERCIAL SUPPLIER 
 18-10-2022,Adults,Home Sweet Home Care Ltd,Home Care - Private Contractors Payment,1303.14,0.00,COMMERCIAL SUPPLIER 
 21-10-2022,Adults,Ashgate House Ltd_a,Residential Placements - Private Contractors Payment,1303.80,0.00,COMMERCIAL SUPPLIER 
 18-10-2022,Adults,Home Sweet Home Care Ltd,Home Care - Private Contractors Payment,1304.13,0.00,COMMERCIAL SUPPLIER 
 14-10-2022,Adults,Cera Care Operations Ltd,Home Care - Private Contractors Payment,1309.38,0.00,COMMERCIAL SUPPLIER 
 14-10-2022,Adults,Quality Healthcare Solutions Ltd t/a Kare Plus Romford,Home Care - Private Contractors Payment,1312.98,0.00,COMMERCIAL SUPPLIER 
 21-10-2022,Adults,L & Q Living (SWIFT Payments),Supported Other Accommodation - Private Contractors Payment,1318.72,0.00,COMMERCIAL SUPPLIER 
 14-10-2022,Adults,Quality Healthcare Solutions Ltd t/a Kare Plus Romford,Home Care - Private Contractors Payment,1322.82,0.00,COMMERCIAL SUPPLIER 
 04-10-2022,Adults,Prior Care Ltd_a,Home Care - Private Contractors Payment,1326.43,0.00,COMMERCIAL SUPPLIER 
 21-10-2022,Adults,Lodge Group Care UK Ltd,Home Care - Private Contractors Payment,1328.40,0.00,COMMERCIAL SUPPLIER 
 19-10-2022,Adults,Matrix SCM Ltd,Agency Staff,1328.92,0.00,COMMERCIAL SUPPLIER 
 09-10-2022,Adults,Homestead Care Service,Home Care - Private Contractors Payment,1329.38,0.00,COMMERCIAL SUPPLIER 
 04-10-2022,Adults,Prior Care Ltd_a,Home Care - Private Contractors Payment,1333.32,0.00,COMMERCIAL SUPPLIER 
 09-10-2022,Adults,Homestead Care Service,Home Care - Private Contractors Payment,1336.93,0.00,COMMERCIAL SUPPLIER 
 21-10-2022,Adults,Lodge Group Care UK Ltd,Home Care - Private Contractors Payment,1342.50,0.00,COMMERCIAL SUPPLIER 
 26-10-2022,Adults,Home Support Services (Havering & Essex) Ltd,Home Care - Private Contractors Payment,1348.08,0.00,COMMERCIAL SUPPLIER 
 03-10-2022,Adults,Morepower Ltd t/a Aqs Homecare,Home Care - Private Contractors Payment,1349.39,0.00,COMMERCIAL SUPPLIER 
 03-10-2022,Adults,Morepower Ltd t/a Aqs Homecare,Home Care - Private Contractors Payment,1349.39,0.00,COMMERCIAL SUPPLIER 
 21-10-2022,Adults,2 Peel Way - Outlook Care,Supported Other Accommodation - Private Contractors Payment,1349.88,0.00,NON COMMERCIAL SUPPLIER 
 21-10-2022,Adults,Lodge Group Care UK Ltd,Home Care - Private Contractors Payment,1350.70,0.00,COMMERCIAL SUPPLIER 
 17-10-2022,Adults,Morepower Ltd t/a Aqs Homecare,Home Care - Private Contractors Payment,1352.34,0.00,COMMERCIAL SUPPLIER 
 17-10-2022,Adults,Morepower Ltd t/a Aqs Homecare,Home Care - Private Contractors Payment,1352.34,0.00,COMMERCIAL SUPPLIER 
 21-10-2022,Adults,Manor Lodge Care Home,Residential Placements - Private Contractors Payment,1357.14,0.00,COMMERCIAL SUPPLIER 
 12-10-2022,Adults,Matrix SCM Ltd,Agency Staff,1357.57,0.00,COMMERCIAL SUPPLIER 
 19-10-2022,Adults,Matrix SCM Ltd,Agency Staff,1357.57,0.00,COMMERCIAL SUPPLIER 
 26-10-2022,Adults,Matrix SCM Ltd,Agency Staff,1357.57,0.00,COMMERCIAL SUPPLIER 
 10-10-2022,Adults,Outreach Support Services Ltd,Home Care - Private Contractors Payment,1357.92,0.00,COMMERCIAL SUPPLIER 
 12-10-2022,Adults,Hospiva Care & Associates Agency Ltd_a,Home Care - Private Contractors Payment,1363.82,0.00,COMMERCIAL SUPPLIER 
 05-10-2022,Adults,Matrix SCM Ltd,Agency Staff,1374.13,0.00,COMMERCIAL SUPPLIER 
 05-10-2022,Adults,Matrix SCM Ltd,Agency Staff,1374.13,0.00,COMMERCIAL SUPPLIER 
 07-10-2022,Adults,Certified Healthcare Solutions Ltd t/a In Home Care Havering,Home Care - Private Contractors Payment,1377.60,0.00,COMMERCIAL SUPPLIER 
 07-10-2022,Adults,Certified Healthcare Solutions Ltd t/a In Home Care Havering,Home Care - Private Contractors Payment,1377.60,0.00,COMMERCIAL SUPPLIER 
 10-10-2022,Adults,Passion Tree Care Services Ltd,Home Care - Private Contractors Payment,1377.60,0.00,COMMERCIAL SUPPLIER 
 10-10-2022,Adults,London Homecare Ltd,Home Care - Private Contractors Payment,1377.60,0.00,COMMERCIAL SUPPLIER 
 12-10-2022,Adults,Hospiva Care & Associates Agency Ltd_a,Home Care - Private Contractors Payment,1377.60,0.00,COMMERCIAL SUPPLIER 
 12-10-2022,Adults,Hospiva Care & Associates Agency Ltd_a,Home Care - Private Contractors Payment,1377.60,0.00,COMMERCIAL SUPPLIER 
 10-10-2022,Adults,Eastway Care Ltd_a,Daycare - Private Contractors Payment,1380.00,0.00,COMMERCIAL SUPPLIER 
 18-10-2022,Adults,Home Sweet Home Care Ltd,Home Care - Private Contractors Payment,1387.77,0.00,COMMERCIAL SUPPLIER 
 21-10-2022,Adults,Ranc Care Homes Ltd - Romford Care Centre,Respite Care - Private Contractors Payment,1390.00,0.00,COMMERCIAL SUPPLIER 
 05-10-2022,Adults,Matrix SCM Ltd,Agency Staff,1394.66,0.00,COMMERCIAL SUPPLIER 
 12-10-2022,Adults,Matrix SCM Ltd,Agency Staff,1394.66,0.00,COMMERCIAL SUPPLIER 
 19-10-2022,Adults,Matrix SCM Ltd,Agency Staff,1394.66,0.00,COMMERCIAL SUPPLIER 
 26-10-2022,Adults,Matrix SCM Ltd,Agency Staff,1394.66,0.00,COMMERCIAL SUPPLIER 
 10-10-2022,Adults,London Homecare Ltd,Home Care - Private Contractors Payment,1397.28,0.00,COMMERCIAL SUPPLIER 
 14-10-2022,Adults,Care-Away Ltd T/A Care Support,Home Care - Private Contractors Payment,1397.76,0.00,COMMERCIAL SUPPLIER 
 04-10-2022,Adults,Flex360 Limited,Private Contractors Payment - Other,1400.00,0.00,COMMERCIAL SUPPLIER 
 05-10-2022,Adults,Matrix SCM Ltd,Agency Staff,1400.77,0.00,COMMERCIAL SUPPLIER 
 12-10-2022,Adults,Matrix SCM Ltd,Agency Staff,1400.77,0.00,COMMERCIAL SUPPLIER 
 26-10-2022,Adults,Matrix SCM Ltd,Agency Staff,1400.77,0.00,COMMERCIAL SUPPLIER 
 26-10-2022,Adults,Matrix SCM Ltd,Agency Staff,1400.77,0.00,COMMERCIAL SUPPLIER 
 14-10-2022,Adults,London Care Plc_a,Home Care - Private Contractors Payment,1406.46,0.00,COMMERCIAL SUPPLIER 
 21-10-2022,Adults,DMP Healthcare (Cherry Orchard) Ltd,Private Contractors Payment - Other,1419.00,0.00,COMMERCIAL SUPPLIER 
 14-10-2022,Adults,London Care Plc_a,Home Care - Private Contractors Payment,1420.24,0.00,COMMERCIAL SUPPLIER 
 21-10-2022,Adults,Ranc Care Homes Ltd - Romford Care Centre,Residential Placements - Private Contractors Payment,1428.57,0.00,COMMERCIAL SUPPLIER 
 21-10-2022,Adults,Lodge Group Care UK Ltd,Home Care - Private Contractors Payment,1428.77,0.00,COMMERCIAL SUPPLIER 
 09-10-2022,Adults,Westminster Homecare Ltd_a,Home Care - Private Contractors Payment,1435.98,0.00,COMMERCIAL SUPPLIER 
 24-10-2022,Adults,John Stanleys Care Agency Ltd,Home Care - Private Contractors Payment,1436.64,0.00,COMMERCIAL SUPPLIER 
 20-10-2022,Adults,London Borough of Barking & Dagenham_a,Daycare - Private Contractors Payment,1440.00,0.00,LOCAL AUTHORITY SERVICES 
 20-10-2022,Adults,London Borough of Barking & Dagenham_a,Daycare - Private Contractors Payment,1440.00,0.00,LOCAL AUTHORITY SERVICES 
 21-10-2022,Adults,Bettertogether Limited,Supported Other Accommodation - Private Contractors Payment,1440.00,0.00,NON COMMERCIAL SUPPLIER 
 20-10-2022,Adults,Harrich Builders Ltd,"Maintenance - Equipment, Furniture And Materials",1446.00,0.00,CIS 
 20-10-2022,Adults,Harrich Builders Ltd,"Maintenance - Equipment, Furniture And Materials",1446.00,0.00,CIS 
 12-10-2022,Adults,Matrix SCM Ltd,Agency Staff,1456.78,0.00,COMMERCIAL SUPPLIER 
 26-10-2022,Adults,Matrix SCM Ltd,Agency Staff,1462.34,0.00,COMMERCIAL SUPPLIER 
 17-10-2022,Adults,Anytime Care 2020_a,Home Care - Private Contractors Payment,1462.88,0.00,COMMERCIAL SUPPLIER 
 17-10-2022,Adults,Morepower Ltd t/a Aqs Homecare,Home Care - Private Contractors Payment,1465.18,0.00,COMMERCIAL SUPPLIER 
 21-10-2022,Adults,Black Swan International Ltd - Drummonds,Residential Placements - Private Contractors Payment,1470.00,0.00,COMMERCIAL SUPPLIER 
 21-10-2022,Adults,Lodge Group Care UK Ltd,Home Care - Private Contractors Payment,1471.08,0.00,COMMERCIAL SUPPLIER 
 05-10-2022,Adults,Matrix SCM Ltd,Agency Staff,1473.12,0.00,COMMERCIAL SUPPLIER 
 21-10-2022,Adults,Blueboard Care Services Ltd,Supported Other Accommodation - Private Contractors Payment,1478.40,0.00,COMMERCIAL SUPPLIER 
 21-10-2022,Adults,Blueboard Care Services Ltd,Supported Other Accommodation - Private Contractors Payment,1478.40,0.00,COMMERCIAL SUPPLIER 
 21-10-2022,Adults,The Cedars,Supported Other Accommodation - Private Contractors Payment,1479.24,0.00,COMMERCIAL SUPPLIER 
 28-10-2022,Adults,Kathryn Homes Ltd_a,Residential Placements - Private Contractors Payment,1489.29,0.00,COMMERCIAL SUPPLIER 
 05-10-2022,Adults,Matrix SCM Ltd,Agency Staff,1491.26,0.00,COMMERCIAL SUPPLIER 
 21-10-2022,Adults,Lodge Group Care UK Ltd,Home Care - Private Contractors Payment,1491.74,0.00,COMMERCIAL SUPPLIER 
 21-10-2022,Adults,Ebony Health Care Services Limited,Supported Other Accommodation - Private Contractors Payment,1496.24,0.00,COMMERCIAL SUPPLIER 
 09-10-2022,Adults,Westminster Homecare Ltd_a,Home Care - Private Contractors Payment,1497.65,0.00,COMMERCIAL SUPPLIER 
 10-10-2022,Adults,Osborne Partnership,Daycare - Private Contractors Payment,1500.00,0.00,COMMERCIAL SUPPLIER 
 21-10-2022,Adults,Lodge Group Care UK Ltd,Home Care - Private Contractors Payment,1505.52,0.00,COMMERCIAL SUPPLIER 
 13-10-2022,Adults,Care-Away Ltd T/A Care Support,Home Care - Private Contractors Payment,1514.24,0.00,COMMERCIAL SUPPLIER 
 10-10-2022,Adults,IJB Healthcare Ltd,Home Care - Private Contractors Payment,1517.99,0.00,COMMERCIAL SUPPLIER 
 19-10-2022,Adults,Matrix SCM Ltd,Agency Staff,1523.25,0.00,COMMERCIAL SUPPLIER 
 21-10-2022,Adults,The Cedars,Supported Other Accommodation - Private Contractors Payment,1531.00,0.00,COMMERCIAL SUPPLIER 
 21-10-2022,Adults,Castle Care UK Ltd,Nursing Homes - Private Contractors Payment,1531.62,0.00,COMMERCIAL SUPPLIER 
 10-10-2022,Adults,Pleasant Home Healthcare Ltd,Home Care - Private Contractors Payment,1535.04,0.00,COMMERCIAL SUPPLIER 
 09-10-2022,Adults,Westminster Homecare Ltd_a,Home Care - Private Contractors Payment,1536.68,0.00,COMMERCIAL SUPPLIER 
 07-10-2022,Adults,Tapestry_a.,Other Short Term Support,1537.08,0.00,COMMERCIAL SUPPLIER 
 18-10-2022,Adults,Home Sweet Home Care Ltd,Home Care - Private Contractors Payment,1537.66,0.00,COMMERCIAL SUPPLIER 
 21-10-2022,Adults,Affinia Healthcare Ltd_a,Supported Other Accommodation - Private Contractors Payment,1538.48,0.00,COMMERCIAL SUPPLIER 
 09-10-2022,Adults,Homestead Care Service,Home Care - Private Contractors Payment,1545.21,0.00,COMMERCIAL SUPPLIER 
 10-10-2022,Adults,Passion Tree Care Services Ltd,Home Care - Private Contractors Payment,1554.72,0.00,COMMERCIAL SUPPLIER 
 03-10-2022,Adults,Morepower Ltd t/a Aqs Homecare,Home Care - Private Contractors Payment,1555.70,0.00,COMMERCIAL SUPPLIER 
 21-10-2022,Adults,Outlook Care - 76 Neave Crescent,Supported Other Accommodation - Private Contractors Payment,1562.00,0.00,COMMERCIAL SUPPLIER 
 21-10-2022,Adults,Outlook Care - 76 Neave Crescent,Supported Other Accommodation - Private Contractors Payment,1562.00,0.00,COMMERCIAL SUPPLIER 
 21-10-2022,Adults,Outlook Care - 76 Neave Crescent,Supported Other Accommodation - Private Contractors Payment,1562.00,0.00,COMMERCIAL SUPPLIER 
 21-10-2022,Adults,Outlook Care - 76 Neave Crescent,Supported Other Accommodation - Private Contractors Payment,1562.00,0.00,COMMERCIAL SUPPLIER 
 21-10-2022,Adults,Outlook Care - 76 Neave Crescent,Supported Other Accommodation - Private Contractors Payment,1562.00,0.00,COMMERCIAL SUPPLIER 
 21-10-2022,Adults,Outlook Care - 76 Neave Crescent,Supported Other Accommodation - Private Contractors Payment,1562.00,0.00,COMMERCIAL SUPPLIER 
 21-10-2022,Adults,Outlook Care - 76 Neave Crescent,Supported Other Accommodation - Private Contractors Payment,1562.00,0.00,COMMERCIAL SUPPLIER 
 21-10-2022,Adults,Outlook Care - 76 Neave Crescent,Supported Other Accommodation - Private Contractors Payment,1562.00,0.00,COMMERCIAL SUPPLIER 
 21-10-2022,Adults,Outlook Care - 76 Neave Crescent,Supported Other Accommodation - Private Contractors Payment,1562.00,0.00,COMMERCIAL SUPPLIER 
 13-10-2022,Adults,Prestige Care & Support Ltd,Home Care - Private Contractors Payment,1562.26,0.00,COMMERCIAL SUPPLIER 
 14-10-2022,Adults,Care-Away Ltd T/A Care Support,Home Care - Private Contractors Payment,1564.16,0.00,COMMERCIAL SUPPLIER 
 21-10-2022,Adults,Outlook Care - 86 Veronica Close,Residential Placements - Private Contractors Payment,1565.56,0.00,COMMERCIAL SUPPLIER 
 21-10-2022,Adults,Outlook Care - 76 Neave Crescent,Supported Other Accommodation - Private Contractors Payment,1566.60,0.00,COMMERCIAL SUPPLIER 
 21-10-2022,Adults,Outlook Care - 76 Neave Crescent,Supported Other Accommodation - Private Contractors Payment,1566.60,0.00,COMMERCIAL SUPPLIER 
 21-10-2022,Adults,Outlook Care - 4 Peel Way,Supported Other Accommodation - Private Contractors Payment,1570.80,0.00,COMMERCIAL SUPPLIER 
 21-10-2022,Adults,Willows Care Home - Churchgate Healthcare (Willows) Ltd,Residential Placements - Private Contractors Payment,1571.43,0.00,COMMERCIAL SUPPLIER 
 21-10-2022,Adults,Pathways Care and Support Services Ltd,Supported Other Accommodation - Private Contractors Payment,1581.72,0.00,COMMERCIAL SUPPLIER 
 09-10-2022,Adults,Homestead Care Service,Home Care - Private Contractors Payment,1588.18,0.00,COMMERCIAL SUPPLIER 
 21-10-2022,Adults,Lodge Group Care UK Ltd,Home Care - Private Contractors Payment,1594.41,0.00,COMMERCIAL SUPPLIER 
 21-10-2022,Adults,Outlook Care - 76 Neave Crescent,Supported Other Accommodation - Private Contractors Payment,1597.92,0.00,COMMERCIAL SUPPLIER 
 21-10-2022,Adults,Outlook Care - 76 Neave Crescent,Supported Other Accommodation - Private Contractors Payment,1597.92,0.00,COMMERCIAL SUPPLIER 
 21-10-2022,Adults,Outlook Care - 76 Neave Crescent,Supported Other Accommodation - Private Contractors Payment,1597.92,0.00,COMMERCIAL SUPPLIER 
 21-10-2022,Adults,Outlook Care - 76 Neave Crescent,Supported Other Accommodation - Private Contractors Payment,1597.92,0.00,COMMERCIAL SUPPLIER 
 05-10-2022,Adults,Matrix SCM Ltd,Agency Staff,1601.28,0.00,COMMERCIAL SUPPLIER 
 21-10-2022,Adults,Coastal Supported Living CIC,Supported Other Accommodation - Private Contractors Payment,1606.88,0.00,COMMERCIAL SUPPLIER 
 21-10-2022,Adults,Bettertogether Limited,Supported Other Accommodation - Private Contractors Payment,1612.00,0.00,NON COMMERCIAL SUPPLIER 
 21-10-2022,Adults,Bettertogether Limited,Supported Other Accommodation - Private Contractors Payment,1612.00,0.00,NON COMMERCIAL SUPPLIER 
 21-10-2022,Adults,Ashking House Ltd,Residential Placements - Private Contractors Payment,1616.84,0.00,COMMERCIAL SUPPLIER 
 21-10-2022,Adults,The Riverside Group,Supported Other Accommodation - Private Contractors Payment,1623.12,0.00, 
 10-10-2022,Adults,Outreach Support Services Ltd,Home Care - Private Contractors Payment,1633.44,0.00,COMMERCIAL SUPPLIER 
 21-10-2022,Adults,Affinia Healthcare Ltd_a,Supported Other Accommodation - Private Contractors Payment,1650.76,0.00,COMMERCIAL SUPPLIER 
 10-10-2022,Adults,Bloomscare Ltd,Home Care - Private Contractors Payment,1653.12,0.00,COMMERCIAL SUPPLIER 
 10-10-2022,Adults,Outreach Support Services Ltd,Home Care - Private Contractors Payment,1653.12,0.00,COMMERCIAL SUPPLIER 
 12-10-2022,Adults,Premier Carewaiting Ltd,Home Care - Private Contractors Payment,1653.12,0.00,COMMERCIAL SUPPLIER 
 12-10-2022,Adults,Premier Carewaiting Ltd,Home Care - Private Contractors Payment,1653.12,0.00,COMMERCIAL SUPPLIER 
 12-10-2022,Adults,Matrix SCM Ltd,Agency Staff,1675.90,0.00,COMMERCIAL SUPPLIER 
 19-10-2022,Adults,Matrix SCM Ltd,Agency Staff,1675.90,0.00,COMMERCIAL SUPPLIER 
 26-10-2022,Adults,Matrix SCM Ltd,Agency Staff,1675.90,0.00,COMMERCIAL SUPPLIER 
 21-10-2022,Adults,Outlook Care - 76 Neave Crescent,Supported Other Accommodation - Private Contractors Payment,1677.92,0.00,COMMERCIAL SUPPLIER 
 21-10-2022,Adults,Protecthand Care Ltd ,Supported Other Accommodation - Private Contractors Payment,1680.00,0.00,COMMERCIAL SUPPLIER 
 21-10-2022,Adults,Christies Care Ltd_a,Home Care - Private Contractors Payment,1680.00,0.00,COMMERCIAL SUPPLIER 
 21-10-2022,Adults,2 Peel Way - Outlook Care,Supported Other Accommodation - Private Contractors Payment,1687.28,0.00,NON COMMERCIAL SUPPLIER 
 10-10-2022,Adults,IJB Healthcare Ltd,Home Care - Private Contractors Payment,1692.48,0.00,COMMERCIAL SUPPLIER 
 21-10-2022,Adults,Affinia Healthcare Ltd_a,Supported Other Accommodation - Private Contractors Payment,1704.20,0.00,COMMERCIAL SUPPLIER 
 21-10-2022,Adults,Outlook Care - 4 Peel Way,Supported Other Accommodation - Private Contractors Payment,1719.80,0.00,COMMERCIAL SUPPLIER 
 21-10-2022,Adults,Vibrance ,Residential Placements - Private Contractors Payment,1720.76,0.00,COMMERCIAL SUPPLIER 
 21-10-2022,Adults,2 Peel Way - Outlook Care,Supported Other Accommodation - Private Contractors Payment,1721.00,0.00,NON COMMERCIAL SUPPLIER 
 21-10-2022,Adults,Mornington Care Ltd ,Respite Care - Private Contractors Payment,1728.57,0.00,COMMERCIAL SUPPLIER 
 21-10-2022,Adults,Affinia Healthcare Ltd_a,Supported Other Accommodation - Private Contractors Payment,1731.28,0.00,COMMERCIAL SUPPLIER 
 18-10-2022,Adults,Flex360 Limited,Private Contractors Payment - Other,1750.00,0.00,COMMERCIAL SUPPLIER 
 21-10-2022,Adults,Affinia Healthcare Ltd_a,Supported Other Accommodation - Private Contractors Payment,1751.12,0.00,COMMERCIAL SUPPLIER 
 21-10-2022,Adults,Affinia Healthcare Ltd_a,Supported Other Accommodation - Private Contractors Payment,1751.12,0.00,COMMERCIAL SUPPLIER 
 21-10-2022,Adults,Affinia Healthcare Ltd_a,Supported Other Accommodation - Private Contractors Payment,1751.12,0.00,COMMERCIAL SUPPLIER 
 21-10-2022,Adults,Affinia Healthcare Ltd_a,Supported Other Accommodation - Private Contractors Payment,1752.48,0.00,COMMERCIAL SUPPLIER 
 10-10-2022,Adults,Outreach Support Services Ltd,Home Care - Private Contractors Payment,1758.48,0.00,COMMERCIAL SUPPLIER 
 10-10-2022,Adults,Outreach Support Services Ltd,Home Care - Private Contractors Payment,1758.48,0.00,COMMERCIAL SUPPLIER 
 14-10-2022,Adults,Cera Care Operations Ltd,Home Care - Private Contractors Payment,1762.34,0.00,COMMERCIAL SUPPLIER 
 21-10-2022,Adults,Abbottswood Lodge,Residential Placements - Private Contractors Payment,1763.76,0.00,COMMERCIAL SUPPLIER 
 14-10-2022,Adults,Care-Away Ltd T/A Care Support,Home Care - Private Contractors Payment,1768.00,0.00,COMMERCIAL SUPPLIER 
 21-10-2022,Adults,Bettertogether Limited,Supported Other Accommodation - Private Contractors Payment,1776.00,0.00,NON COMMERCIAL SUPPLIER 
 21-10-2022,Adults,Mundy House,Residential Placements - Private Contractors Payment,1787.14,0.00,COMMERCIAL SUPPLIER 
 21-10-2022,Adults,Outlook Care - 4 Peel Way,Supported Other Accommodation - Private Contractors Payment,1796.08,0.00,COMMERCIAL SUPPLIER 
 21-10-2022,Adults,Outlook Care - 4 Peel Way,Supported Other Accommodation - Private Contractors Payment,1796.08,0.00,COMMERCIAL SUPPLIER 
 21-10-2022,Adults,Kadmiel Projects Ltd,Supported Other Accommodation - Private Contractors Payment,1803.36,0.00,COMMERCIAL SUPPLIER 
 21-10-2022,Adults,Kadmiel Projects Ltd,Supported Other Accommodation - Private Contractors Payment,1812.88,0.00,COMMERCIAL SUPPLIER 
 21-10-2022,Adults,Affinia Healthcare Ltd_a,Supported Other Accommodation - Private Contractors Payment,1817.80,0.00,COMMERCIAL SUPPLIER 
 21-10-2022,Adults,Ash Grove Residential Care Home,Residential Placements - Private Contractors Payment,1828.57,0.00,COMMERCIAL SUPPLIER 
 21-10-2022,Adults,Bettertogether Limited,Supported Other Accommodation - Private Contractors Payment,1832.00,0.00,NON COMMERCIAL SUPPLIER 
 21-10-2022,Adults,Bettertogether Limited,Supported Other Accommodation - Private Contractors Payment,1832.00,0.00,NON COMMERCIAL SUPPLIER 
 21-10-2022,Adults,Bettertogether Limited,Supported Other Accommodation - Private Contractors Payment,1832.00,0.00,NON COMMERCIAL SUPPLIER 
 21-10-2022,Adults,Bettertogether Limited,Supported Other Accommodation - Private Contractors Payment,1832.00,0.00,NON COMMERCIAL SUPPLIER 
 21-10-2022,Adults,Bettertogether Limited,Supported Other Accommodation - Private Contractors Payment,1832.00,0.00,NON COMMERCIAL SUPPLIER 
 21-10-2022,Adults,Bettertogether Limited,Supported Other Accommodation - Private Contractors Payment,1832.00,0.00,NON COMMERCIAL SUPPLIER 
 21-10-2022,Adults,Bettertogether Limited,Supported Other Accommodation - Private Contractors Payment,1832.00,0.00,NON COMMERCIAL SUPPLIER 
 21-10-2022,Adults,DMP Healthcare (Heatherbrook) Ltd,Nursing Homes - Private Contractors Payment,1836.00,0.00,NON COMMERCIAL SUPPLIER 
 28-10-2022,Adults,Gemstone Properties Ltd,Residential Placements - Private Contractors Payment,1855.75,0.00,COMMERCIAL SUPPLIER 
 13-10-2022,Adults,Care-Away Ltd T/A Care Support,Home Care - Private Contractors Payment,1863.68,0.00,COMMERCIAL SUPPLIER 
 14-10-2022,Adults,Care-Away Ltd T/A Care Support,Home Care - Private Contractors Payment,1863.68,0.00,COMMERCIAL SUPPLIER 
 14-10-2022,Adults,Care-Away Ltd T/A Care Support,Home Care - Private Contractors Payment,1863.68,0.00,COMMERCIAL SUPPLIER 
 21-10-2022,Adults,Ranc Care Homes Ltd - Romford Care Centre,Residential Placements - Private Contractors Payment,1885.71,0.00,COMMERCIAL SUPPLIER 
 21-10-2022,Adults,Maison Moti Ltd,Supported Other Accommodation - Private Contractors Payment,1890.00,0.00,COMMERCIAL SUPPLIER 
 21-10-2022,Adults,Affinia Healthcare Ltd_a,Supported Other Accommodation - Private Contractors Payment,1901.04,0.00,COMMERCIAL SUPPLIER 
 21-10-2022,Adults,S & S Support Service Ltd   ,Supported Other Accommodation - Private Contractors Payment,1904.00,0.00,COMMERCIAL SUPPLIER 
 21-10-2022,Adults,Lukka Care Homes Ltd - Ravenscourt,Nursing Homes - Private Contractors Payment,1928.57,0.00,COMMERCIAL SUPPLIER 
 10-10-2022,Adults,Outreach Support Services Ltd,Home Care - Private Contractors Payment,1928.64,0.00,COMMERCIAL SUPPLIER 
 13-10-2022,Adults,Inna Care Ltd,Home Care - Private Contractors Payment,1928.64,0.00,COMMERCIAL SUPPLIER 
 21-10-2022,Adults,Ashgate House Ltd_a,Residential Placements - Private Contractors Payment,1932.96,0.00,COMMERCIAL SUPPLIER 
 21-10-2022,Adults,Endsleigh Care Ltd,Residential Placements - Private Contractors Payment,1940.84,0.00,COMMERCIAL SUPPLIER 
 13-10-2022,Adults,Care-Away Ltd T/A Care Support,Home Care - Private Contractors Payment,1955.20,0.00,COMMERCIAL SUPPLIER 
 21-10-2022,Adults,Affinia Healthcare Ltd_a,Supported Other Accommodation - Private Contractors Payment,1987.72,0.00,COMMERCIAL SUPPLIER 
 21-10-2022,Adults,Blueboard Care Services Ltd,Supported Other Accommodation - Private Contractors Payment,1999.20,0.00,COMMERCIAL SUPPLIER 
 12-10-2022,Adults,Matrix SCM Ltd,Agency Staff,2011.05,0.00,COMMERCIAL SUPPLIER 
 26-10-2022,Adults,Matrix SCM Ltd,Agency Staff,2011.05,0.00,COMMERCIAL SUPPLIER 
 01-10-2022,Adults,Marlow,Residential Placements - Private Contractors Payment,2018.48,0.00,COMMERCIAL SUPPLIER 
 21-10-2022,Adults,Adjuvo Care Essex Ltd ,Supported Other Accommodation - Private Contractors Payment,2033.72,0.00,COMMERCIAL SUPPLIER 
 21-10-2022,Adults,DMP Healthcare (Heatherbrook) Ltd,Nursing Homes - Private Contractors Payment,2034.00,0.00,NON COMMERCIAL SUPPLIER 
 18-10-2022,Adults,Home Sweet Home Care Ltd,Home Care - Private Contractors Payment,2037.54,0.00,COMMERCIAL SUPPLIER 
 21-10-2022,Adults,Black Swan International Ltd - Drummonds,Residential Placements - Private Contractors Payment,2044.00,0.00,COMMERCIAL SUPPLIER 
 12-10-2022,Adults,Hospiva Care & Associates Agency Ltd_a,Home Care - Private Contractors Payment,2046.67,0.00,COMMERCIAL SUPPLIER 
 10-10-2022,Adults,Outreach Support Services Ltd,Home Care - Private Contractors Payment,2046.72,0.00,COMMERCIAL SUPPLIER 
 10-10-2022,Adults,Outreach Support Services Ltd,Home Care - Private Contractors Payment,2046.72,0.00,COMMERCIAL SUPPLIER 
 10-10-2022,Adults,Outreach Support Services Ltd,Home Care - Private Contractors Payment,2046.72,0.00,COMMERCIAL SUPPLIER 
 10-10-2022,Adults,Outreach Support Services Ltd,Home Care - Private Contractors Payment,2046.72,0.00,COMMERCIAL SUPPLIER 
 03-10-2022,Adults,Trinity London Care Ltd,Daycare - Private Contractors Payment,2050.00,0.00,COMMERCIAL SUPPLIER 
 03-10-2022,Adults,Trinity London Care Ltd,Daycare - Private Contractors Payment,2050.00,0.00,COMMERCIAL SUPPLIER 
 03-10-2022,Adults,Trinity London Care Ltd,Daycare - Private Contractors Payment,2050.00,0.00,COMMERCIAL SUPPLIER 
 25-10-2022,Adults,Trinity London Care Ltd,Daycare - Private Contractors Payment,2050.00,0.00,COMMERCIAL SUPPLIER 
 25-10-2022,Adults,Trinity London Care Ltd,Daycare - Private Contractors Payment,2050.00,0.00,COMMERCIAL SUPPLIER 
 25-10-2022,Adults,Trinity London Care Ltd,Daycare - Private Contractors Payment,2050.00,0.00,COMMERCIAL SUPPLIER 
 21-10-2022,Adults,Affinia Healthcare Ltd_a,Supported Other Accommodation - Private Contractors Payment,2053.68,0.00,COMMERCIAL SUPPLIER 
 21-10-2022,Adults,Bettertogether Limited,Supported Other Accommodation - Private Contractors Payment,2056.00,0.00,NON COMMERCIAL SUPPLIER 
 21-10-2022,Adults,Bettertogether Limited,Supported Other Accommodation - Private Contractors Payment,2056.00,0.00,NON COMMERCIAL SUPPLIER 
 21-10-2022,Adults,Bettertogether Limited,Supported Other Accommodation - Private Contractors Payment,2056.00,0.00,NON COMMERCIAL SUPPLIER 
 21-10-2022,Adults,Sahara Care Ltd,Residential Placements - Private Contractors Payment,2072.00,0.00,COMMERCIAL SUPPLIER 
 21-10-2022,Adults,Highfield Care Homes Ltd t/a Romford Grange Care Home,Nursing Homes - Private Contractors Payment,2076.57,0.00,COMMERCIAL SUPPLIER 
 21-10-2022,Adults,Hillsview Care Services Ltd,Residential Placements - Private Contractors Payment,2079.00,0.00,COMMERCIAL SUPPLIER 
 21-10-2022,Adults,Ranc Care Homes Ltd - Romford Care Centre,Respite Care - Private Contractors Payment,2085.00,0.00,COMMERCIAL SUPPLIER 
 14-10-2022,Adults,Care-Away Ltd T/A Care Support,Home Care - Private Contractors Payment,2096.64,0.00,COMMERCIAL SUPPLIER 
 21-10-2022,Adults,Alpine Resources UK Ltd,Supported Other Accommodation - Private Contractors Payment,2100.00,0.00,COMMERCIAL SUPPLIER 
 21-10-2022,Adults,Cygnet (OE) Ltd ,Residential Placements - Private Contractors Payment,2100.00,0.00,COMMERCIAL SUPPLIER 
 21-10-2022,Adults,Infinite Healthcare Services Ltd.,Supported Other Accommodation - Private Contractors Payment,2119.71,0.00,COMMERCIAL SUPPLIER 
 21-10-2022,Adults,Outreach Support Services Ltd,Supported Other Accommodation - Private Contractors Payment,2121.00,0.00,COMMERCIAL SUPPLIER 
 21-10-2022,Adults,Runwood Homes Plc - Woodbury Court,Residential Placements - Private Contractors Payment,2132.00,0.00,COMMERCIAL SUPPLIER 
 21-10-2022,Adults,Infinite Healthcare Services Ltd.,Supported Other Accommodation - Private Contractors Payment,2142.00,0.00,COMMERCIAL SUPPLIER 
 26-10-2022,Adults,Home Support Services (Havering & Essex) Ltd,Home Care - Private Contractors Payment,2147.09,0.00,COMMERCIAL SUPPLIER 
 12-10-2022,Adults,Cera Care Operations Ltd,Home Care - Private Contractors Payment,2153.64,0.00,COMMERCIAL SUPPLIER 
 03-10-2022,Adults,All Therapy Solutions Ltd,Occupational Health,2160.00,0.00,COMMERCIAL SUPPLIER 
 20-10-2022,Adults,London Borough of Barking & Dagenham_a,Daycare - Private Contractors Payment,2160.00,0.00,LOCAL AUTHORITY SERVICES 
 20-10-2022,Adults,London Borough of Barking & Dagenham_a,Daycare - Private Contractors Payment,2160.00,0.00,LOCAL AUTHORITY SERVICES 
 10-10-2022,Adults,Agracare Ltd t/a Home Instead Senior Care,Home Care - Private Contractors Payment,2166.00,0.00,COMMERCIAL SUPPLIER 
 12-10-2022,Adults,John Stanleys Care Agency Ltd,Home Care - Private Contractors Payment,2168.53,0.00,COMMERCIAL SUPPLIER 
 12-10-2022,Adults,Hospiva Care & Associates Agency Ltd_a,Home Care - Private Contractors Payment,2204.16,0.00,COMMERCIAL SUPPLIER 
 13-10-2022,Adults,Inna Care Ltd,Home Care - Private Contractors Payment,2204.16,0.00,COMMERCIAL SUPPLIER 
 13-10-2022,Adults,Inna Care Ltd,Home Care - Private Contractors Payment,2204.16,0.00,COMMERCIAL SUPPLIER 
 21-10-2022,Adults,Gims Care Solution Ltd_a,Home Care - Private Contractors Payment,2204.16,0.00,NON COMMERCIAL SUPPLIER 
 26-10-2022,Adults,Home Support Services (Havering & Essex) Ltd,Home Care - Private Contractors Payment,2204.16,0.00,COMMERCIAL SUPPLIER 
 21-10-2022,Adults,Cygnet Health Care,Residential Placements - Private Contractors Payment,2205.00,0.00,COMMERCIAL SUPPLIER 
 16-10-2022,Adults,All Therapy Solutions Ltd,Occupational Health,2220.00,0.00,COMMERCIAL SUPPLIER 
 21-10-2022,Adults,Bettertogether Limited,Supported Other Accommodation - Private Contractors Payment,2236.00,0.00,NON COMMERCIAL SUPPLIER 
 21-10-2022,Adults,Outlook Care_a,Supported Other Accommodation - Private Contractors Payment,2253.44,0.00,COMMERCIAL SUPPLIER 
 21-10-2022,Adults,Independence Homes Ltd,Supported Other Accommodation - Private Contractors Payment,2257.63,0.00,COMMERCIAL SUPPLIER 
 21-10-2022,Adults,Faris Lodge,Supported Other Accommodation - Private Contractors Payment,2267.72,0.00,COMMERCIAL SUPPLIER 
 21-10-2022,Adults,Home From Home Support Service Ltd ,Supported Other Accommodation - Private Contractors Payment,2268.00,0.00,COMMERCIAL SUPPLIER 
 10-10-2022,Adults,London Homecare Ltd,Home Care - Private Contractors Payment,2282.88,0.00,COMMERCIAL SUPPLIER 
 21-10-2022,Adults,Pathways Care Group Ltd,Residential Placements - Private Contractors Payment,2285.56,0.00,COMMERCIAL SUPPLIER 
 21-10-2022,Adults,Ladyville Lodge_a,Residential Placements - Private Contractors Payment,2285.71,0.00,COMMERCIAL SUPPLIER 
 21-10-2022,Adults,DMP Healthcare (Cherry Orchard) Ltd,Residential Placements - Private Contractors Payment,2300.12,0.00,COMMERCIAL SUPPLIER 
 28-10-2022,Adults,Gemstone Properties Ltd,Residential Placements - Private Contractors Payment,2301.13,0.00,COMMERCIAL SUPPLIER 
 21-10-2022,Adults,Moreland House_a,Nursing Homes - Private Contractors Payment,2306.24,0.00,COMMERCIAL SUPPLIER 
 21-10-2022,Adults,Livability - John Grooms Court,Residential Placements - Private Contractors Payment,2311.28,0.00,COMMERCIAL SUPPLIER 
 21-10-2022,Adults,Livability - John Grooms Court,Residential Placements - Private Contractors Payment,2311.28,0.00,COMMERCIAL SUPPLIER 
 21-10-2022,Adults,Fountains Care Centre - Bondcare,Residential Placements - Private Contractors Payment,2314.24,0.00,COMMERCIAL SUPPLIER 
 14-10-2022,Adults,Care-Away Ltd T/A Care Support,Home Care - Private Contractors Payment,2329.60,0.00,COMMERCIAL SUPPLIER 
 21-10-2022,Adults,Kadmiel Projects Ltd,Supported Other Accommodation - Private Contractors Payment,2342.08,0.00,COMMERCIAL SUPPLIER 
 21-10-2022,Adults,2 Peel Way - Outlook Care,Supported Other Accommodation - Private Contractors Payment,2344.96,0.00,NON COMMERCIAL SUPPLIER 
 21-10-2022,Adults,Beechcourt Care Centre - Bondcare,Nursing Homes - Private Contractors Payment,2347.43,0.00,COMMERCIAL SUPPLIER 
 21-10-2022,Adults,Fresh Tree Care Services,Supported Other Accommodation - Private Contractors Payment,2352.00,0.00,COMMERCIAL SUPPLIER 
 01-10-2022,Adults,Lorablooms Care Services Ltd,Home Care - Private Contractors Payment,2365.44,0.00,NON COMMERCIAL SUPPLIER 
 01-10-2022,Adults,Lorablooms Care Services Ltd,Home Care - Private Contractors Payment,2365.44,0.00,NON COMMERCIAL SUPPLIER 
 21-10-2022,Adults,Dudbrook Hall Residential Home,Residential Placements - Private Contractors Payment,2382.86,0.00,COMMERCIAL SUPPLIER 
 21-10-2022,Adults,Clearwater Care (Hackney) Ltd - Craigdale,Supported Other Accommodation - Private Contractors Payment,2413.04,0.00,COMMERCIAL SUPPLIER 
 21-10-2022,Adults,Ebony Health Care Services Limited,Supported Other Accommodation - Private Contractors Payment,2417.68,0.00,COMMERCIAL SUPPLIER 
 21-10-2022,Adults,Clearwater Care (Hackney) Ltd - Craigdale,Supported Other Accommodation - Private Contractors Payment,2425.52,0.00,COMMERCIAL SUPPLIER 
 21-10-2022,Adults,Priory Supporting Care Ltd,Residential Placements - Private Contractors Payment,2428.57,0.00,COMMERCIAL SUPPLIER 
 10-10-2022,Adults,Bluebird Care Havering,Home Care - Private Contractors Payment,2450.00,0.00,COMMERCIAL SUPPLIER 
 10-10-2022,Adults,Bluebird Care Havering,Home Care - Private Contractors Payment,2450.00,0.00,COMMERCIAL SUPPLIER 
 24-10-2022,Adults,Bluebird Care Havering,Home Care - Private Contractors Payment,2450.00,0.00,COMMERCIAL SUPPLIER 
 24-10-2022,Adults,Bluebird Care Havering,Home Care - Private Contractors Payment,2450.00,0.00,COMMERCIAL SUPPLIER 
 21-10-2022,Adults,Adjuvo Care and Support Ltd,Supported Other Accommodation - Private Contractors Payment,2463.68,0.00,COMMERCIAL SUPPLIER 
 21-10-2022,Adults,Black Swan International Ltd - Drummonds,Residential Placements - Private Contractors Payment,2468.80,0.00,COMMERCIAL SUPPLIER 
 21-10-2022,Adults,Black Swan International Ltd - Drummonds,Residential Placements - Private Contractors Payment,2468.80,0.00,COMMERCIAL SUPPLIER 
 21-10-2022,Adults,Highfield Care Homes Ltd t/a Romford Grange Care Home,Nursing Homes - Private Contractors Payment,2472.84,0.00,COMMERCIAL SUPPLIER 
 21-10-2022,Adults,Barleycroft Care Home Ltd,Residential Placements - Private Contractors Payment,2480.00,0.00,COMMERCIAL SUPPLIER 
 21-10-2022,Adults,Barleycroft Care Home Ltd,Residential Placements - Private Contractors Payment,2480.00,0.00,COMMERCIAL SUPPLIER 
 21-10-2022,Adults,GCH - Hillside Nursing Home,Residential Placements - Private Contractors Payment,2480.00,0.00,COMMERCIAL SUPPLIER 
 21-10-2022,Adults,Masumin Ltd t/s Abbeleigh House,Residential Placements - Private Contractors Payment,2480.00,0.00,COMMERCIAL SUPPLIER 
 21-10-2022,Adults,Langley House,Residential Placements - Private Contractors Payment,2480.00,0.00,COMMERCIAL SUPPLIER 
 21-10-2022,Adults,Langley House,Residential Placements - Private Contractors Payment,2480.00,0.00,COMMERCIAL SUPPLIER 
 21-10-2022,Adults,Langley House,Residential Placements - Private Contractors Payment,2480.00,0.00,COMMERCIAL SUPPLIER 
 21-10-2022,Adults,Clover Cottage Ltd,Residential Placements - Private Contractors Payment,2480.00,0.00,COMMERCIAL SUPPLIER 
 21-10-2022,Adults,Clover Cottage Ltd,Residential Placements - Private Contractors Payment,2480.00,0.00,COMMERCIAL SUPPLIER 
 21-10-2022,Adults,Clover Cottage Ltd,Residential Placements - Private Contractors Payment,2480.00,0.00,COMMERCIAL SUPPLIER 
 21-10-2022,Adults,Fountains Care Centre - Bondcare,Nursing Homes - Private Contractors Payment,2480.00,0.00,COMMERCIAL SUPPLIER 
 21-10-2022,Adults,Fountains Care Centre - Bondcare,Residential Placements - Private Contractors Payment,2480.00,0.00,COMMERCIAL SUPPLIER 
 21-10-2022,Adults,Fountains Care Centre - Bondcare,Residential Placements - Private Contractors Payment,2480.00,0.00,COMMERCIAL SUPPLIER 
 21-10-2022,Adults,Fountains Care Centre - Bondcare,Residential Placements - Private Contractors Payment,2480.00,0.00,COMMERCIAL SUPPLIER 
 21-10-2022,Adults,Highfield Care Homes Ltd t/a Romford Grange Care Home,Residential Placements - Private Contractors Payment,2480.00,0.00,COMMERCIAL SUPPLIER 
 21-10-2022,Adults,Beechcourt Care Centre - Bondcare,Residential Placements - Private Contractors Payment,2480.00,0.00,COMMERCIAL SUPPLIER 
 21-10-2022,Adults,Oakley Carehomes Ltd t/a Abbey Care Home,Residential Placements - Private Contractors Payment,2480.00,0.00,COMMERCIAL SUPPLIER 
 21-10-2022,Adults,Oaks Residential Home,Residential Placements - Private Contractors Payment,2480.00,0.00,COMMERCIAL SUPPLIER 
 21-10-2022,Adults,Ash Grove Residential Care Home,Residential Placements - Private Contractors Payment,2480.00,0.00,COMMERCIAL SUPPLIER 
 21-10-2022,Adults,Ash Grove Residential Care Home,Residential Placements - Private Contractors Payment,2480.00,0.00,COMMERCIAL SUPPLIER 
 21-10-2022,Adults,Pathways Care Group Ltd,Residential Placements - Private Contractors Payment,2486.16,0.00,COMMERCIAL SUPPLIER 
 21-10-2022,Adults,Affinia Healthcare Ltd_a,Supported Other Accommodation - Private Contractors Payment,2490.32,0.00,COMMERCIAL SUPPLIER 
 21-10-2022,Adults,Alpine Resources UK Ltd,Supported Other Accommodation - Private Contractors Payment,2504.24,0.00,COMMERCIAL SUPPLIER 
 21-10-2022,Adults,Runwood Homes Ltd - Kathryn Court,Residential Placements - Private Contractors Payment,2507.96,0.00,COMMERCIAL SUPPLIER 
 21-10-2022,Adults,HC-One Oval Ltd - Chaseview,Nursing Homes - Private Contractors Payment,2516.76,0.00,COMMERCIAL SUPPLIER 
 21-10-2022,Adults,Acer Healthcare Operation Ltd,Nursing Homes - Private Contractors Payment,2516.76,0.00,COMMERCIAL SUPPLIER 
 21-10-2022,Adults,Ebony Health Care Services Limited,Supported Other Accommodation - Private Contractors Payment,2520.00,0.00,COMMERCIAL SUPPLIER 
 21-10-2022,Adults,Independent Community Support Ltd t/a Wingletye Lodge ,Supported Other Accommodation - Private Contractors Payment,2520.00,0.00,COMMERCIAL SUPPLIER 
 21-10-2022,Adults,Ladyville Lodge_a,Nursing Homes - Private Contractors Payment,2525.92,0.00,COMMERCIAL SUPPLIER 
 21-10-2022,Adults,Barleycroft Care Home Ltd,Nursing Homes - Private Contractors Payment,2528.00,0.00,COMMERCIAL SUPPLIER 
 21-10-2022,Adults,Barleycroft Care Home Ltd,Nursing Homes - Private Contractors Payment,2528.00,0.00,COMMERCIAL SUPPLIER 
 21-10-2022,Adults,Fountains Care Centre - Bondcare,Nursing Homes - Private Contractors Payment,2528.00,0.00,COMMERCIAL SUPPLIER 
 21-10-2022,Adults,One Tree Estates Ltd t/a Ashbrook Nursing Home,Nursing Homes - Private Contractors Payment,2528.00,0.00,COMMERCIAL SUPPLIER 
 21-10-2022,Adults,Highfield Care Homes Ltd t/a Romford Grange Care Home,Residential Placements - Private Contractors Payment,2528.00,0.00,COMMERCIAL SUPPLIER 
 21-10-2022,Adults,Highfield Care Homes Ltd t/a Romford Grange Care Home,Nursing Homes - Private Contractors Payment,2528.00,0.00,COMMERCIAL SUPPLIER 
 21-10-2022,Adults,Highfield Care Homes Ltd t/a Romford Grange Care Home,Nursing Homes - Private Contractors Payment,2528.00,0.00,COMMERCIAL SUPPLIER 
 21-10-2022,Adults,Highfield Care Homes Ltd t/a Romford Grange Care Home,Nursing Homes - Private Contractors Payment,2528.00,0.00,COMMERCIAL SUPPLIER 
 21-10-2022,Adults,Lukka Care Homes Ltd - Ravenscourt,Nursing Homes - Private Contractors Payment,2528.00,0.00,COMMERCIAL SUPPLIER 
 21-10-2022,Adults,HC-One Oval Ltd - The Hornchurch Nursing Centre,Nursing Homes - Private Contractors Payment,2528.00,0.00,COMMERCIAL SUPPLIER 
 21-10-2022,Adults,HC-One Oval Ltd - The Hornchurch Nursing Centre,Nursing Homes - Private Contractors Payment,2528.00,0.00,COMMERCIAL SUPPLIER 
 21-10-2022,Adults,HC-One Oval Ltd - The Hornchurch Nursing Centre,Nursing Homes - Private Contractors Payment,2528.00,0.00,COMMERCIAL SUPPLIER 
 21-10-2022,Adults,Beechcourt Care Centre - Bondcare,Nursing Homes - Private Contractors Payment,2528.00,0.00,COMMERCIAL SUPPLIER 
 21-10-2022,Adults,Beechcourt Care Centre - Bondcare,Nursing Homes - Private Contractors Payment,2528.00,0.00,COMMERCIAL SUPPLIER 
 21-10-2022,Adults,Beechcourt Care Centre - Bondcare,Nursing Homes - Private Contractors Payment,2528.00,0.00,COMMERCIAL SUPPLIER 
 21-10-2022,Adults,Beechcourt Care Centre - Bondcare,Nursing Homes - Private Contractors Payment,2528.00,0.00,COMMERCIAL SUPPLIER 
 21-10-2022,Adults,Beechcourt Care Centre - Bondcare,Nursing Homes - Private Contractors Payment,2528.00,0.00,COMMERCIAL SUPPLIER 
 21-10-2022,Adults,Beechcourt Care Centre - Bondcare,Nursing Homes - Private Contractors Payment,2528.00,0.00,COMMERCIAL SUPPLIER 
 21-10-2022,Adults,Beechcourt Care Centre - Bondcare,Nursing Homes - Private Contractors Payment,2528.00,0.00,COMMERCIAL SUPPLIER 
 21-10-2022,Adults,Alexander Court Care Centre - Bondcare,Nursing Homes - Private Contractors Payment,2528.00,0.00,COMMERCIAL SUPPLIER 
 21-10-2022,Adults,DMP Healthcare (Heatherbrook) Ltd,Nursing Homes - Private Contractors Payment,2528.00,0.00,NON COMMERCIAL SUPPLIER 
 21-10-2022,Adults,Ladyville Lodge_a,Nursing Homes - Private Contractors Payment,2528.00,0.00,COMMERCIAL SUPPLIER 
 21-10-2022,Adults,Ranc Care Homes Ltd - Romford Care Centre,Nursing Homes - Private Contractors Payment,2528.00,0.00,COMMERCIAL SUPPLIER 
 21-10-2022,Adults,Highfield Care Homes Ltd t/a Romford Grange Care Home,Residential Placements - Private Contractors Payment,2530.96,0.00,COMMERCIAL SUPPLIER 
 21-10-2022,Adults,Sandstone Care Liverpool Ltd,Residential Placements - Private Contractors Payment,2540.28,0.00,COMMERCIAL SUPPLIER 
 21-10-2022,Adults,St Giles Homes Ltd T/A Forest Home,Residential Placements - Private Contractors Payment,2544.84,0.00,COMMERCIAL SUPPLIER 
 21-10-2022,Adults,Priory Supporting Care Ltd,Residential Placements - Private Contractors Payment,2559.40,0.00,COMMERCIAL SUPPLIER 
 21-10-2022,Adults,Mundy House,Residential Placements - Private Contractors Payment,2559.40,0.00,COMMERCIAL SUPPLIER 
 14-10-2022,Adults,Care-Away Ltd T/A Care Support,Home Care - Private Contractors Payment,2562.56,0.00,COMMERCIAL SUPPLIER 
 21-10-2022,Adults,Ash Grove Residential Care Home,Residential Placements - Private Contractors Payment,2571.43,0.00,COMMERCIAL SUPPLIER 
 21-10-2022,Adults,Mundy House,Residential Placements - Private Contractors Payment,2579.84,0.00,COMMERCIAL SUPPLIER 
 10-10-2022,Adults,Eastway Care Ltd_a,Daycare - Private Contractors Payment,2580.00,0.00,COMMERCIAL SUPPLIER 
 10-10-2022,Adults,Eastway Care Ltd_a,Daycare - Private Contractors Payment,2580.00,0.00,COMMERCIAL SUPPLIER 
 21-10-2022,Adults,Black Swan International Ltd - Belamacanda,Residential Placements - Private Contractors Payment,2596.48,0.00,COMMERCIAL SUPPLIER 
 21-10-2022,Adults,Westminster Health Care Ltd Derham House,Nursing Homes - Private Contractors Payment,2606.08,0.00,COMMERCIAL SUPPLIER 
 21-10-2022,Adults,HC-One Oval Ltd - Chaseview,Nursing Homes - Private Contractors Payment,2616.00,0.00,COMMERCIAL SUPPLIER 
 21-10-2022,Adults,Ebony Health Care Services Limited,Supported Other Accommodation - Private Contractors Payment,2621.80,0.00,COMMERCIAL SUPPLIER 
 21-10-2022,Adults,HC-One Oval Ltd - The Hornchurch Nursing Centre,Residential Placements - Private Contractors Payment,2624.00,0.00,COMMERCIAL SUPPLIER 
 21-10-2022,Adults,Alexander Court Care Centre - Bondcare,Nursing Homes - Private Contractors Payment,2627.64,0.00,COMMERCIAL SUPPLIER 
 21-10-2022,Adults,Acer Healthcare Operation Ltd,Nursing Homes - Private Contractors Payment,2627.64,0.00,COMMERCIAL SUPPLIER 
 09-10-2022,Adults,Homestead Care Service,Home Care - Private Contractors Payment,2631.54,0.00,COMMERCIAL SUPPLIER 
 21-10-2022,Adults,Runwood Homes - Windle Court,Residential Placements - Private Contractors Payment,2634.24,0.00,COMMERCIAL SUPPLIER 
 21-10-2022,Adults,MNS Care Plc_a,Nursing Homes - Private Contractors Payment,2636.32,0.00,COMMERCIAL SUPPLIER 
 21-10-2022,Adults,HC-One Oval Ltd - Chaseview,Nursing Homes - Private Contractors Payment,2636.32,0.00,COMMERCIAL SUPPLIER 
 21-10-2022,Adults,Acer Healthcare Operation Ltd,Nursing Homes - Private Contractors Payment,2636.32,0.00,COMMERCIAL SUPPLIER 
 21-10-2022,Adults,Acer Healthcare Operation Ltd,Nursing Homes - Private Contractors Payment,2636.32,0.00,COMMERCIAL SUPPLIER 
 21-10-2022,Adults,Little Gaynes,Residential Placements - Private Contractors Payment,2640.00,0.00,COMMERCIAL SUPPLIER 
 21-10-2022,Adults,Little Gaynes,Residential Placements - Private Contractors Payment,2640.00,0.00,COMMERCIAL SUPPLIER 
 21-10-2022,Adults,Little Gaynes,Residential Placements - Private Contractors Payment,2640.00,0.00,COMMERCIAL SUPPLIER 
 21-10-2022,Adults,St Georges Supported Living Ltd,Supported Other Accommodation - Private Contractors Payment,2640.32,0.00,COMMERCIAL SUPPLIER 
 21-10-2022,Adults,HC-One Oval Ltd - Chaseview,Residential Placements - Private Contractors Payment,2643.04,0.00,COMMERCIAL SUPPLIER 
 21-10-2022,Adults,Brenalwood Care Home,Residential Placements - Private Contractors Payment,2644.72,0.00,COMMERCIAL SUPPLIER 
 21-10-2022,Adults,Black Swan International Ltd - Belamacanda,Residential Placements - Private Contractors Payment,2647.40,0.00,COMMERCIAL SUPPLIER 
 21-10-2022,Adults,Ebony Health Care Services Limited,Supported Other Accommodation - Private Contractors Payment,2655.44,0.00,COMMERCIAL SUPPLIER 
 21-10-2022,Adults,Nightingale Residential Care Home Ltd,Residential Placements - Private Contractors Payment,2665.00,0.00,COMMERCIAL SUPPLIER 
 21-10-2022,Adults,Mornington Care Ltd ,Respite Care - Private Contractors Payment,2671.43,0.00,COMMERCIAL SUPPLIER 
 21-10-2022,Adults,Beechcourt Care Centre - Bondcare,Residential Placements - Private Contractors Payment,2674.04,0.00,COMMERCIAL SUPPLIER 
 21-10-2022,Adults,Clover Cottage Ltd,Residential Placements - Private Contractors Payment,2674.29,0.00,COMMERCIAL SUPPLIER 
 21-10-2022,Adults,St Georges Supported Living Ltd,Supported Other Accommodation - Private Contractors Payment,2681.24,0.00,COMMERCIAL SUPPLIER 
 21-10-2022,Adults,HC-One Oval Ltd - Chaseview,Nursing Homes - Private Contractors Payment,2681.40,0.00,COMMERCIAL SUPPLIER 
 21-10-2022,Adults,Acer Healthcare Operation Ltd,Nursing Homes - Private Contractors Payment,2681.40,0.00,COMMERCIAL SUPPLIER 
 21-10-2022,Adults,Flourishgate Care Services Ltd,Supported Other Accommodation - Private Contractors Payment,2688.00,0.00,COMMERCIAL SUPPLIER 
 21-10-2022,Adults,Affinia Healthcare Ltd_a,Supported Other Accommodation - Private Contractors Payment,2689.92,0.00,COMMERCIAL SUPPLIER 
 21-10-2022,Adults,Barleycroft Care Home Ltd,Nursing Homes - Private Contractors Payment,2712.00,0.00,COMMERCIAL SUPPLIER 
 21-10-2022,Adults,Barleycroft Care Home Ltd,Nursing Homes - Private Contractors Payment,2712.00,0.00,COMMERCIAL SUPPLIER 
 21-10-2022,Adults,Barleycroft Care Home Ltd,Nursing Homes - Private Contractors Payment,2712.00,0.00,COMMERCIAL SUPPLIER 
 21-10-2022,Adults,Barleycroft Care Home Ltd,Nursing Homes - Private Contractors Payment,2712.00,0.00,COMMERCIAL SUPPLIER 
 21-10-2022,Adults,Barleycroft Care Home Ltd,Nursing Homes - Private Contractors Payment,2712.00,0.00,COMMERCIAL SUPPLIER 
 21-10-2022,Adults,Barleycroft Care Home Ltd,Nursing Homes - Private Contractors Payment,2712.00,0.00,COMMERCIAL SUPPLIER 
 21-10-2022,Adults,Barleycroft Care Home Ltd,Nursing Homes - Private Contractors Payment,2712.00,0.00,COMMERCIAL SUPPLIER 
 21-10-2022,Adults,Barleycroft Care Home Ltd,Nursing Homes - Private Contractors Payment,2712.00,0.00,COMMERCIAL SUPPLIER 
